Workbook

Sheet Journal
B2: Journal of changes made to the IPART cost building block model template
B3: Changes made since the November 2019 update
B5: IPART cost building block model template.xlsm, developed by Bee Thompson
B7: Description of changes: | C7: Worksheets: | D7: Made by: | E7: Date | F7: Notes
B8: Changes to reflect 2022 changes in policy
B9: Working capital: standardised all parameters for 'receivables' | C9: RAB& tax inputs | D9: Bee | E9: Dec 2022
B10: Disposals - simplified to reflect 2022 policy | C10: Cost inputs, Cost building blocks, Implied return | D10: Bee | E10: Dec 2022
B11: Non-regulatory revenue: changes to reflect 2022 policy | C11: Cost inputs, Cost building blocks, Implied return, Financials | D11: Bee | E11: Dec 2022
B12: Asset lives: changed to reflect 2022 policy | C12: RAB& tax inputs, RAB projected | D12: Bee | E12: Dec 2022
B13: Other changes
B14: WACC - simplification, rounding and notes | C14: WACC | D14: Bee | E14: Dec 2022
B15: Moved selected costs | C15: Scenario, Selected costs | D15: Bee | E15: Dec 2022
B16: Deleted option to calculate forecasts in nominal $ | C16: All worksheets from Scenario | D16: Bee | E16: Dec 2022
B17: Added revenue adjustments | C17: Cost inputs, NRR, Scenario, Implied return | D17: Bee | E17: Dec 2022
B18: Re-organised inputs worksheets | C18: RAB & tax inputs, Cost inputs | D18: Bee | E18: Dec 2022 | F18: In the previous version, all the tables were in the' RAB & cost inputs' worksheet
B19: Deleted some historical calcs, added some historical inputs | C19: Various | D19: Bee | E19: Dec 2022
B20: Updated IPART policies, Instructions and Contents | C20: Cover, Instructions, IPART policies | D20: Bee | E20: Dec 2022

Sheet Cover
B1: THE INDEPENDENT PRICING AND REGULATORY TRIBUNAL OF NSW
B3: IPART TEMPLATE FOR COST BUILDING BLOCKS, SIMPLE TARIFF SETTING AND FINANCIAL RATIO ANALYSIS
B5: February 2023
B7: Purpose of the model template
B9: This model template is a simplified version of how IPART’s calculates a regulated business' notional revenue requirement (NRR) using a cost building block methodology,
B10: for businesses that have a regulatory asset base (RAB).
B11: It also provides a simple example of how we might set maximum prices, and shows how we calculate financial ratios for purposes of assessing a business' financeability.
B13: The model is for illustrative purposes only, and should not be considered to represent the basis of pricing for any particular determination. Please refer to IPART's pricing reports
B14: for detailed information on how prices are set for a particular business.
B16: What the model does
B18: 1. | C18: The model calculates a business' notional revenue requirement (NRR) by determining the following cost building blocks:
C19: ◦ | D19: operating costs (opex)
C20: ◦ | D20: return of the Regulatory Asset Base (RAB), or depreciation
C21: ◦ | D21: return on the RAB
C22: ◦ | D22: return on working capital
C23: ◦ | D23: tax allowance (IPART uses a post-tax WACC)
C24: ◦ | D24: revenue adjustments (for example true-ups, incentive payments)
B25: It subtracts any other revenue that is allocated to customers to determine the amount of revenue required from (regulated) prices.
B27: 2. | C27: The model then illustrates how we might set maximum prices, using a simple pricing structure. In practice, there are many ways to recover the revenue required from prices,
C28: for example by setting the maximum prices (this model), a weighted average price cap (WAPC) or a revenue cap.
B30: 3. | C30: Using costs and revenue from prices, the model shows how we:
C31: ◦ | D31: construct simple regulatory financial statements and calculate financial ratios for the 'actual' business and a benchmark business, for purposes of assessing the business' financeability.
D32: (See IPART, Review of our financeability test, Final Report Research, November 2018.)
B34: The model template is a simplified version of a typical IPART model, and will need to be adapted for actual reviews. The method for calculating building block costs (i.e. the NRR)
B35: is not sector specific, however the template uses water prices in the example of how to set prices.
B37: Target audience
B39: The primary audiences for this model template are IPART staff who wish to understand, build and/or check cost building block models, and external parties who wish to
B40: understand our cost building block methodology and our approach to financial ratio analysis.
B42: Model structure
B44: As set out below, the model consists of two sections, namely the user interface and the calculation worksheets
C45: ◦ | D45: User interface, which contains all the inputs, key outputs and financial ratio calculations (light blue, dark blue tabs and 'Finanicals' tabs)
C46: ◦ | D46: Calculation worksheets, which the user should not need to access.
B47: Given its function, for clarity and ease of reference the main calculations are set out in separate worksheets and a number of the calculations are annotated.
B49: The user interface:
C50: Inputs and WACC calculations (light blue tabs)
C51: ◦ | D51: The 'RAB & tax inputs' and 'Cost inputs' worksheets capture information required to roll forward the RAB and calculate the NRR.
D52: Note: The 'Cost inputs' worksheet can store two sets of operating expenditure, capital expenditure and cash capital contributions. The user selects which set of costs to use on the 'Scenario' worksheet.
C53: ◦ | D53: The 'Pricing & financial inputs' worksheet captures inputs that are required to set prices, calculate bills and produce financial statements and ratios.
C54: ◦ | D54: The 'WACC' worksheet captures the WACC input parameters and performs the WACC calculations.
C55: Decisions and key outputs (dark blue tab)
D56: The 'Scenario' worksheet is the 'operational' part of the model where the user:
D57: - sets the length of the determination period and select costs and other modelling options,
D58: - sets prices, and
D59: - can find the key outputs.
D60: Users should find all the important outputs in this worksheet, including the rolled-forward RAB, NRR, expected revenue from prices (target revenue), prices, bills and financial ratios.
C61: Financial statements and ratios
C62: The 'Financials' worksheets contains financial statements and calculates the financial ratios (actual and benchmark).
B65: The calculation worksheets:
C66: ◦ | D66: The first worksheet in this section shows the selected costs and the next 7 worksheets contain the building block cost calculations. They calculate:
D67: - the RAB roll forward to the start of the new determination period
D68: - the forecast RAB roll forward
D69: - the return on the RAB
D70: - the value of net working capital and the return on working capital
D71: - the tax allowance and, if required, tax depreciation
D72: - the NRR (i.e. total building block costs) and revenue required from prices (i.e. NRR minus less revenue allocated to customers).
C73: ◦ | D73: The 'Implied return' worksheet shows how IPART calculates the rate of return from target revenue each year.
C74: ◦ | D74: The 'Bills' worksheet constructs consumer bills using the prices set on the 'Scenario' worksheet.
C75: ◦ | D75: The 'Checks' worksheets draws together all the error checks in the model for easy reference.
B78: Regulatory policies and conventions
B80: Notional revenue requirement
B81: IPART applies a consistent set of regulatory policies and conventions to calculate the NRR in its cost building block models. These policies and conventions are built into the
B82: template's calculations or, where they concern inputs, may be provided as comments and/or explanations on the relevant worksheets.
B83: The template also provides some alternative options that depart from IPART policy, for the purposes of sensitivity analysis, for example using pre-tax WACC or forecasting costs
B84: in nominal dollars.
B85: IPART's polices and conventions are summarised in the 'IPART policies' worksheet.
B87: Revenue required from regulated prices
B88: Revenue required from regulated prices is the NRR less any other revenue that is allocated to customers, for example
C89: ◦ | D89: A share of the profits from non-regulatoryr activities. A non-regulatory activitiy is an activity that uses a regulated asset, for example renting out land that is included in the RAB for use by telecommunication towers.
C90: ◦ | D90: Regulatory profit/loss on asset disposals. IPART's policy is to allow the business (shareholders) to retain 100% of regulatory profit/loss from the sale of assets.
B91: The 'IPART policies' worksheet provides more information.
B93: Price paths and Target revenue
B94: Prices may be set in a number of ways to recover the NRR on an NPV neutral basis over the determination period. For example:
C95: ◦ | D95: All prices change at the same constant (real) rate each year
C96: ◦ | D96: All prices change in year 1 then remain unchanged in real terms over the determination period
C97: ◦ | D97: Some prices change at diffirent rate to others
C98: ◦ | D98: Prices change so that revenue recovers costs each year.
B99: Prices can also be set so that revenue recovers costs each year, or to move to full cost recovery by the last year of the determination period (referred to as the 'price glide path').
B101: The revenue expected from the prices is Target revenue.
B103: Regulatory financial statements, financial ratios and financeability
B104: When making our price determinations for regulated businesses, we may use a financeability test to assess how our pricing decisions are likely to affect the business’
B105: financial sustainability and ability to raise funds to manage its activities, over the regulatory period.
B106: For purposes of conducting the test, we construct simple regulatory financial statements and calculate financial ratios for
C107: ◦ | D107: the 'actual' business, based on the business' actual gearing ratio and cost of debt, and
C108: ◦ | D108: a benchmark business, based on the benchmark gearing ratio and real cost of debt that are consistent with the real WACC that we use to calculate the return on the RAB.
B110: In November 2018 we completed a review of how we conduct this financeability test. The 2018 test will apply to pricing decisions that take effect on or after 1 July 2019.
B111: Our 2018 financeability test is explained in IPART, Review of our financeability test, Final Report Research, November 2018.
B112: The report is available on our website at
C113: https://www.ipart.nsw.gov.au/Home/Industries/Special-Reviews/Reviews/Financeability-Tests/Review-of-financeability-test-2018
B116: Colour code
B118: This model uses standard IPART colour coding:
B119: Blue cells indicate inputs
B120: Light blue cells indicate inputs with default values
D121: default values are shown in italics next to or below the light blue cells
B122: Blue font indicates IPART hard-coded inputs that should not be changed
B123: Pink font indicates error checks
B124: Red indicates error warning or unusual calculation
B125: red double line means formula changes across row
B128: Developed by Bee Thompson
B129: email | D129: Bee_Thompson@IPART.nsw.gov.au

Sheet IPART policies
B1: =Cover!B1 -> THE INDEPENDENT PRICING AND REGULATORY TRIBUNAL OF NSW
B4: =Cover!$B$3 -> IPART TEMPLATE FOR COST BUILDING BLOCKS, SIMPLE TARIFF SETTING AND FINANCIAL RATIO ANALYSIS
B6: How IPART calculates the NRR and revenue required from prices - policies and conventions
B8: =Cover!B81 -> IPART applies a consistent set of regulatory policies and conventions to calculate the NRR in its cost building block models. These policies and conventions are built into the
B9: =Cover!B82 -> template's calculations or, where they concern inputs, may be provided as comments and/or explanations on the relevant worksheets.
B10: =Cover!B83&" "&Cover!B84 -> The template also provides some alternative options that depart from IPART policy, for the purposes of sensitivity analysis, for example using pre-tax WACC or forecasting costs in nominal dollars.
B12: The table below provides guidance on how we:
B13: ◦ calculate the notional revenue requirement (i.e. building block costs), and
B14: ◦ take into account 'other regulatory revenue' to calculate the revenue that is required from regulated prices .
B15: It also indicates where the template provides options that depart from IPART policy.
B17: Item | C17: Calculation or model input? | D17: IPART Policy/convention | E17: Alternative calculation option provided in this model? | G17: Reference | H17: IPART internal reference document
B19: Inflation
B20: Costs and revenue forecasts | C20: Calculation | D20: Real dollars, denominated in dollars of year prior to the first year of the new determination period (i.e. Yr 0 dollars, where Yr 1 is the first year of the new determination period) | E20: No
B21: Actual inflation rate used to roll forward historical RAB | C21: Input | D21: Quarter on quarter to June | E21: na - input | G21: Measuring inflation for industry price determinations - change in calculation method, July 2009 | H21: (see IPART intranet - Quick Link to CPI database)
B22: Forecast inflation rate | C22: Input | D22: Refinitiv mean forecast for Yr 0 and Yr 1 (quarter on quarter), then 2.5% | E22: na - input | H22: D12/21495 and CPI database
B23: Inflation policy for the tax allowance | C23: Calculation | D23: We calculate the tax allowance in nominal dollars, using the WACC point estimate of inflation (for consistency with the WACC). We use the same point estimate to convert the nominal allowance to real (Yr 0) dollars for the NRR. | E23: No | G23: The-incorporation-of-company-tax-in-price-determinations | H23: W11/68
B24: Inflation to convert prices from Yr0 dollar to Yr1 dollars, as applied in determinations. | C24: na | D24: Latest available actual inflation, quarter on quarter. For example, March 2021 to March 2022 for prices from 1 July 2023. | G24: See various price determinations on our website
B25: Customer bills in reports | C25: na | D25: Shown in Yr 1 or nominal dollars | E25: This models shows bills in Yr0 and nominal dollars | G25: See various reports on our website
B26: WACC
B27: WACC for the return on the RAB | C27: Calculation | D27: Real post-tax WACC | E27: Yes, option to use a pre-tax WACC | G27: The-incorporation-of-company-tax-in-price-determinations | H27: =H23 -> W11/68
B28: WACC for the return on working capital | C28: Calculation | D28: Nominal post-tax WACC | E28: Yes, option to use a pre-tax WACC | G28: 2018 Working Capital Allowance Policy Paper | H28: W18/2817
B29: WACC for NPV calculations | C29: Calculation | D29: Pre-tax WACC (real if costs and revenue are forecast in real dollars, nominal if costs and revenue are forecast in nominal dollars) | E29: No
B31: WACC methodology | C31: Calculation | D31: In December 2013 we made a final decision on the methodology we would use to determine the WACC. | E31: No | G31: Review of WACC Methodology, December 2013 | H31: W13/2258
D32: In 2017 we reviewed our 2013 WACC methodology and made incremental improvements. | E32: No | G32: IPART, Review of our WACC method, February 2018 | H32: W18/418
B34: Market update | C34: na | D34: We release financial market updates biannually in February and August. In conjunction with the update, we also released a WACC spreadsheet with a working copy of our full WACC model. | E34: na | G34: https://www.ipart.nsw.gov.au/Home/Industries/Special-Reviews/Regulatory-policy/WACC/Market-Update
B36: Timing assumptions | H36: D03/5518, D07/2652
B37: Capex and disposals for RAB roll forward | C37: Calculation | D37: Half of capex and disposals occurs at the beginning of the year, and half at the end of the year (a proxy for evenly throughout the year).a | E37: No
B38: Depreciation for RAB roll forward | C38: Calculation | D38: Depreciation occurs at the end of the year. | E38: No
B39: Revenue from customers | C39: Calculation | D39: Revenue is received mid-year (a proxy evenly for throughout the year).a | E39: No
B40: Notes | D40: a. Half at the beginning and half at the end of the year is mathematically equivalent to a mid-year assumption. | E40: na
B42: Notional Revenue Requirement (NRR)
B43: Our timing assumptions for depreciation and revenue mean that we calculate the NRR as follows:
B44: + operating expenditure | C44: Input | D44: Prudent and efficient opex | E44: na - input
B46: + mid-year value of depreciation | C46: Calculation | D46: RAB depreciation discounted by 6 months of real post-tax WACC | E46: No
B47: + mid-year value of return on RAB | C47: Calculation | D47: Year-end return on fixed assets discounted by 6 months of real post-tax WACC, | E47: No
D48: where year end return = (Opening RAB + 50% net capex - 50% disposals + indexationc) x real post-tax WACCd
B49: + mid-year value of return on working capital | C49: Calculation | D49: Year-end return on working capital discounted by 6 months of nominal post-tax WACCd, | E49: No
D50: where year end return = net working capital x nominal post-tax WACCd | G50: 2018 Working Capital Allowance Policy Paper | H50: W18/2817
B51: + tax allowanceb | C51: Calculation | D51: ="Calculated as explained below - see row "&ROW(B95) -> Calculated as explained below - see row 95 | E51: No
B52: + revenue adjustments | C52: Inputs | D52: Revenue adjustments may be carry-overs from the previous determination period, for example true-ups or incentive scheme payments (positive or negative). | E52: na - input | G52: IPART, Our water regulatory framework Technical Paper, November 2022, Chapter 3 and Chapter 4 | H52: W22/1913
D53: They may also be forward looking incentive payments. | G53: IPART, Review of our WACC method, February 2018 | H53: W18/418
B56: Notes | D56: c. Indexation is zero under our policy of forecasting costs in real (Yr 0) dollars. | E56: No
B57: b. No tax allowance if a pre-tax WACC is used to calculate the return on assets. | D57: d. To discount a return to its mid-year value, we use the same WACC that we use to calculate the year-end return. For example, if we used a pre-tax WACC to calculate the return on assets, we would use a real pre-tax WACC to discount the return on the RAB and a nominal pre-tax WACC to discount the return on working capital. | E57: No
B59: RAB roll forward to the start of the new determination period (historical)
B60: Opening RAB | C60: Input | D60: Closing RAB in the last year for which actual net capex, disposals and inflation were known when the RAB was previously rolled forward (usually the penultimate year of the previous determination period). | E60: na - input
B61: + capex | C61: Input | D61: Prudent capex,e normally included as it occurs (excluding holding costs). Very large additions may be included when commissioned, including holding costs. | E61: na - input
B62: - cash capital contributions | C62: Input/Calculation | D62: Actual cash capital contributionse, either before tax or net of tax depending on how they were treated historically. (Our policy since 2016 has been to include them net of tax.) | E62: Yes, option to include before or net of tax | G62: IPART, Review of prices for Sydney Water Corporation from 1 July 2016 to 30 June 2020, Water – Final Report, June 2016, pp131-133 | H62: W16/2239
B63: - disposals | C63: Input | D63: Remove the regulatory value, which is usually 50% of the revenue from asset sales net of sales and remediation costs and capital gains tax. We allow for exceptions on a case-by base basis, subject to materiality. | E63: na - input | G63: IPART, Our water regulatory framework Technical Paper, November 2022, Appendix A | H63: W22/1913
D64: (This replaces our 2018 asset disposals policy.) | G64: Also see IPART Draft Handbook, December 2022, Appendix A | H64: W22/2043
B65: - depreciation | C65: Input/Calculation | D65: Depreciation allowance provided in historical NRR, adjusted for actual inflation (IPART policy since 2004). | E65: Yes, option to use actual (i.e. calculated) depreciation | G65: See IPART, NSW Electricity Distribution Pricing 2004/05 to 2008/09 - Final Report, June 2004, pp 45-51. | H65: D04/5033
B66: + indexation | C66: Calculation | D66: Inflation rate x (opening RAB + 50% capex - 50% disposals)f | E66: No
B67: Closing RAB | C67: Calculation | D67: Opening RAB + capex - cash capital contributions - disposals - depreciation + indexation | E67: No
B68: Notes | D68: e. Yr0 capex and cash capital contributions will be forecasts. | E68: na
D69: f. See inflation policy and timing assumptions above. | E69: na
B71: RAB roll forward for the upcoming determination period (projected)
B72: Opening RAB | C72: Input | D72: Closing RAB in the last year of the current determination period (Yr 0) | E72: No.
B73: + Capex | C73: Input | D73: Prudent and efficient capex, normally included as it occurs (excluding holding costs). Very large additions may be included when commissioned, including holding costs. | E73: na - input
B74: - Cash capital contributions | C74: Input/Calculation | D74: Deducted net of tax payable (IPART policy since 2016).g | E74: Yes, option to include before or net of tax | G74: IPART, Review of prices for Sydney Water Corporation from 1 July 2016 to 30 June 2020, Water – Final Report, June 2016, pp 131-133 | H74: W16/2239
B75: - Disposals | C75: Input | D75: ="Remove the regulatory value - see row "&ROW(B63)&" above." -> Remove the regulatory value - see row 63 above. | E75: na - input | G75: As for depreciation (see below)
B76: - Depreciation
B77: (i) depreciation method | C77: Calculation | D77: Straight line | E77: No
B78: (ii) asset lives of existing assets | C78: Input | D78: Expected useful remaining lives | E78: Yes. IPART models usually calculate the remaining lives of the existing assets at the start of the new determination period, but these are default remaining lives that can be over-ridden. | G78: IPART, Our water regulatory framework Technical Paper, November 2022, Appendix A | H78: W22/1913
E79: Under our 2022 water regulatory framework, we encourage the businesses to propose alternative asset lives. | G79: Also see IPART Draft Handbook, December 2022, Appendix A | H79: W22/2043
B80: (iii) asset lives of new assets (i.e. capex net of cash cap cons) | C80: Input | D80: Expected useful lives, which may vary from year to year depending on the mix of assets | E80: na - inputs
B81: (iv) number of asset categories | C81: Calculation | D81: For urban retail water businesses, 2 asset categories per service (depreciating and non-depreciating). Varies for other businesses.h This model uses a single asset category for all depreciating assets, which is depreciated on the basis of a weighted average asset life. | E81: No | G81: As for depreciation (see above)
B82: + indexation | C82: Calculation | D82: ="Value will be zero under our policy to forecast costs in real (Yr 0) dollars - see row "&ROW(B20)&"." -> Value will be zero under our policy to forecast costs in real (Yr 0) dollars - see row 20. | E82: No
B83: Closing RAB | C83: Calculation | D83: Opening RAB + (capex - cash capital contributions) - disposals - depreciation | E83: No
B84: Adjustments to the RAB | C84: Input/Calculation | D84: The Tribunal may decide to make an adjustment to the opening (or closing) RAB. | E84: Not shown in this model | G84: For example, see IPART, Review of prices for Sydney Water Corporation from 1 July 2016 to 30 June 2020, Water – Final Report, June 2016, pp 115-120 | H84: W16/2239
B85: Notes | D85: g. Tax on cash capital contributions is therefore excluded from the tax allowance. If contributions are not taxable, we deduct their full value from the RAB and exclude them from the tax allowance. | E85: No
D86: h. In principle, we group assets into categories that have similar expected useful lives. | E86: na
B88: Net working capital
B89: Net working capital =
B90: + receivables | C90: Input/Calculation | D90: For a water business, depends on length of billing cycle, whether fixed charges are billed in advance and the number of days between invoice date (or issue date) and the due date as it appears on a standard customer's bill. For a non-water business, depends on business practice. | E90: No for calculation method | G90: IPART, Our water regulatory framework Technical Paper, November 2022, Appendix A | H90: W22/1913
B91: - payables | C91: Input/Calculation | D91: Set in days of opex and net capex (usually 30) | E91: No for calculation method | G91: Also see IPART Draft Handbook, December 2022, Appendix A | H91: W22/2043
B92: + inventory | C92: Input/Calculation | D92: Fixed real (Yr 0) dollar value. | E92: No for calculation method | G92: 2018 Working Capital Allowance Policy Paper | H92: W18/2817
B93: + prepayments | C93: Input/Calculation | D93: Fixed real (Yr 0) dollar value. Set to zero unless a business can reasonably demonstrate prudency and efficiency | E93: No for calculation method
B95: Tax allowance
B96: Tax allowance = taxable income x statutory tax rate adjusted for franking credits (gamma) | E96: No | G96: The-incorporation-of-company-tax-in-price-determinations | H96: W11/68
B97: where taxable income =
B98: + revenue | C98: Calculation | D98: NRR + non-cash asset contributionsk + profit/loss on sale of assets shared with customersl | E98: No
B99: - operating expenditure | C99: Calculation | D99: Allowed operating expenditure | E99: No
B100: - interest deductable | C100: Calculation | D100: WACC gearing ratio x (average of opening and closing RAB + net working capital) x WACC nominal cost of debt. | E100: No
B101: - tax depreciation
B102: > for businesses that can provide forecasts | C102: Input | D102: Provided by the business and included in the model as an input | E102: na - input
B103: > for other businessesi | C103: Calculation | D103: ="Calculated using a Tax Asset Base (TAB) - see row "&ROW(B105) -> Calculated using a Tax Asset Base (TAB) - see row 105 | E103: No
B104: - accumulated tax losses | C104: Input/Calculation | D104: We carry forward expected tax losses (which we calculate). We do not use a business' actual tax losses and we start from a zero base. | E104: No for calculation method within a determination period.
B105: We calculate a TAB as follows:
B106: Opening TABj
B107: + nominal capex | C107: Calculation | D107: RAB capex, converted to nominal dollars using forecast inflation (not WACC point estimate inflation). | E107: No
B108: + nominal non-cash asset contributions | C108: Input | D108: Expected contributions, converted to nominal dollars using forecast inflation. | E108: na - input
B109: + nominal tax depreciation | C109: Input/Calculation | D109: Straight line using tax asset lives.m | E109: No for calculation method
B110: Closing TAB
B111: Notes
B112: i. Businesses that do not pay tax or tax equivalents, or who cannot provide a forecast for the regulated part of their businesses. | D112: ="k. Plus (taxable) cash capital contributions if they are taxable and we deduct their full value from the RAB - see row "&ROW(B74) -> k. Plus (taxable) cash capital contributions if they are taxable and we deduct their full value from the RAB - see row 74 | E112: No
B113: j. The initial opening TAB is based on the RAB. We usually use the opening RAB of the first year in which we used a post-tax WACC. | D113: l. Under our asset disposals policy for application to water businesses, the businesses do not share profits or losses with customers. This value will therefore be zero. | E113: Yes | G113: Asset disposals policy for application to water businesses, 2017 | H113: W18/431
D114: m. To date we have not considered using diminishing value instead of straight line depreciation.
B116: Revenue required from regulated prices
B117: Revenue required from regulated prices =
B118: + NRR | C118: Calculation | D118: ="See rows "&ROW(B42)&" to "&ROW(A51)&" above." -> See rows 42 to 51 above. | E118: No
B120: - profit/-loss on sale of assets shared with customers (regulatory values) | C120: Calculation | D120: Zero under our asset disposals policy - the businesses bears any profits or losses. | E120: na - input
B121: - other regulatory revenue shared allocated to customersn | C121: Input | D121: Half (50%) of the profits from non-regulatory activities | E121: na - input | G121: IPART, Our water regulatory framework Technical Paper, November 2022, Appendix A | H121: W22/1913
D122: We may consider exceptions on a case-by-case basis, subject to materiality and a very strong case. | G122: Also see IPART Draft Handbook, December 2022, Appendix A | H122: W22/2043
B123: Notes
B124: n. Revenue that is not derived from regulated prices is regarded as regulatory revenue if the activity involves the use of regulated assets.
B128: Other documents available our website
B130: Financeability test | D130: In November 2018 we completed a review of how we conduct our financeability test.
B131: Finance leases | D131: This Fact Sheet explains how we treat finance leases in our regulatory decisions.
B132: Draft handbook for water agency pricing submissions | D132: IPART Draft Handbook, December 2022, Appendix A

Sheet Instructions
B1: =Cover!B1 -> THE INDEPENDENT PRICING AND REGULATORY TRIBUNAL OF NSW
B3: =Cover!B3 -> IPART TEMPLATE FOR COST BUILDING BLOCKS, SIMPLE TARIFF SETTING AND FINANCIAL RATIO ANALYSIS
B7: Using the model
B9: Only blue cells may be changed by the model user; these are input cells.
B10: Light blue cells are also input cells. Override a default value by entering a number in the associated light blue cell.
B11: Any blue cell may be changed, even if it contains a formula. The function of that formula will be to calculate an input value specific to the scenario
B12: and/or business being modelled.
B14: 'RAB & tax inputs ' worksheet
B15: Enter the inputs in the blue cells only.
B16: The input tables are fairly self-explanatory. Please note:
B17: g | D17: For tax depreciation, you need to enter information only for the type of businsses with regard to tax. Leave the other input cells blank and make sure you select the appropriate option on the Scenario worksheet
B19: 'Cost inputs' worksheet
B20: Enter the inputs in the blue cells only.
B21: The input tables are fairly self-explanatory. Please note:
C22: g | D22: This worksheet can store two sets of operating costs, capital expenditure and cash capital contributions. However, only one set of costs is required for each input. Simply leave Option 2 blank if you have only one set of costs, and make sure that Option 1 is selected on the Scenario worksheet for the corresponding set of costs.
C23: g | D23: Describe each option in the relevant blue cell in column D. This descriptor is used on the Scenario worksheet to make it easier to select the appropriate option.
B25: 'Pricing & financial inputs ' worksheet
B26: Enter the inputs in the blue cells only.
B27: The input tables are fairly self-explanatory.
B29: 'WACC' worksheet
B30: Enter the inputs in the blue cells only.
B31: ="The value entered in cell C"&ROW(WACC!$D$28)&" will determine the final WACC point estimate." -> The value entered in cell C28 will determine the final WACC point estimate.
B32: For example, 50% will give the midpoint of the final WACC range, (i.e. 50% will assign equal weights to the WACC based on current market data and
B33: the WACC based on long-term averages).
B35: 'Scenario' worksheet
B36: Enter a scenario number and name .
B37: In the 'Decisions' section select the required options in the blue input cells.
B38: Next, set the prices in the SETTING PRICES section. Instructions on how to do this are provided in the worksheet.
B40: To see how changes in cost or other inputs affect prices, change an input or selection and see how this affects the prices and/or the gap between cost
B41: and revenue. You may wish to split the screen to immediately see, for example, what happens when you select a different set of operating costs.
B43: You should be able to find all the important outputs in the 'Output Tables' section of this worksheet, including the financial ratios.
B44: However, to see the full set of regulatory financial statements, go the the 'Financials' worksheets
B46: Calculations
B48: The remaining worksheets contain the calculations. Most are self-explanatory, and further explanations are provided in the worksheets.

Sheet Contents
B1: =Cover!B1 -> THE INDEPENDENT PRICING AND REGULATORY TRIBUNAL OF NSW
B3: =Cover!B3 -> IPART TEMPLATE FOR COST BUILDING BLOCKS, SIMPLE TARIFF SETTING AND FINANCIAL RATIO ANALYSIS
B8: CONTENTS | D8: Tab name | E8: hyperlink
B10: INPUTS AND KEY OUTPUTS
B11: ='RAB & tax inputs'!B3 -> 1 RAB, WORKING CAPITAL AND TAX INPUTS | D11: RAB & tax inputs | E11: RAB & tax inputs'!A1
B13: ='Cost inputs'!B5 -> 2 COST AND NON-REGULATORY REVENUE INPUTS | D13: Cost inputs | E13: Cost inputs'!A1
B15: ='Pricing & financial inputs'!B3 -> 3 PRICING AND FINANCIAL INPUTS | D15: Pricing & financial inputs | E15: Pricing & financial inputs'!A1
B17: =WACC!B3 -> 4 WACC | D17: WACC | E17: WACC!A1
B19: =Scenario!B3 -> 5 SCENARIO INPUTS, PRICES AND OUTPUT TABLES | D19: Scenario | E19: Scenario!B3
B21: ='Financials actual'!B3 -> 6a FINANCIAL STATEMENTS AND FINANCIAL RATIOS - ACTUAL | D21: Financials actual | E21: Financials actual'!B3
B22: ='Financials benchmark'!B3 -> 6b FINANCIAL STATEMENTS AND FINANCIAL RATIOS - BENCHMARK | D22: Financials benchmark | E22: Financials benchmark
B24: CALCULATION OF COST BUILDING BLOCKS
B26: ='Selected costs'!B3 -> 7 Selected costs | D26: Selected costs | E26: Selected costs'!A1
B28: ='RAB historical'!B3 -> 8 Regulatory Asset Base roll forward to start of new determination period | D28: RAB historical | E28: RAB historical'!B3
B30: ='RAB projected '!B3 -> 9 Regulatory Asset Base roll forward for new determination period | D30: RAB projected | E30: RAB projected '!B3
B32: ='Return on RAB'!B3 -> 10 Return on Regulatory Asset Base1 (year end and mid-year values) | D32: Return on RAB | E32: Return on RAB'!B3
B34: ='Working capital'!B3 -> 11 Working capital and return on working capital | D34: Working capital | E34: Working capital'!B3
B36: =Tax!B3 -> 12 Tax allowance in building block revenue and calculation of tax depreciation (if required) | D36: Tax | E36: Tax!B3
B38: =NRR!B3 -> 13 Notional revenue requirment (NRR) and revenue required from prices | D38: Cost building blocks | E38: NRR!A1
B40: CALCULATION OF IMPLIED RATE OF RETURN
B41: ='Implied return'!B3 -> 14 Calculation of implied real return on assets from actual historical then target revenue from prices | D41: Implied return | E41: Implied return'!B3
B43: CALCULATION OF BILLS
B44: =Bills!B3 -> 15 Customer bills | D44: Bills | E44: Bills!B3
B46: =Checks!B3 -> 16 Summary of error checks | D46: Checks | E46: Checks!B3

Sheet RAB & tax inputs
B1: =Cover!B1 -> THE INDEPENDENT PRICING AND REGULATORY TRIBUNAL OF NSW | F1: =Cover!$B$3 -> IPART TEMPLATE FOR COST BUILDING BLOCKS, SIMPLE TARIFF SETTING AND FINANCIAL RATIO ANALYSIS
B3: 1 RAB, WORKING CAPITAL AND TAX INPUTS
B6: Colour code
B7: =Cover!B119 -> Blue cells indicate inputs
B8: =Cover!B120 -> Light blue cells indicate inputs with default values
B9: =Cover!D121 -> default values are shown in italics next to or below the light blue cells
B10: =Cover!B122 -> Blue font indicates IPART hard-coded inputs that should not be changed
B11: =Cover!B123 -> Pink font indicates error checks
B12: =Cover!B124 -> Red indicates error warning or unusual calculation
B13: =Cover!B125 -> red double line means formula changes across row
B17: List of tables | G17: row number
B18: =B30 -> TABLE 1 - INPUTS FOR RAB ROLL FORWARD TO START OF NEW DETERMINATION PERIOD AND HISTORICAL WORKING CAPITAL ALLOWANCE | G18: =ROW(B30) -> 30
B19: =B60 -> TABLE 2 - ASSET LIVES | G19: =ROW(B60) -> 60
B20: =B82 -> TABLE 3 - WORKING CAPITAL | G20: =ROW(B82) -> 82
B21: =B106 -> TABLE 4 - TAX DEPRECIATION, TAX LOSSES AND TAX ALLOWANCE - enter forecasts in nominal $'000 | G21: =ROW(B106) -> 106
B25: Name of regulated business | D25: Regulated Business X
B27: New determination effective from 1 July | C27: year | D27: 2023
B30: TABLE 1 - INPUTS FOR RAB ROLL FORWARD TO START OF NEW DETERMINATION PERIOD AND HISTORICAL WORKING CAPITAL ALLOWANCE
B31: Financial year ending 30 June | C31: Units | D31: Constants | F31: =G31-1 -> 2019 | G31: =H31-1 -> 2020 | H31: =I31-1 -> 2021 | I31: =J31-1 -> 2022 | J31: ='RAB & tax inputs'!D27 -> 2023 | K31: =J31+1 -> 2024 | L31: 2025 | M31: 2026 | N31: 2027 | O31: 2028 | P31: 2029 | Q31: 2030 | R31: 2031 | S31: 2032 | T31: 2033
B32: Financial year | F32: =F31-1&"-"&RIGHT(F31,2) -> 2018-19 | G32: 2019-20 | H32: 2020-21 | I32: 2021-22 | J32: 2022-23 | K32: 2023-24 | L32: 2024-25 | M32: 2025-26 | N32: 2026-27 | O32: 2027-28 | P32: 2028-29 | Q32: 2029-30 | R32: 2030-31 | S32: 2031-32 | T32: 2032-33
J33: Previous determinations | K33: ="Determination period is "&K32& " to "&OFFSET(K32,0,Scenario!D31-1) -> Determination period is 2023-24 to 2027-28
B35: ="RAB opening value on 1 July "&F31-1 -> RAB opening value on 1 July 2018
B36: Depreciating assets | C36: $'000 | F36: 620000 | G36: The year for the opening value of the RAB must be such that the opening value includes only actual (not forecast) capital expenditure, cash capital contributions
B37: Non-depreciating assets (e.g. land) | C37: =C36 -> $'000 | F37: 40000 | G37: and disposals. This will usually be the penultimate year of the previous determination period, and should be the first year of the model.
B38: Total RAB | C38: =C37 -> $'000 | F38: =SUM(F36:F37) -> 660000
B39: Note: under our 2022 policy, we will roll forward the RAB for an urban retail water business using only 2 asset categories per service (i.e. depreciating and non-depreciating assets) | M39: See IPART, Our water regulatory framework Technical Paper, November 2022, Appendix A
B41: Allowed RAB depreciation from previous Determination (year end value)
B42: ="Allowed RAB depreciation may be entered in nominal or real dollars. In the row below, select the year from the drop-down box. For example, if you select "&$G$32&" the model will assume you have entered allowed depreciation in $"&G32 -> Allowed RAB depreciation may be entered in nominal or real dollars. In the row below, select the year from the drop-down box. For example, if you select 2019-20 the model will assume you have entered allowed depreciation in $2019-20
B43: Select the year | C43: year | F43: 2018-19 | G43: 2019-20 | H43: 2019-20 | I43: 2019-20 | J43: 2019-20
B44: Financial year ending 30 June | F44: =LEFT(F43,4)+1 -> 2019 | G44: =LEFT(G43,4)+1 -> 2020 | H44: =LEFT(H43,4)+1 -> 2020 | I44: 2020 | J44: 2020
B45: ="For the years in which you enter allowed depreciation in nominal dollars in row "&ROW(B50)&" below, enter the actual or forecast inflation rate embedded in the depreciation. (Enter 0% or leave blank the years in which you enter depreciation in real dollars.)" -> For the years in which you enter allowed depreciation in nominal dollars in row 50 below, enter the actual or forecast inflation rate embedded in the depreciation. (Enter 0% or leave blank the years in which you enter depreciation in real dollars.)
B46: ="Actual/forecast inflation from previous determination/s embedded in allowed depreciation entered in row "&ROW(B50) -> Actual/forecast inflation from previous determination/s embedded in allowed depreciation entered in row 50 | C46: % | F46: 0.012 | G46: 0.02 | K46: na | L46: na | M46: na | N46: na | O46: na | P46: na | Q46: na | R46: na | S46: na | T46: na
B48: ="Enter the value of depreciation in the RAB that was used to set prices at the last determination. Depreciation may be entered in real or nominal dollars - see instructions in rows "&ROW(B45)&" to "&ROW(B46) -> Enter the value of depreciation in the RAB that was used to set prices at the last determination. Depreciation may be entered in real or nominal dollars - see instructions in rows 45 to 46
B49: Enter in dollars of year | C49: $year | F49: ="$"&F43 -> $2018-19 | G49: ="$"&G43 -> $2019-20 | H49: $2019-20 | I49: $2019-20 | J49: $2019-20
B50: ="Allowed depreciation (nominal or real - see rows "&ROW(B45)&" to "&(ROW(B46)&")") -> Allowed depreciation (nominal or real - see rows 45 to 46) | C50: =C36 -> $'000 | F50: 16717 | G50: 17990 | H50: 18783 | I50: 19653 | J50: 20817 | K50: na | L50: na | M50: na | N50: na | O50: na | P50: na | Q50: na | R50: na | S50: na | T50: na
B51: Allowed depreciation used in model (adjusted for actual inflation - for information and guidance) | C51: =C36&" nominal" -> $'000 nominal | F51: ='RAB historical'!F70 -> 16783.0751 | G51: ='RAB historical'!G70 -> 17653.84647 | H51: ='RAB historical'!H70 -> 19132.4459 | I51: ='RAB historical'!I70 -> 21239.76824 | J51: ='RAB historical'!J70 -> 23667.63164 | K51: na | L51: na | M51: na | N51: na | O51: na | P51: na | Q51: na | R51: na | S51: na | T51: na
B53: Working capital allowance from previous determination | C53: =" (Used to calculated the working capital allowance in "&K32&", to avoid circular referencing.)" -> (Used to calculated the working capital allowance in 2023-24, to avoid circular referencing.)
B54: ="Enter the allowance "&$J$49&" (which is dollars of the same year as for allowed depreciation, specified in row"&ROW(B43)&")" -> Enter the allowance $2019-20 (which is dollars of the same year as for allowed depreciation, specified in row43)
B55: Working capital allowance | C55: =$C$36&", "&J$49 -> $'000, $2019-20 | F55: na | G55: na | H55: na | I55: na | J55: 700
B56: Working capital allowance, nominal | C56: =C51 -> $'000 nominal | F56: na | G56: na | H56: na | I56: na | J56: =J55/'RAB historical'!J$68*'RAB historical'!J$69 -> 795.8563747 | K56: na | L56: na | M56: na | N56: na | O56: na | P56: na | Q56: na | R56: na | S56: na | T56: na
B60: TABLE 2 - ASSET LIVES
B61: =B$32 -> Financial year | F61: =F$32 -> 2018-19 | G61: =G$32 -> 2019-20 | H61: 2020-21 | I61: 2021-22 | J61: 2022-23 | K61: 2023-24 | L61: 2024-25 | M61: 2025-26 | N61: 2026-27 | O61: 2027-28 | P61: 2028-29 | Q61: 2029-30 | R61: 2030-31 | S61: 2031-32 | T61: 2032-33
K62: =K33 -> Determination period is 2023-24 to 2027-28
B64: Asset lives used in previous determination
B65: ="These asset lives are used to calculate the remaining life of depreciating assets on 30 June "&$K$31-1 -> These asset lives are used to calculate the remaining life of depreciating assets on 30 June 2023
B67: ="Ave remaining life of depreciating assets on 1 July "&$F$31-1 -> Ave remaining life of depreciating assets on 1 July 2018 | C67: years | F67: 40 | G67: na | H67: na | I67: na | J67: na | K67: na | L67: na | M67: na | N67: na | O67: na | P67: na | Q67: na | R67: na | S67: na | T67: na
B69: Expected average life of new (depreciating) assets | C69: years | F69: 50 | G69: 45 | H69: 60 | I69: 40 | J69: 50 | K69: na | L69: na | M69: na | N69: na | O69: na | P69: na | Q69: na | R69: na | S69: na | T69: na
B70: Note: the average expected life of new assets may differ from year to year depending on the mix of assets
B72: Asset lives of depreciating assets for new determination period
B74: ="Av remaining life of assets on 1 July "&'RAB & tax inputs'!$K$31-1 -> Av remaining life of assets on 1 July 2023 | C74: years | L74: Note: Enter a value in the light blue cell to overwrite the default value. We encourage the business to propose the remaining life of depreciating assets rather than use the default value.
B75: default = calculated remaining life | C75: years | K75: =IF(ISBLANK(K74),'RAB historical'!J145,K74) -> 37.10545765 | L75: (The default value is calculated from the historical RAB.)
B77: Expected average life of new assets | C77: years | F77: na | G77: na | H77: na | I77: na | J77: na | K77: 40 | L77: 35 | M77: 50 | N77: 55 | O77: 50 | P77: 50 | Q77: 50 | R77: 50 | S77: 50 | T77: 50
B78: Note: the average expected life of new assets may differ from year to year depending on the mix of assets
B82: TABLE 3 - WORKING CAPITAL
B84: Specification of working capital | C84: See our 2018 Working Capital Allowance Policy Paper | H84: and our 2022 simplifications in IPART, Our water regulatory framework Technical Paper, November 2022, Appendix A
H85: Also see the Draft Handbook, December 2022 Appendix A
B86: Receivables
B87: Do you bill fixed charges in advance? | D87: Yes | Q87: DO NOT DELETE
Q88: Yes
B89: - length of billing cycle | C89: days | D89: 90 | E89: for simplicity, assume a month has 30 days | Q89: No
B90: - days fixed charges billed in advance | C90: =C89 -> days | D90: =D89/2*Q90 -> 45 | E90: half the number of days in the billing cycle (updated 2022 policy) | Q90: =IF(Q88=D87,1,0) -> 1
B91: - days fixed charges billed in arrears | C91: =C90 -> days | D91: =D89-D90 -> 45
B92: - net days fixed charges billed in arrears | C92: =C90 -> days | D92: =D91-D90 -> 0
B93: - proportion of revenue from fixed charges | C93: % | E93: required only if fixed charges are billed in advance
B94: default % revenue from fixed charges | C94: % | D94: =IF(ISBLANK(D93),SUM(Scenario!I133:J133)/SUM(Scenario!I136:J136),D93) -> 0.09263261078 | E94: default = historical proportion of revenue from fixed charges
B95: - days to pay | C95: days | D95: 30 | E95: number of days between invoice date (or issue date) and the due date as they appear on the bill of a standard customer (usually 21 or 30, updated 2022 policy)
B96: Receivables @ no of days of sales | C96: days | D96: =(D92*D94+D89*(1-D94))/2+D95 -> 70.83153251 | E96: 50% net number of days billed in arrears + days of delay
B98: Inventory (fixed real $ value) | C98: =Scenario!$Y$41 -> 2022-23 $'000 | D98: 200 | E98: based on efficient business practice
B100: Prepayments (fixed real $ value) | C100: =C98 -> 2022-23 $'000 | D100: 0 | E100: zero unless the business can reasonably demonstrate that the amount is prudent and efficient
B102: Accounts payable @ no. of days opex + net capex | C102: days | D102: 30 | E102: 30 days normally used by IPART, standard contract payment period
B106: ="TABLE 4 - TAX DEPRECIATION, TAX LOSSES AND TAX ALLOWANCE - enter forecasts in nominal "&$C$36 -> TABLE 4 - TAX DEPRECIATION, TAX LOSSES AND TAX ALLOWANCE - enter forecasts in nominal $'000
B107: The model will calculate notional tax depreciation if the regulated entity does not pay tax or tax equivalents, or cannot provide forecast tax depreciation.
B108: =B$32 -> Financial year | C108: =C$31 -> Units | D108: =D$31 -> Constants | F108: =F$32 -> 2018-19 | G108: 2019-20 | H108: 2020-21 | I108: 2021-22 | J108: 2022-23 | K108: 2023-24 | L108: 2024-25 | M108: 2025-26 | N108: 2026-27 | O108: 2027-28 | P108: 2028-29 | Q108: 2029-30 | R108: 2030-31 | S108: 2031-32 | T108: 2032-33
K109: =K$33 -> Determination period is 2023-24 to 2027-28
F110: ='Cost inputs'!F$22 -> nominal | G110: =F110 -> nominal | H110: nominal | I110: nominal | J110: nominal | K110: ="Enter forecasts in nominal "&$C$36 -> Enter forecasts in nominal $'000
B112: Tax depreciation or tax asset base (TAB)
B113: ="Note: Inputs are required only for the type of businesses you are modelling with regard to tax. Make sure you select the correct option in Scenario D"&ROW(Scenario!D29) -> Note: Inputs are required only for the type of businesses you are modelling with regard to tax. Make sure you select the correct option in Scenario D29
B114: No inputs are required for businesses that do not have a previously established regulatory TAB and cannot provide forecast tax depreciation.
B115: ="The model will use the closing value of the RAB in "&J108&" and RAB asset lives to calculate tax depreciation (straight line method)" -> The model will use the closing value of the RAB in 2022-23 and RAB asset lives to calculate tax depreciation (straight line method)
B117: 1. For businesses that pay tax or tax equivalents and can provide forecast tax depreciation:
B118: Tax depreciation for
B119: =" - assets existing on 30 June "&$I$31&" (including all contributed assets)" -> - assets existing on 30 June 2022 (including all contributed assets) | C119: =C$36&" nominal" -> $'000 nominal | F119: na | G119: na | H119: na | I119: 19430 | J119: 19430 | K119: 19430 | L119: 19430 | M119: 19430 | N119: 19425 | O119: 19425 | P119: 19425 | Q119: 19425 | R119: 19420 | S119: 19420 | T119: 19420
B120: =" - capex from 1 July "&$I$31 -> - capex from 1 July 2022 | C120: =C119 -> $'000 nominal | F120: na | G120: na | H120: na | I120: 0 | J120: 9 | K120: 18 | L120: 27 | M120: 33 | N120: 39 | O120: 45 | P120: 55 | Q120: 64 | R120: 73 | S120: 75 | T120: 77
B121: =" - non-cash contributed assets from 1 July "&$I$31 -> - non-cash contributed assets from 1 July 2022 | C121: =C120 -> $'000 nominal | F121: na | G121: na | H121: na | I121: 0 | J121: 1 | K121: 2 | L121: 3 | M121: 5 | N121: 6 | O121: 8 | P121: 9 | Q121: 10 | R121: 11 | S121: 12 | T121: 13
B122: Total tax depreciation | C122: $'000 nominal | F122: na | G122: na | H122: na | I122: =SUM(I119:I121) -> 19430 | J122: 19440 | K122: 19450 | L122: 19460 | M122: 19468 | N122: 19470 | O122: 19478 | P122: 19489 | Q122: 19499 | R122: 19504 | S122: 19507 | T122: 19510
B123: Note: Enter forecast tax depreciation for regulated assets only, as supplied by the regulated entity. Enter all forecasts in nominal dollars (i.e. do not make any adjustments for inflation)
B125: 2. For businesses that pay tax or tax equivalents and can provide the tax value of assets but cannot provide forecast tax depreciation:
B126: ="Closing value of tax asset base on 30 June "&$J$31 -> Closing value of tax asset base on 30 June 2023 | C126: =C119 -> $'000 nominal | F126: na | G126: na | H126: na | I126: na | J126: 580000 | K126: na | L126: na | M126: na | N126: na | O126: na | P126: na | Q126: na | R126: na | S126: na | T126: na
B127: Average remaining tax life of assets | C127: years | F127: na | G127: na | H127: na | I127: na | J127: 30 | K127: na | L127: na | M127: na | N127: na | O127: na | P127: na | Q127: na | R127: na | S127: na | T127: na
B128: Average expected tax life of new assets | C128: years | F128: na | G128: na | H128: na | I128: na | J128: 40 | K128: na | L128: na | M128: na | N128: na | O128: na | P128: na | Q128: na | R128: na | S128: na | T128: na
B129: Note: The model calculates straight-line tax depreciation. Please include only depreciating assets.
B131: 3. For businesses that have a previously established regulatory tax asset base (TAB) and cannot provide forecast tax depreciation.
B132: ="Opening value of tax asset base on 1 July "&$F$31-1 -> Opening value of tax asset base on 1 July 2018 | C132: =$C$119 -> $'000 nominal | F132: 620000 | G132: na | H132: na | I132: na | J132: na | K132: na | L132: na | M132: na | N132: na | O132: na | P132: na | Q132: na | R132: na | S132: na | T132: na
B135: Accumulated tax loss carried over | C135: =$C$119 -> $'000 nominal | F135: na | G135: na | H135: na | I135: na | J135: na | K135: 0 | L135: na | M135: na | N135: na | O135: na | P135: na | Q135: na | R135: na | S135: na | T135: na
B136: Note: IPART sets the accumulated tax loss to zero in the first year in which a post-tax WACC is applied.
B138: Tax allowance from previous determination
B139: ="Enter the allowance "&$J$49&" (which is dollars of the same year as for allowed depreciation, specified in row"&ROW(B128)&")" -> Enter the allowance $2019-20 (which is dollars of the same year as for allowed depreciation, specified in row128)
B140: Tax allowance from previous determination before adjustment for franking credits (gamma) | C140: =$C$36&", "&J$49 -> $'000, $2019-20 | F140: na | G140: na | H140: na | I140: na | J140: 2770.297071 | L140: Enter zero or leave blank if a pre-tax WACC was used in the previous determination
B141: Adjustment for franking credits (enter as a +ve number) | C141: =C140 -> $'000, $2019-20 | F141: na | G141: na | H141: na | I141: na | J141: 692.5742676
B142: Total tax allowance | C142: =C141 -> $'000, $2019-20 | F142: na | G142: na | H142: na | I142: na | J142: =J140-J141 -> 2077.722803
B143: Total tax allowance, nominal | C143: =$C$119 -> $'000 nominal | F143: na | G143: na | H143: na | I143: na | J143: =J142/'RAB historical'!J$68*'RAB historical'!J$69 -> 2362.241339

Sheet Cost inputs
B3: =Cover!B3 -> IPART TEMPLATE FOR COST BUILDING BLOCKS, SIMPLE TARIFF SETTING AND FINANCIAL RATIO ANALYSIS | F3: =Cover!$B$3 -> IPART TEMPLATE FOR COST BUILDING BLOCKS, SIMPLE TARIFF SETTING AND FINANCIAL RATIO ANALYSIS
B5: 2 COST AND NON-REGULATORY REVENUE INPUTS
B8: List of tables | K8: row number
B9: =B19 -> TABLE 1 - OPERATING EXPENDITURE - enter forecasts in real 2022-23 $'000 | K9: =ROW(B19) -> 19
B10: =B40 -> TABLE 2 - CAPITAL EXPENDITURE - enter forecasts in real 2022-23 $'000 | K10: =ROW(B40) -> 40
B11: =B56 -> TABLE 3 - CAPITAL CONTRIBUTIONS (CASH AND NON-CASH) - enter forecasts in real 2022-23 $'000 | K11: =ROW(B56) -> 56
B12: =B72 -> TABLE 4 - ASSET DISPOSALS - enter forecasts in real 2022-23 $'000 | K12: =ROW(B72) -> 72
B13: =B96 -> TABLE 5 - ADJUSTMENTS TO THE NOTIONAL REVENUE REQUIREMENT (NRR) - enter forecasts in real 2022-23 $'000 | K13: =ROW(B96) -> 96
B14: =B109 -> TABLE 6 - NON-REGULATORY REVENUE - enter forecasts in real 2022-23 $'000 | K14: =ROW(B109) -> 109
B19: ="TABLE 1 - OPERATING EXPENDITURE - enter forecasts in real "&Scenario!$Y$41 -> TABLE 1 - OPERATING EXPENDITURE - enter forecasts in real 2022-23 $'000 | O19: Note: Dates in headings will change with the start date (formula used)
B20: =Scenario!B$115 -> Financial year | C20: ='RAB & tax inputs'!C$31 -> Units | D20: ='RAB & tax inputs'!D$31 -> Constants | F20: ='RAB & tax inputs'!F$32 -> 2018-19 | G20: ='RAB & tax inputs'!G$32 -> 2019-20 | H20: ='RAB & tax inputs'!H$32 -> 2020-21 | I20: ='RAB & tax inputs'!I$32 -> 2021-22 | J20: ='RAB & tax inputs'!J$32 -> 2022-23 | K20: ='RAB & tax inputs'!K$32 -> 2023-24 | L20: ='RAB & tax inputs'!L$32 -> 2024-25 | M20: ='RAB & tax inputs'!M$32 -> 2025-26 | N20: ='RAB & tax inputs'!N$32 -> 2026-27 | O20: ='RAB & tax inputs'!O$32 -> 2027-28 | P20: ='RAB & tax inputs'!P$32 -> 2028-29 | Q20: ='RAB & tax inputs'!Q$32 -> 2029-30 | R20: ='RAB & tax inputs'!R$32 -> 2030-31 | S20: ='RAB & tax inputs'!S$32 -> 2031-32 | T20: ='RAB & tax inputs'!T$32 -> 2032-33
K21: ='RAB & tax inputs'!K$33 -> Determination period is 2023-24 to 2027-28
F22: nominal | G22: nominal | H22: nominal | I22: nominal | J22: nominal | K22: ="Enter all forcasts in "&Scenario!$Y$41 -> Enter all forcasts in 2022-23 $'000
B24: Option 1 (describe in column D) | D24: Agency opex
B25: <item> | C25: ='RAB & tax inputs'!$C$36 -> $'000 | F25: na | G25: na | H25: na | I25: 64940 | J25: 64950 | K25: =ROUND(J25*'Pricing & financial inputs'!K33/'Pricing & financial inputs'!J33,-1) -> 65920 | L25: =ROUND(K25*'Pricing & financial inputs'!L33/'Pricing & financial inputs'!K33,-1) -> 66910 | M25: =ROUND(L25*'Pricing & financial inputs'!M33/'Pricing & financial inputs'!L33,-1) -> 67920 | N25: =ROUND(M25*'Pricing & financial inputs'!N33/'Pricing & financial inputs'!M33,-1) -> 68940 | O25: =ROUND(N25*'Pricing & financial inputs'!O33/'Pricing & financial inputs'!N33,-1) -> 69970 | P25: =ROUND(O25*'Pricing & financial inputs'!P33/'Pricing & financial inputs'!O33,-1) -> 71020 | Q25: =ROUND(P25*'Pricing & financial inputs'!Q33/'Pricing & financial inputs'!P33,-1) -> 72080 | R25: =ROUND(Q25*'Pricing & financial inputs'!R33/'Pricing & financial inputs'!Q33,-1) -> 73160 | S25: =ROUND(R25*'Pricing & financial inputs'!S33/'Pricing & financial inputs'!R33,-1) -> 74260 | T25: =ROUND(S25*'Pricing & financial inputs'!T33/'Pricing & financial inputs'!S33,-1) -> 75370
B26: <item> | C26: ='RAB & tax inputs'!$C$36 -> $'000 | F26: na | G26: na | H26: na
B27: <item> | C27: ='RAB & tax inputs'!$C$36 -> $'000 | F27: na | G27: na | H27: na
B28: <item> | C28: ='RAB & tax inputs'!$C$36 -> $'000 | F28: na | G28: na | H28: na
B29: Total | C29: ='RAB & tax inputs'!$C$36 -> $'000 | F29: na | G29: na | H29: na | I29: =SUM(I25:I28) -> 64940 | J29: =SUM(J25:J28) -> 64950 | K29: 65920 | L29: 66910 | M29: 67920 | N29: 68940 | O29: 69970 | P29: 71020 | Q29: 72080 | R29: 73160 | S29: 74260 | T29: 75370
B31: Option 2 (describe in column D) | D31: Regulator opex
B32: <item> | C32: ='RAB & tax inputs'!$C$36 -> $'000 | F32: na | G32: na | H32: na | I32: 64940 | J32: 63650 | K32: 63700 | L32: 63850 | M32: 63990 | N32: 64140 | O32: 64290 | P32: 64440 | Q32: 64580 | R32: 64730 | S32: 64880 | T32: 65020
B33: <item> | C33: ='RAB & tax inputs'!$C$36 -> $'000 | F33: na | G33: na | H33: na
B34: <item> | C34: ='RAB & tax inputs'!$C$36 -> $'000 | F34: na | G34: na | H34: na
B35: <item> | C35: ='RAB & tax inputs'!$C$36 -> $'000 | F35: na | G35: na | H35: na
B36: Total | C36: ='RAB & tax inputs'!$C$36 -> $'000 | I36: =SUM(I32:I35) -> 64940 | J36: =SUM(J32:J35) -> 63650 | K36: =SUM(K32:K35) -> 63700 | L36: =SUM(L32:L35) -> 63850 | M36: =SUM(M32:M35) -> 63990 | N36: =SUM(N32:N35) -> 64140 | O36: =SUM(O32:O35) -> 64290 | P36: =SUM(P32:P35) -> 64440 | Q36: =SUM(Q32:Q35) -> 64580 | R36: =SUM(R32:R35) -> 64730 | S36: =SUM(S32:S35) -> 64880 | T36: =SUM(T32:T35) -> 65020
B40: ="TABLE 2 - CAPITAL EXPENDITURE - enter forecasts in real "&Scenario!$Y$41 -> TABLE 2 - CAPITAL EXPENDITURE - enter forecasts in real 2022-23 $'000
B41: =B$20 -> Financial year | C41: Units | D41: Constants | F41: 2018-19 | G41: 2019-20 | H41: 2020-21 | I41: 2021-22 | J41: 2022-23 | K41: =K$20 -> 2023-24 | L41: =L$20 -> 2024-25 | M41: 2025-26 | N41: 2026-27 | O41: 2027-28 | P41: 2028-29 | Q41: 2029-30 | R41: 2030-31 | S41: 2031-32 | T41: 2032-33
F42: =F$22 -> nominal | G42: nominal | H42: nominal | I42: nominal | J42: nominal | K42: =K$22 -> Enter all forcasts in 2022-23 $'000
B44: Option 1 (describe in column D) | D44: Agency capex
B45: - depreciating assets | C45: ='RAB & tax inputs'!$C$36 -> $'000 | F45: 34000 | G45: 33000 | H45: 21000 | I45: 35000 | J45: 65000 | K45: 95000 | L45: 120000 | M45: 70000 | N45: 44000 | O45: 54000 | P45: 43000 | Q45: 32000 | R45: 32500 | S45: 33000 | T45: 33500
B46: - non-depreciating assets | C46: ='RAB & tax inputs'!$C$36 -> $'000 | G46: 2000 | J46: 200 | K46: 4000 | N46: 5000
B47: Total | F47: =SUM(F45:F46) -> 34000 | G47: =SUM(G45:G46) -> 35000 | H47: =SUM(H45:H46) -> 21000 | I47: 35000 | J47: 65200 | K47: 99000 | L47: 120000 | M47: 70000 | N47: 49000 | O47: 54000 | P47: 43000 | Q47: 32000 | R47: 32500 | S47: 33000 | T47: 33500
B49: Option 2 (describe in column D) | D49: Regulator capex
B50: =B$45 -> - depreciating assets | C50: ='RAB & tax inputs'!$C$36 -> $'000 | F50: 33900 | G50: 32900 | H50: 20900 | I50: 34900 | J50: 64900 | K50: =ROUND(K45*95%,-1) -> 90250 | L50: =ROUND(L45*95%,-1) -> 114000 | M50: 66500 | N50: 41800 | O50: 51300 | P50: 40850 | Q50: 30400 | R50: 30880 | S50: 31350 | T50: 31830
B51: =B$46 -> - non-depreciating assets | C51: ='RAB & tax inputs'!$C$36 -> $'000 | G51: 1900 | J51: 190 | K51: 2000 | L51: 2000 | N51: 4990
B52: =B$46 -> - non-depreciating assets | F52: =SUM(F50:F51) -> 33900 | G52: =SUM(G50:G51) -> 34800 | H52: =SUM(H50:H51) -> 20900 | I52: =SUM(I50:I51) -> 34900 | J52: =SUM(J50:J51) -> 65090 | K52: =SUM(K50:K51) -> 92250 | L52: =SUM(L50:L51) -> 116000 | M52: =SUM(M50:M51) -> 66500 | N52: =SUM(N50:N51) -> 46790 | O52: =SUM(O50:O51) -> 51300 | P52: =SUM(P50:P51) -> 40850 | Q52: =SUM(Q50:Q51) -> 30400 | R52: =SUM(R50:R51) -> 30880 | S52: =SUM(S50:S51) -> 31350 | T52: =SUM(T50:T51) -> 31830
B56: ="TABLE 3 - CAPITAL CONTRIBUTIONS (CASH AND NON-CASH) - enter forecasts in real "&Scenario!$Y$41 -> TABLE 3 - CAPITAL CONTRIBUTIONS (CASH AND NON-CASH) - enter forecasts in real 2022-23 $'000
B57: =B$20 -> Financial year | C57: Units | D57: Constants | F57: 2018-19 | G57: 2019-20 | H57: 2020-21 | I57: 2021-22 | J57: 2022-23 | K57: =K$20 -> 2023-24 | L57: =L$20 -> 2024-25 | M57: 2025-26 | N57: 2026-27 | O57: 2027-28 | P57: 2028-29 | Q57: 2029-30 | R57: 2030-31 | S57: 2031-32 | T57: 2032-33
F58: =F$22 -> nominal | G58: nominal | H58: nominal | I58: nominal | J58: nominal | K58: =K$22 -> Enter all forcasts in 2022-23 $'000
B59: Cash capital contributions (before tax)
B60: Option 1 (describe in column D) | D60: Agency cap cons
B61: =B$45 -> - depreciating assets | C61: ='RAB & tax inputs'!$C$36 -> $'000 | H61: 3000 | I61: 200 | J61: 350 | K61: 1000 | L61: 200 | M61: 500 | N61: 400
B62: =B$46 -> - non-depreciating assets | C62: ='RAB & tax inputs'!$C$36 -> $'000
B64: Option 2 (describe in column D) | D64: Regulator cap cons
B65: =B$45 -> - depreciating assets | C65: ='RAB & tax inputs'!$C$36 -> $'000 | H65: 2990 | I65: 210 | J65: 340 | K65: 1010 | L65: 210 | M65: 510 | N65: 410
B66: =B$46 -> - non-depreciating assets | C66: ='RAB & tax inputs'!$C$36 -> $'000 | H66: 8 | I66: 9 | J66: 19 | K66: 20 | L66: 21 | M66: 22 | N66: 23
B68: Non-cash asset contributions | C68: ='RAB & tax inputs'!$C$36 -> $'000 | F68: 60 | G68: 70 | H68: 64 | I68: 900 | J68: 900 | K68: 950 | L68: 1200 | M68: 1100 | N68: 1200 | O68: 1200 | P68: 1200 | Q68: 1200 | R68: 1200 | S68: 1200 | T68: 1200
B72: ="TABLE 4 - ASSET DISPOSALS - enter forecasts in real "&Scenario!$Y$41 -> TABLE 4 - ASSET DISPOSALS - enter forecasts in real 2022-23 $'000 | O72: =O19 -> Note: Dates in headings will change with the start date (formula used)
B73: =B$20 -> Financial year | C73: Units | D73: Constants | F73: 2018-19 | G73: 2019-20 | H73: 2020-21 | I73: 2021-22 | J73: 2022-23 | K73: =K$20 -> 2023-24 | L73: =L$20 -> 2024-25 | M73: 2025-26 | N73: 2026-27 | O73: 2027-28 | P73: 2028-29 | Q73: 2029-30 | R73: 2030-31 | S73: 2031-32 | T73: 2032-33
F74: =F$22 -> nominal | G74: nominal | H74: nominal | I74: nominal | J74: nominal | K74: =K$22 -> Enter all forcasts in 2022-23 $'000
B76: Asset disposals - Regulatory values removed from RAB | H76: See our 2022 asset disposals policy | K76: IPART, Our water regulatory framework Technical Paper, November 2022, Appendix A
B77: Note: IPART regulatory values differ from book (accounting) values. | K77: Also see the Draft Handbook, December 2022 Appendix A
B78: Revenue from asset sales (net of sales and remediation costs and capital gains tax)
B79: ="Revenue from asset sales"&$B$45 -> Revenue from asset sales - depreciating assets | C79: ='RAB & tax inputs'!C$36 -> $'000 | F79: 1100 | G79: 1000 | H79: 1000 | I79: 1000 | J79: 1000 | K79: 1200 | L79: 1000 | M79: 1000 | N79: 1000 | O79: 1000 | P79: 1000 | Q79: 1000 | R79: 1000 | S79: 1000 | T79: 1000
B80: ="Revenue from asset sales"&$B$46 -> Revenue from asset sales - non-depreciating assets | C80: ='RAB & tax inputs'!C$36 -> $'000 | F80: 770 | I80: 500 | K80: 300 | L80: 350
F81: =SUM(F79:F80) -> 1870 | G81: 1000 | H81: 1000 | I81: 1500 | J81: 1000 | K81: 1500 | L81: 1350 | M81: 1000 | N81: 1000 | O81: 1000 | P81: 1000 | Q81: 1000 | R81: 1000 | S81: 1000 | T81: 1000
B82: Regulatory values removed from RAB
B83: =$B$45 -> - depreciating assets | C83: ='RAB & tax inputs'!C$36 -> $'000
B84: default = 50% net revenue from sales | C84: ='RAB & tax inputs'!C$36 -> $'000 | D84: 0.5 | F84: =IF(ISBLANK(F83),F79*$D84,F83) -> 550 | G84: 500 | H84: 500 | I84: 500 | J84: 500 | K84: 600 | L84: 500 | M84: 500 | N84: 500 | O84: 500 | P84: 500 | Q84: 500 | R84: 500 | S84: 500 | T84: 500
B85: =$B$46 -> - non-depreciating assets | C85: ='RAB & tax inputs'!C$36 -> $'000
B86: =B84 -> default = 50% net revenue from sales | C86: ='RAB & tax inputs'!C$36 -> $'000 | D86: =D84 -> 0.5 | F86: =IF(ISBLANK(F85),F80*$D86,F85) -> 385 | G86: 0 | H86: 0 | I86: 250 | J86: 0 | K86: 150 | L86: 175 | M86: 0 | N86: 0 | O86: 0 | P86: 0 | Q86: 0 | R86: 0 | S86: 0 | T86: 0
B87: Total regulatory value of assets removed from the RAB | C87: =C86 -> $'000 | F87: =F86+F84 -> 935 | G87: 500 | H87: 500 | I87: 750 | J87: 500 | K87: 750 | L87: 675 | M87: 500 | N87: 500 | O87: 500 | P87: 500 | Q87: 500 | R87: 500 | S87: 500 | T87: 500
B89: Regulatory profit/loss on asset disposals (regulatory)
B90: Regulatory profit/loss | C90: ='RAB & tax inputs'!C$36 -> $'000 | F90: =SUM(F79:F80)-F87 -> 935 | G90: 500 | H90: 500 | I90: 750 | J90: 500 | K90: 750 | L90: 675 | M90: 500 | N90: 500 | O90: 500 | P90: 500 | Q90: 500 | R90: 500 | S90: 500 | T90: 500
B91: Share of profit/loss allocated to shareholders | C91: % | V91: Customers' share of profit is used to offset costs (or their share of the loss is added to costs) before prices are set
B92: default = 100% (IPART's 2022 policy) | C92: % | F92: =IF(ISBLANK(F91),1,F91) -> 1 | G92: 1 | H92: 1 | I92: 1 | J92: 1 | K92: 1 | L92: 1 | M92: 1 | N92: 1 | O92: 1 | P92: 1 | Q92: 1 | R92: 1 | S92: 1 | T92: 1
B96: ="TABLE 5 - ADJUSTMENTS TO THE NOTIONAL REVENUE REQUIREMENT (NRR) - enter forecasts in real "&Scenario!$Y$41 -> TABLE 5 - ADJUSTMENTS TO THE NOTIONAL REVENUE REQUIREMENT (NRR) - enter forecasts in real 2022-23 $'000
B97: =B$20 -> Financial year | C97: Units | D97: Constants | F97: =F$20 -> 2018-19 | G97: 2019-20 | H97: 2020-21 | I97: 2021-22 | J97: 2022-23 | K97: =K$20 -> 2023-24 | L97: =L$20 -> 2024-25 | M97: 2025-26 | N97: 2026-27 | O97: 2027-28 | P97: 2028-29 | Q97: 2029-30 | R97: 2030-31 | S97: 2031-32 | T97: 2032-33
F98: =F$22 -> nominal | G98: nominal | H98: nominal | I98: nominal | J98: nominal | K98: =K$22 -> Enter all forcasts in 2022-23 $'000
B100: Name of adjustment
B101: Cost of debt true-up | C101: ='RAB & tax inputs'!C$36 -> $'000 | F101: na | G101: na | H101: na | I101: na | J101: na | K101: -20
B102: Demand volatility adjustment | C102: ='RAB & tax inputs'!C$36 -> $'000 | F102: na | G102: na | H102: na | I102: na | J102: na | K102: 25
B103: Incentive scheme adjustment | C103: ='RAB & tax inputs'!C$36 -> $'000 | F103: na | G103: na | H103: na | I103: na | J103: na | K103: 1000
C104: ='RAB & tax inputs'!C$36 -> $'000 | F104: na | G104: na | H104: na | I104: na | J104: na
B105: Total adjustments | C105: ='RAB & tax inputs'!C$36 -> $'000 | F105: na | G105: na | H105: na | I105: na | J105: na | K105: =SUM(K101:K104) -> 1005 | L105: 0 | M105: 0 | N105: 0 | O105: 0 | P105: 0 | Q105: 0 | R105: 0 | S105: 0 | T105: 0
B109: ="TABLE 6 - NON-REGULATORY REVENUE - enter forecasts in real "&Scenario!$Y$41 -> TABLE 6 - NON-REGULATORY REVENUE - enter forecasts in real 2022-23 $'000
B110: Non-regulatory revenue to be deducted from costs before prices are set (excluding developer charges and profit/loss on the asset sales)
B111: =B$20 -> Financial year | C111: Units | D111: Constants | F111: 2018-19 | G111: 2019-20 | H111: 2020-21 | I111: 2021-22 | J111: 2022-23 | K111: =K$20 -> 2023-24 | L111: =L$20 -> 2024-25 | M111: 2025-26 | N111: 2026-27 | O111: 2027-28 | P111: 2028-29 | Q111: 2029-30 | R111: 2030-31 | S111: 2031-32 | T111: 2032-33
F112: =F$22 -> nominal | G112: nominal | H112: nominal | I112: nominal | J112: nominal | K112: =K$22 -> Enter all forcasts in 2022-23 $'000
B114: Our 2022 policy is to share the profits from non-regulatory activities 50:50 between customers and shareholders. Non-regulatory activities are activities that use regulated assets to produce unregulated goods and services.
B115: See our 2022 policy on non-regulatory activities | C115: IPART, Our water regulatory framework Technical Paper, November 2022, Appendix A | K115: Also see the Draft Handbook, Appendix A
B117: Total profit from non-regulatory activities | C117: ='RAB & tax inputs'!C$36 -> $'000 | F117: 2000 | G117: 2000 | H117: 2000 | I117: 2000 | J117: 2000 | K117: -2000 | L117: 2000 | M117: 2000 | N117: 2000 | O117: 2000 | P117: 2000 | Q117: 2000 | R117: 2000 | S117: 2000 | T117: 2000 | V117: To mitigate the impact of early losses, the business may combine the profits and losses from non-regulatory activities and share the net profits between customers and shareholders.
B119: Share of non-regulatory revenue allocated to customers | C119: % | F119: 0.5 | G119: 0.5 | H119: 0.5 | I119: 0.5 | J119: 0.5 | K119: 0.5 | L119: 0.5 | M119: 0.5 | N119: 0.5 | O119: 0.5 | P119: 0.5 | Q119: 0.5 | R119: 0.5 | S119: 0.5 | T119: 0.5 | V119: The revenue allocated to customers is used to offset costs before prices are set
B121: Customers' share (must be >0, shareholders bear losses) | C121: =C117 -> $'000 | F121: =MAX(0,F117*F119) -> 1000 | G121: 1000 | H121: 1000 | I121: 1000 | J121: 1000 | K121: 0 | L121: 1000 | M121: 1000 | N121: 1000 | O121: 1000 | P121: 1000 | Q121: 1000 | R121: 1000 | S121: 1000 | T121: 1000 | V121: Shareholders bear 100% of the program's losses to protect customers from the risk of loss for activities over which they have no control and from which they do not directly benefit.

Sheet Pricing & financial inputs
B1: =Cover!B1 -> THE INDEPENDENT PRICING AND REGULATORY TRIBUNAL OF NSW | F1: =Cover!$B$3 -> IPART TEMPLATE FOR COST BUILDING BLOCKS, SIMPLE TARIFF SETTING AND FINANCIAL RATIO ANALYSIS
B3: 3 PRICING AND FINANCIAL INPUTS
B6: List of tables | G6: row number
B7: =B14 -> TABLE 1 - INFLATION | G7: =ROW(B14) -> 14
B8: =B28 -> TABLE 2 - SALES VOLUMES AND CUSTOMER NUMBERS | G8: =ROW(B28) -> 28
B9: =B41 -> TABLE 3 - PRICES and BILLS | G9: =ROW(B41) -> 41
B10: =B62 -> TABLE 4 - FINANCIAL STATEMENTS AND RATIOS | G10: =ROW(B62) -> 62
B14: TABLE 1 - INFLATION
B15: ='RAB & tax inputs'!B$32 -> Financial year | F15: ='RAB & tax inputs'!F$32 -> 2018-19 | G15: ='RAB & tax inputs'!G$32 -> 2019-20 | H15: ='RAB & tax inputs'!H$32 -> 2020-21 | I15: ='RAB & tax inputs'!I$32 -> 2021-22 | J15: ='RAB & tax inputs'!J$32 -> 2022-23 | K15: ='RAB & tax inputs'!K$32 -> 2023-24 | L15: ='RAB & tax inputs'!L$32 -> 2024-25 | M15: ='RAB & tax inputs'!M$32 -> 2025-26 | N15: ='RAB & tax inputs'!N$32 -> 2026-27 | O15: ='RAB & tax inputs'!O$32 -> 2027-28 | P15: ='RAB & tax inputs'!P$32 -> 2028-29 | Q15: ='RAB & tax inputs'!Q$32 -> 2029-30 | R15: ='RAB & tax inputs'!R$32 -> 2030-31 | S15: ='RAB & tax inputs'!S$32 -> 2031-32 | T15: ='RAB & tax inputs'!T$32 -> 2032-33
J16: ='RAB & tax inputs'!J$33 -> Previous determinations | K16: ='RAB & tax inputs'!K$33 -> Determination period is 2023-24 to 2027-28
B18: Inflation rates and indices
B19: ="Inflation for costs (actual to June "&LEFT(J15,4)&", then forecast)" -> Inflation for costs (actual to June 2022, then forecast) | C19: see comment | F19: 0.016 | G19: -0.003 | H19: 0.038 | I19: 0.061 | J19: 0.052 | K19: 0.025 | L19: 0.025 | M19: 0.025 | N19: 0.025 | O19: 0.025 | P19: 0.025 | Q19: 0.025 | R19: 0.025 | S19: 0.025 | T19: 0.025
B20: Inflation applied to costs | F20: =F19 -> 0.016 | G20: =G19 -> -0.003 | H20: =H19 -> 0.038 | I20: =I19 -> 0.061 | J20: =J19 -> 0.052 | K20: 0 | L20: 0 | M20: 0 | N20: 0 | O20: 0 | P20: 0 | Q20: 0 | R20: 0 | S20: 0 | T20: 0
B21: Index applied to forecast costs | F21: 1 | G21: 1 | H21: 1 | I21: 1 | J21: 1 | K21: =J21*(1+K20) -> 1 | L21: 1 | M21: 1 | N21: 1 | O21: 1 | P21: 1 | Q21: 1 | R21: 1 | S21: 1 | T21: 1
B22: ="Index for historical prices and costs to "&$J$15&" prices" -> Index for historical prices and costs to 2022-23 prices | F22: =G22*(1+G20) -> 1.155110776 | G22: =H22*(1+H20) -> 1.158586536 | H22: =I22*(1+I20) -> 1.116172 | I22: =J22*(1+J20) -> 1.052 | J22: 1
B24: Inflation for prices (actual to March, lagged by 1 year, rounded) | F24: 0.019 | G24: 0.013 | H24: 0.022 | I24: 0.011 | J24: 0.051 | K24: 0.063 | L24: 0.025 | M24: 0.025 | N24: 0.025 | O24: 0.025 | P24: 0.025 | Q24: 0.025 | R24: 0.025 | S24: 0.025 | T24: 0.025
B28: TABLE 2 - SALES VOLUMES AND CUSTOMER NUMBERS
B29: =B$15 -> Financial year | I29: =I$15 -> 2021-22 | J29: 2022-23 | K29: 2023-24 | L29: 2024-25 | M29: 2025-26 | N29: 2026-27 | O29: 2027-28 | P29: 2028-29 | Q29: 2029-30 | R29: 2030-31 | S29: 2031-32 | T29: 2032-33
K30: =K$16 -> Determination period is 2023-24 to 2027-28
B32: Number of customers
B33: Number of customers paying access charge | C33: no. | I33: 205800 | J33: 210000 | K33: 213150 | L33: 216350 | M33: 219600 | N33: 222890 | O33: 226230 | P33: 229620 | Q33: 233060 | R33: 236560 | S33: 240110 | T33: 243710
B35: Sales volumes
B36: Volumes sold at Tier 1 price | C36: ML per year | E36: beware of units | I36: 39985 | J36: 40800 | K36: 41400 | L36: 42010 | M36: 42630 | N36: 43260 | O36: 43690 | P36: 44350 | Q36: 45020 | R36: 45700 | S36: 46390 | T36: 47090
B37: Volumes sold at Tier 2 price | C37: =C36 -> ML per year | I37: 8330 | J37: 8500 | K37: 8600 | L37: 8600 | M37: 8600 | N37: 8600 | O37: 8690 | P37: 8780 | Q37: 8870 | R37: 8960 | S37: 9050 | T37: 9140
B41: TABLE 3 - PRICES and BILLS
B42: ='RAB & tax inputs'!B$32 -> Financial year | C42: ='RAB & tax inputs'!C$31 -> Units | D42: ='RAB & tax inputs'!D$31 -> Constants | F42: ='RAB & tax inputs'!F$32 -> 2018-19 | G42: ='RAB & tax inputs'!G$32 -> 2019-20 | H42: ='RAB & tax inputs'!H$32 -> 2020-21 | I42: ='RAB & tax inputs'!I$32 -> 2021-22 | J42: ='RAB & tax inputs'!J$32 -> 2022-23 | K42: ='RAB & tax inputs'!K$32 -> 2023-24 | L42: ='RAB & tax inputs'!L$32 -> 2024-25 | M42: ='RAB & tax inputs'!M$32 -> 2025-26 | N42: ='RAB & tax inputs'!N$32 -> 2026-27 | O42: ='RAB & tax inputs'!O$32 -> 2027-28 | P42: ='RAB & tax inputs'!P$32 -> 2028-29 | Q42: ='RAB & tax inputs'!Q$32 -> 2029-30 | R42: ='RAB & tax inputs'!R$32 -> 2030-31 | S42: ='RAB & tax inputs'!S$32 -> 2031-32 | T42: ='RAB & tax inputs'!T$32 -> 2032-33
K43: =K$16 -> Determination period is 2023-24 to 2027-28
F44: ='Cost inputs'!F$22 -> nominal | G44: ='Cost inputs'!G$22 -> nominal | H44: ='Cost inputs'!H$22 -> nominal | I44: ='Cost inputs'!I$22 -> nominal | J44: ='Cost inputs'!J$22 -> nominal | K44: ="Enter all forecasts in real $ "&J42 -> Enter all forecasts in real $ 2022-23
B46: Current prices
B47: Access charge | C47: $/year | D47: beware of units | I47: 50 | J47: 50
B48: Usage charge for Tier 1 consumption | C48: $/kL | D48: beware of units | I48: 2 | J48: 2
B49: Usage charge for Tier 2 consumption | C49: =C48 -> $/kL | I49: 2.5 | J49: 2.5
B51: Tier 1 price for annual consumption up to | C51: kL per year | D51: Leave blank for a one-tier price structure | I51: 150 | J51: 150 | K51: 150 | L51: 150 | M51: 150 | N51: 150 | O51: 150 | P51: 150 | Q51: 150 | R51: 150 | S51: 150 | T51: 150
B53: Consumption volumes for calculation of bills
B54: Small customer | C54: kL per year | D54: 100
B55: Medium customer | C55: =C54 -> kL per year | D55: 200
B56: Large customer | C56: =C55 -> kL per year | D56: 400
B58: Pensioner rebates | C58: ='RAB & tax inputs'!$J$32&" $ per year" -> 2022-23 $ per year | I58: 90 | J58: 90 | K58: 90 | L58: 90 | M58: 90 | N58: 90 | O58: 90 | P58: 90 | Q58: 90 | R58: 90 | S58: 90 | T58: 90
B62: TABLE 4 - FINANCIAL STATEMENTS AND RATIOS
B63: ='RAB & tax inputs'!B$32 -> Financial year | C63: ='RAB & tax inputs'!C$31 -> Units | D63: ='RAB & tax inputs'!D$31 -> Constants | F63: ='RAB & tax inputs'!F$32 -> 2018-19 | G63: ='RAB & tax inputs'!G$32 -> 2019-20 | H63: ='RAB & tax inputs'!H$32 -> 2020-21 | I63: ='RAB & tax inputs'!I$32 -> 2021-22 | J63: ='RAB & tax inputs'!J$32 -> 2022-23 | K63: ='RAB & tax inputs'!K$32 -> 2023-24 | L63: ='RAB & tax inputs'!L$32 -> 2024-25 | M63: ='RAB & tax inputs'!M$32 -> 2025-26 | N63: ='RAB & tax inputs'!N$32 -> 2026-27 | O63: ='RAB & tax inputs'!O$32 -> 2027-28 | P63: ='RAB & tax inputs'!P$32 -> 2028-29 | Q63: ='RAB & tax inputs'!Q$32 -> 2029-30 | R63: ='RAB & tax inputs'!R$32 -> 2030-31 | S63: ='RAB & tax inputs'!S$32 -> 2031-32 | T63: ='RAB & tax inputs'!T$32 -> 2032-33
K64: =K$16 -> Determination period is 2023-24 to 2027-28
F65: ='Cost inputs'!F$22 -> nominal | G65: ='Cost inputs'!G$22 -> nominal | H65: ='Cost inputs'!H$22 -> nominal | I65: ='Cost inputs'!I$22 -> nominal | J65: ='Cost inputs'!J$22 -> nominal | K65: ='Cost inputs'!$K$74 -> Enter all forcasts in 2022-23 $'000
B67: Corporate tax rate
B68: Tax rate | C68: %
B69: default = tax rate used for WACC | C69: % | F69: =IF(ISBLANK(F68),WACC!$F$40,F68) -> 0.3 | G69: =IF(ISBLANK(G68),WACC!$F$40,G68) -> 0.3 | H69: =IF(ISBLANK(H68),WACC!$F$40,H68) -> 0.3 | I69: =IF(ISBLANK(I68),WACC!$F$40,I68) -> 0.3 | J69: =IF(ISBLANK(J68),WACC!$F$40,J68) -> 0.3 | K69: =IF(ISBLANK(K68),WACC!K14,K68) -> 0.3 | L69: =IF(ISBLANK(L68),WACC!L14,L68) -> 0.3 | M69: =IF(ISBLANK(M68),WACC!M14,M68) -> 0.3 | N69: =IF(ISBLANK(N68),WACC!N14,N68) -> 0.3 | O69: =IF(ISBLANK(O68),WACC!O14,O68) -> 0.3 | P69: =IF(ISBLANK(P68),WACC!P14,P68) -> 0.3 | Q69: =IF(ISBLANK(Q68),WACC!Q14,Q68) -> 0.3 | R69: =IF(ISBLANK(R68),WACC!R14,R68) -> 0.3 | S69: =IF(ISBLANK(S68),WACC!S14,S68) -> 0.3 | T69: =IF(ISBLANK(T68),WACC!T14,T68) -> 0.3
B71: Dividends
B72: Expected dividend payments | C72: ='RAB & tax inputs'!$C$36 -> $'000 | F72: na | G72: na | H72: na | I72: 4000 | J72: 4090 | K72: 6140 | L72: 6630 | M72: 8500 | N72: 9420 | O72: 9520 | P72: 9540 | Q72: 9940 | R72: 10720 | S72: 11550 | T72: 12490
B74: Expected dividend payout rate | C74: % | F74: na | G74: na | H74: na | I74: 0.5 | J74: 0.5 | K74: 0.5 | L74: 0.5 | M74: 0.5 | N74: 0.5 | O74: 0.5 | P74: 0.5 | Q74: 0.5 | R74: 0.5 | S74: 0.5 | T74: 0.5
B76: Cost of debt
B77: Actual cost of debt
B78: - expected share of debt paid at nominal cost of debt | C78: % | F78: na | G78: na | H78: na | I78: 1 | J78: 1 | K78: 1 | L78: 1 | M78: 1 | N78: 1 | O78: 1 | P78: 1 | Q78: 1 | R78: 1 | S78: 1 | T78: 1
B79: - expected cost of nominal debt | C79: % | F79: na | G79: na | H79: na | I79: 0.05 | J79: 0.05 | K79: 0.056 | L79: 0.056 | M79: 0.056 | N79: 0.056 | O79: 0.056 | P79: 0.056 | Q79: 0.056 | R79: 0.056 | S79: 0.056 | T79: 0.056
B80: - expected cost of real debt (e.g. inflation linked and low coupon bonds) % | F80: na | G80: na | H80: na
B81: - default = nominal cost of debt with inflation removed | C81: % | F81: na | G81: na | H81: na | I81: =IF(ISBLANK(I80),(1+I79)/(1+I19)-1,I80) -> -0.01036757776 | J81: -0.001901140684 | K81: 0.03024390244 | L81: 0.03024390244 | M81: 0.03024390244 | N81: 0.03024390244 | O81: 0.03024390244 | P81: 0.03024390244 | Q81: 0.03024390244 | R81: 0.03024390244 | S81: 0.03024390244 | T81: 0.03024390244
B82: Expected actual average cost of debt | C82: % | F82: na | G82: na | H82: na | I82: =I78*I79+(1-I78)*I81 -> 0.05 | J82: =J78*J79+(1-J78)*J81 -> 0.05 | K82: =K78*K79+(1-K78)*K81 -> 0.056 | L82: 0.056 | M82: 0.056 | N82: 0.056 | O82: 0.056 | P82: 0.056 | Q82: 0.056 | R82: 0.056 | S82: 0.056 | T82: 0.056
F83: na | G83: na | H83: na
B84: Benchmark real cost of debt (from WACC) | C84: % | F84: na | G84: na | H84: na | I84: 0.032 | J84: 0.032 | K84: =WACC!$F$49 -> 0.01603498542 | L84: =$K84 -> 0.01603498542 | M84: =$K84 -> 0.01603498542 | N84: 0.01603498542 | O84: 0.01603498542 | P84: 0.01603498542 | Q84: 0.01603498542 | R84: 0.01603498542 | S84: 0.01603498542 | T84: 0.01603498542
B86: Financial statement opening values (nominal $'000)
B87: Retained earnings | C87: ='RAB & tax inputs'!$C$36 -> $'000 | F87: na | G87: na | H87: 4000 | I87: na | J87: na | K87: na | L87: na | M87: na | N87: na | O87: na | P87: na | Q87: na | R87: na | S87: na | T87: na
B88: Closing cash assets | C88: =C90 -> $'000 | F88: na | G88: na | H88: na | I88: 10000 | J88: 10000 | K88: na | L88: na | M88: na | N88: na | O88: na | P88: na | Q88: na | R88: na | S88: na | T88: na
B90: Closing debt (excluding operating lease debt obligation) | C90: =C87 -> $'000 | F90: na | G90: na | H90: na | I90: 400000 | J90: 450000 | K90: na | L90: na | M90: na | N90: na | O90: na | P90: na | Q90: na | R90: na | S90: na | T90: na
B91: Net Debt/(RAB + net working capital) (for guidance, if you wish to set an opening gearing ratio) | I91: =(I90-I88)/(SUM('Financials actual'!I69:I71)-'Financials actual'!I73) -> 0.4958974696 | J91: =(J90-J88)/(SUM('Financials actual'!J69:J71)-'Financials actual'!J73) -> 0.4994939431 | V91: see comment
B93: Asset revaluation reserve | C93: =C90 -> $'000 | F93: na | G93: na | H93: na | K93: na | L93: na | M93: na | N93: na | O93: na | P93: na | Q93: na | R93: na | S93: na | T93: na
B94: default = sum of indexation over historical period | C94: =C93 -> $'000 | F94: na | G94: na | H94: na | I94: =IF(ISBLANK(I93),SUM('RAB historical'!$F62:I62),I93) -> 76413.14889 | J94: =IF(ISBLANK(J93),SUM('RAB historical'!$F62:J62),J93) -> 116580.1076 | K94: na | L94: na | M94: na | N94: na | O94: na | P94: na | Q94: na | R94: na | S94: na | T94: na
F95: na | G95: na | H95: na
B96: Ratio adjustments
B97: Operating leases | C97: ="Note: The operating lease expense in "&'RAB & tax inputs'!I32&" should be based on the business' statutory financial statements." -> Note: The operating lease expense in 2021-22 should be based on the business' statutory financial statements. | V97: see comment
B98: Operating lease expense | C98: ='RAB & tax inputs'!$C$36 -> $'000 | F98: na | G98: na | H98: na | I98: 340
B99: Default = previous year value. | C99: =C98 -> $'000 | F99: na | G99: na | H99: na | I99: =I98 -> 340 | J99: =I98 -> 340 | K99: =J100 -> 340 | L99: 340 | M99: 340 | N99: 340 | O99: 340 | P99: 340 | Q99: 340 | R99: 340 | S99: 340 | T99: 340
B100: Operating lease expense used in model | C100: =C99 -> $'000 | F100: na | G100: na | H100: na | I100: =I99 -> 340 | J100: =IF(ISBLANK(J98),J99,J98) -> 340 | K100: 340 | L100: 340 | M100: 340 | N100: 340 | O100: 340 | P100: 340 | Q100: 340 | R100: 340 | S100: 340 | T100: 340 | V100: Note: IPART will use the latest actual data from the financial statements
F101: Note: Please estimate the debt, interest and depreciation obligations for lease before and after 1 January 2019 on a consistent basis.
B102: Operating lease debt obligation | C102: =C98 -> $'000 | F102: na | G102: na | H102: na | I102: 1360 | J102: 1360 | K102: 1360 | L102: 1360 | M102: 1360 | N102: 1360 | O102: 1360 | P102: 1360 | Q102: 1360 | R102: 1360 | S102: 1360 | T102: 1360 | V102: Note: IPART will use the latest actual data from the financial statements
B103: Operating lease expense allocated to interest expense | C103: =C102 -> $'000 | F103: na | G103: na | H103: na | I103: 136 | J103: 136 | K103: 136 | L103: 136 | M103: 136 | N103: 136 | O103: 136 | P103: 136 | Q103: 136 | R103: 136 | S103: 136 | T103: 136
B104: Operating lease expense allocated to depreciation | C104: =C103 -> $'000 | F104: na | G104: na | H104: na
B105: default = lease expense less interest component | C105: =C104 -> $'000 | F105: na | G105: na | H105: na | I105: =IF(ISBLANK(I104),I100-I103,I104) -> 204 | J105: =IF(ISBLANK(J104),J100-J103,J104) -> 204 | K105: 204 | L105: 204 | M105: 204 | N105: 204 | O105: 204 | P105: 204 | Q105: 204 | R105: 204 | S105: 204 | T105: 204
B107: Superannuation adjustment | V107: see comment
B108: Value of unfunded defined benefit liability | C108: ='RAB & tax inputs'!$C$36 -> $'000 | F108: na | G108: na | H108: na | I108: 2500 | V108: see comment
B109: default = previous year's value | C109: =C108 -> $'000 | F109: na | G109: na | H109: na | I109: =I108 -> 2500 | J109: =I108 -> 2500 | K109: =J110 -> 2500 | L109: 2500 | M109: 2500 | N109: 2500 | O109: 2500 | P109: 2500 | Q109: 2500 | R109: 2500 | S109: 2500 | T109: 2500
B110: Superannuation adjustment used in model | C110: =C109 -> $'000 | F110: na | G110: na | H110: na | I110: =I109 -> 2500 | J110: =IF(ISBLANK(J108),J109,J108) -> 2500 | K110: 2500 | L110: 2500 | M110: 2500 | N110: 2500 | O110: 2500 | P110: 2500 | Q110: 2500 | R110: 2500 | S110: 2500 | T110: 2500 | V110: =V100 -> Note: IPART will use the latest actual data from the financial statements

Sheet WACC
B1: =Cover!B1 -> THE INDEPENDENT PRICING AND REGULATORY TRIBUNAL OF NSW | F1: =Cover!$B$3 -> IPART TEMPLATE FOR COST BUILDING BLOCKS, SIMPLE TARIFF SETTING AND FINANCIAL RATIO ANALYSIS
B3: 4 WACC
B5: List of tables | G5: row number
B6: =B11 -> TABLE 1 - CORPORATE TAX RATE AND WACC, BY YEAR | G6: =ROW(B11) -> 11
B7: =B25 -> TABLE 2 - WACC PARAMETERS, POINT ESTIMATES, RANGES AND MIDPOINTS | G7: =ROW(B25) -> 25
B11: TABLE 1 - CORPORATE TAX RATE AND WACC, BY YEAR
B12: ='RAB & tax inputs'!B$32 -> Financial year | F12: ='RAB & tax inputs'!F$32 -> 2018-19 | G12: ='RAB & tax inputs'!G$32 -> 2019-20 | H12: ='RAB & tax inputs'!H$32 -> 2020-21 | I12: ='RAB & tax inputs'!I$32 -> 2021-22 | J12: ='RAB & tax inputs'!J$32 -> 2022-23 | K12: ='RAB & tax inputs'!K$32 -> 2023-24 | L12: ='RAB & tax inputs'!L$32 -> 2024-25 | M12: ='RAB & tax inputs'!M$32 -> 2025-26 | N12: ='RAB & tax inputs'!N$32 -> 2026-27 | O12: ='RAB & tax inputs'!O$32 -> 2027-28 | P12: ='RAB & tax inputs'!P$32 -> 2028-29 | Q12: ='RAB & tax inputs'!Q$32 -> 2029-30 | R12: ='RAB & tax inputs'!R$32 -> 2030-31 | S12: ='RAB & tax inputs'!S$32 -> 2031-32 | T12: ='RAB & tax inputs'!T$32 -> 2032-33
B14: Corporate tax rate | F14: 0.3 | G14: 0.3 | H14: 0.3 | I14: 0.3 | J14: 0.3 | K14: 0.3 | L14: 0.3 | M14: 0.3 | N14: 0.3 | O14: 0.3 | P14: 0.3 | Q14: 0.3 | R14: 0.3 | S14: 0.3 | T14: 0.3
B16: WACC point estimates (unrounded) | C16: ="Note: select which option to use in Scenario row "&ROW(Scenario!J60) -> Note: select which option to use in Scenario row 60
B17: Forecast inflation rate for WACC calculations (mid-point estimate) | F17: na | G17: na | H17: na | I17: na | J17: na | K17: =$F$32 -> 0.029 | L17: 0.029 | M17: 0.029 | N17: 0.029 | O17: 0.029 | P17: 0.029 | Q17: 0.029 | R17: 0.029 | S17: 0.029 | T17: 0.029
B18: =B52 -> Post-tax real WACC | C18: =CHOOSE(Scenario!$W$61,"not selected","selected option") -> selected option | F18: na | G18: na | H18: na | I18: na | J18: na | K18: =$H$52 -> 0.026 | L18: 0.026 | M18: 0.026 | N18: 0.026 | O18: 0.026 | P18: 0.026 | Q18: 0.026 | R18: 0.026 | S18: 0.026 | T18: 0.026
B19: Pre-tax nominal WACC (unrounded) | F19: na | G19: na | H19: na | I19: na | J19: na | K19: =$F$45*$F$37/(1-K14*(1-$F$39))+$F$36*$F$48 -> 0.06440967742 | L19: 0.06440967742 | M19: 0.06440967742 | N19: 0.06440967742 | O19: 0.06440967742 | P19: 0.06440967742 | Q19: 0.06440967742 | R19: 0.06440967742 | S19: 0.06440967742 | T19: 0.06440967742
B20: Pre-tax real WACC (rounded) | C20: =CHOOSE(Scenario!$W$61,"selected option","not selected") -> not selected | F20: na | G20: na | H20: na | I20: na | J20: na | K20: =ROUND((1+K19)/(1+K$17)-1,3) -> 0.034 | L20: 0.034 | M20: 0.034 | N20: 0.034 | O20: 0.034 | P20: 0.034 | Q20: 0.034 | R20: 0.034 | S20: 0.034 | T20: 0.034
B22: See the ATO website for the tax rate applicable to small businesses | D22: here
B25: TABLE 2 - WACC PARAMETERS, POINT ESTIMATES, RANGES AND MIDPOINTS
D26: Current market data | E26: Long term averages | F26: Point estimates | H26: Final WACC range4
B28: Weights for current and long-term WACC range1 | D28: 0.5 | E28: =1-D28 -> 0.5
B29: Based on the level of market uncertainty, using IPART's 'uncertainty index' (see notes on WACC calculation methodology below).
D30: midpt | E30: midpt | F30: Final WACC | G30: lower | H30: midpt | I30: upper
B31: Nominal risk free rate | D31: 0.018 | E31: 0.025 | F31: =D31*$D$28+E31*$E$28 -> 0.0215
B32: Inflation | D32: 0.029 | E32: 0.029 | F32: =D32*$D$28+E32*$E$28 -> 0.029
B33: Debt margin | D33: 0.024 | E33: 0.024 | F33: =D33*$D$28+E33*$E$28 -> 0.024
B35: Market risk premium | D35: 0.084 | E35: 0.06 | F35: =D35*$D$28+E35*$E$28 -> 0.072
B36: Debt funding | D36: 0.6 | E36: 0.6 | F36: =D36*$D$28+E36*$E$28 -> 0.6
B37: Equity funding | D37: =1-D36 -> 0.4 | E37: =1-E36 -> 0.4 | F37: =1-F36 -> 0.4
B38: Total funding (debt+equity) | D38: =D36+D37 -> 1 | E38: =E36+E37 -> 1 | F38: =SUM(F36:F37) -> 1
B39: Gamma | D39: 0.25 | E39: =D39 -> 0.25 | F39: =D39*$D$28+E39*$E$28 -> 0.25
B40: Corporate tax rate | D40: 0.3 | E40: =D40 -> 0.3 | F40: =D40*$D$28+E40*$E$28 -> 0.3
B41: Effective tax rate for equity | D41: 0.3 | E41: =D41 -> 0.3 | F41: =D41*$D$28+E41*$E$28 -> 0.3
B42: Effective tax rate for debt | D42: 0.3 | E42: =D42 -> 0.3 | F42: =D42*$D$28+E42*$E$28 -> 0.3
B43: Equity beta | D43: 0.7 | E43: =D43 -> 0.7 | F43: =D43*$D$28+E43*$E$28 -> 0.7
B45: Cost of equity (nominal post-tax) | D45: =D31+D43*D35 -> 0.0768 | E45: =E31+E43*E35 -> 0.067 | F45: =F31+F43*F35 -> 0.0719
B46: Cost of equity (real post-tax) | D46: =(1+D45)/(1+D32)-1 -> 0.04645286686 | E46: =(1+E45)/(1+E32)-1 -> 0.03692905734 | F46: =(1+F45)/(1+F32)-1 -> 0.0416909621
B48: Cost of debt (nominal) | D48: =D31+D33 -> 0.042 | E48: =E31+E33 -> 0.049 | F48: =F31+F33 -> 0.0455
B49: Cost of debt (real) | D49: =(1+D48)/(1+D32)-1 -> 0.01263362488 | E49: =(1+E48)/(1+E32)-1 -> 0.01943634597 | F49: =(1+F48)/(1+F32)-1 -> 0.01603498542
B51: Nominal Vanilla (Post-tax nominal) WACC | D51: =D45*D37+D48*D36 -> 0.05592 | E51: =E45*E37+E48*E36 -> 0.0562 | F51: =F45*F37+F48*F36 -> 0.05606 | G51: =ROUND(MIN(D51,E51),3) -> 0.056 | H51: =ROUND(AVERAGE(G51,I51),3) -> 0.056 | I51: =ROUND(MAX(D51,E51),3) -> 0.056
B52: Post-tax real WACC | D52: =D46*D37+D49*D36 -> 0.02616132167 | E52: =E46*E37+E49*E36 -> 0.02643343052 | F52: =F46*F37+F49*F36 -> 0.02629737609 | G52: =MIN(D52,E52) -> 0.02616132167 | H52: =ROUND(AVERAGE(G52,I52),3) -> 0.026 | I52: =MAX(D52,E52) -> 0.02643343052
B53: Pre-tax nominal WACC | D53: =D45*D37/(1-D41*(1-D39))+D36*D48 -> 0.06483870968 | E53: =E45*E37/(1-E41*(1-E39))+E36*E48 -> 0.06398064516 | F53: =F45*F37/(1-F41*(1-F39))+F36*F48 -> 0.06440967742 | G53: =MIN(D53,E53) -> 0.06398064516 | H53: 0.064 | I53: =MAX(D53,E53) -> 0.06483870968
B54: Pre-tax real WACC | D54: =(1+D53)/(1+D32)-1 -> 0.03482867801 | E54: =(1+E53)/(1+E32)-1 -> 0.03399479608 | F54: =(1+F53)/(1+F32)-1 -> 0.03441173705 | G54: =MIN(D54,E54) -> 0.03399479608 | H54: 0.034 | I54: =MAX(D54,E54) -> 0.03482867801
B55: Notes:
B56: 1. We use a standard method to determine the WACC in our pricing reviews, which we last reviewed in 2018. | L56: Review of WACC Method, February 2018
B57: 2. We release financial market updates biannually in February and August. We also released a WACC spreadsheet with a working copy of our full WACC model. | L57: WACC market update
B58: 3. We apply a weight of 50% to the current WACC range unless the 'uncertainty index' exceeds one standard deviation from the long-term average of zero. For more information, see | L58: Review of WACC Methodology, December 2013
B59: 4. The final WACC range is given by the midpoints of the WACCs using current market data and long-term averages.
B60: That is, the minimum of the two midpoints will be the lower bound of the final WACC range, and the maximum of the two midpoints will be the upper bound of the final WACC range.
B61: However, the individual WACC parameters used to estimate the lower bound may not always be lower than those used to estimate the upper bound.

Sheet Scenario
B1: =Cover!B1 -> THE INDEPENDENT PRICING AND REGULATORY TRIBUNAL OF NSW | F1: =Cover!$B$3 -> IPART TEMPLATE FOR COST BUILDING BLOCKS, SIMPLE TARIFF SETTING AND FINANCIAL RATIO ANALYSIS
B3: 5 SCENARIO INPUTS, PRICES AND OUTPUT TABLES
B5: Enter your key decisions about costs and other inputs, then set the prices. The worksheet also contains the key output tables for easy reference.
B8: List of tables | J8: row number
B9: =B24 -> TABLE 1 BUSINESS INFORMATION AND LENGTH OF DETERMINATION PERIOD | J9: =ROW(B24) -> 24
B10: =B35 -> DECISIONS
B11: =B37 -> TABLE 2 SELECT COST OPTIONS | J11: =ROW(B37) -> 37
B12: =B58 -> TABLE 3 - SELECT WACC AND DIVIDENDS | J12: =ROW(B58) -> 58
B13: =B112 -> SETTING PRICES
B14: =B114 -> TABLE 4 - SETTING PRICES | J14: =ROW(B114) -> 114
B16: =B148 -> OUTPUT TABLES
B17: =B152 -> TABLE 5 - REGULATORY ASSET BASE | J17: =ROW(B152) -> 152
B18: =B168 -> TABLE 6 - NOTIONAL REVENUE REQUIREMENT AND TARGET REVENUE | J18: =ROW(B168) -> 168
B19: =B196 -> TABLE 7 - FINANCIAL INDICATORS | J19: =ROW(B196) -> 196
B20: =B224 -> TABLE 8 - PRICES | J20: =ROW(B224) -> 224
B21: =B248 -> TABLE 9 - ANNUAL BILLS | J21: =ROW(B248) -> 248
B24: TABLE 1 BUSINESS INFORMATION AND LENGTH OF DETERMINATION PERIOD
B25: ='RAB & tax inputs'!B25 -> Name of regulated business | D25: ='RAB & tax inputs'!D25 -> Regulated Business X
B26: Scenario number | D26: 1 | K26: These are useful for keeping track of model runs.
B27: Scenario description | D27: A Scenario | W27: DATA FOR SELECTIONS - DO NOT DELETE
W28: 1. Pays tax and can provide forecast tax depreciation
B29: Type of business with regard to tax (select option) | D29: 1. Pays tax and can provide forecast tax depreciation | W29: 2. Pays tax or tax equivalent and can provide tax value of assets but not forecast tax depreciation
D30: =IF(Tax!$D$18="err","Please select an option",IF(AND(D29=W28,SUM('RAB & tax inputs'!K122:N122)=0),"Please enter tax depreciation on 'Fixed inputs' worksheet","ok")) -> ok | W30: 3. Has a previously established regulatory TAB and cannot provide forecast tax depreciation
B31: Length of determination period (years) | D31: 5 | J31: ='RAB & tax inputs'!$K$33 -> Determination period is 2023-24 to 2027-28 | W31: 4. Does not have a previously established regulatory TAB and cannot provide forecast tax depreciation
W32: =IF(W28=D29,1,IF(W29=D29,2,IF(W30=D29,3,IF(W31=D29,4,"err")))) -> 1
B35: DECISIONS
B37: TABLE 2 SELECT COST OPTIONS | E37: beware hidden columns
J38: Select option (view options by clicking arrow on right hand side of blue input cell) | W38: ="Option 1 - "&'Cost inputs'!D24 -> Option 1 - Agency opex
W39: ="Option 2 - "&'Cost inputs'!D31 -> Option 2 - Regulator opex
B40: ="Select operating expenditure from "&$J$115 -> Select operating expenditure from 2022-23 | J40: Option 1 - Agency opex | W40: =IF(W38=J40,1,2) -> 1 | Y40: DO NOT DELETE
W41: ="Option 1 - "&'Cost inputs'!D44 -> Option 1 - Agency capex | Y41: ='RAB & tax inputs'!$J$32&" "&'RAB & tax inputs'!$C$36 -> 2022-23 $'000
B42: Select capital expenditure | W42: ="Option 2 - "&'Cost inputs'!D49 -> Option 2 - Regulator capex
B43: =" - historical capex up to and including "&$I$115 -> - historical capex up to and including 2021-22 | J43: Option 1 - Agency capex | W43: =IF(W41=J43,1,2) -> 1 | Y43: 1
B44: =" - forecast capex from "&$J$115 -> - forecast capex from 2022-23 | J44: Option 1 - Agency capex | W44: =IF(W41=J44,1,2) -> 1 | Y44: =Y43+1 -> 2
W45: ="Option 1 - "&'Cost inputs'!D60 -> Option 1 - Agency cap cons | Y45: =Y46+1 -> 4
B46: Select cash capital contributions | W46: ="Option 2 - "&'Cost inputs'!D64 -> Option 2 - Regulator cap cons | Y46: =Y44+1 -> 3
B47: =" - historical cash cap cons up to and including "&$I$115 -> - historical cash cap cons up to and including 2021-22 | J47: Option 1 - Agency cap cons | W47: =IF(W45=J47,1,2) -> 1 | Y47: =Y45+1 -> 5
B48: =" - forecast cash cap cons from "&$J$115 -> - forecast cash cap cons from 2022-23 | J48: Option 1 - Agency cap cons | W48: =IF(W45=J48,1,2) -> 1 | Y48: =Y47+1 -> 6
W49: Allowed depreciation | Y49: =Y48+1 -> 7
B50: Use allowed or actual depreciation to roll forward historical RAB? | J50: Allowed depreciation | N50: ="Note: IPART's policy is to use allowed RAB depreciation. "&IF(W32=3, "The tax value of assets is always rolled forward using actual depreciation.", "") -> Note: IPART's policy is to use allowed RAB depreciation. | W50: Actual (calculated) depreciation | Y50: =Y49+1 -> 8
W51: =IF(W49=J50,1,2) -> 1 | Y51: =Y50+1 -> 9
B52: Tax treatment of cash capital contributions (see comment) | W52: Use net of tax & do not include tax in tax allowance | Y52: =Y51+1 -> 10
B53: =" - historical period, up to and including "&$J$115 -> - historical period, up to and including 2022-23 | J53: Use net of tax & do not include tax in tax allowance | W53: Use gross amount & include tax in tax allowance
B54: =" - forecast period, from "&$K$115 -> - forecast period, from 2023-24 | J54: Use net of tax & do not include tax in tax allowance | N54: Note: IPART's policy since 2016 is net of tax & not included tax in tax allowance | W54: =IF(W53=J53,2,1) -> 1
W55: =IF(W52=J54,1,2) -> 1
B58: TABLE 3 - SELECT WACC AND DIVIDENDS
W59: Post-tax WACC
B60: Pre-tax or post-tax WACC for forecast period? | J60: Post-tax WACC | N60: Note: IPART's policy is to use a post-tax WACC | W60: Pre-tax WACC
W61: =IF(W59=J60,2,1) -> 2
B62: ="Use expected dividend payments ("&'RAB & tax inputs'!$C$36&") or dividend payout rate (%)?" -> Use expected dividend payments ($'000) or dividend payout rate (%)? | J62: Dividend payout rate | W62: Expected dividend payments
W63: Dividend payout rate
B64: =WACC!B12 -> Financial year | K64: =WACC!K12 -> 2023-24 | L64: =WACC!L12 -> 2024-25 | M64: =WACC!M12 -> 2025-26 | N64: =WACC!N12 -> 2026-27 | O64: =WACC!O12 -> 2027-28 | P64: =WACC!P12 -> 2028-29 | Q64: =WACC!Q12 -> 2029-30 | R64: =WACC!R12 -> 2030-31 | S64: =WACC!S12 -> 2031-32 | T64: =WACC!T12 -> 2032-33
B65: Selected options | W65: =IF(W62=J62,1,2) -> 2
B66: WACC used for forecast return on RAB | C66: =CHOOSE($W$61,W60,W59)&" (rounded)" -> Post-tax WACC (rounded) | K66: =ROUND(CHOOSE($W$61,WACC!K20,WACC!K18),3) -> 0.026 | L66: =ROUND(CHOOSE($W$61,WACC!L20,WACC!L18),3) -> 0.026 | M66: =ROUND(CHOOSE($W$61,WACC!M20,WACC!M18),3) -> 0.026 | N66: =ROUND(CHOOSE($W$61,WACC!N20,WACC!N18),3) -> 0.026 | O66: =ROUND(CHOOSE($W$61,WACC!O20,WACC!O18),3) -> 0.026 | P66: =ROUND(CHOOSE($W$61,WACC!P20,WACC!P18),3) -> 0.026 | Q66: =ROUND(CHOOSE($W$61,WACC!Q20,WACC!Q18),3) -> 0.026 | R66: =ROUND(CHOOSE($W$61,WACC!R20,WACC!R18),3) -> 0.026 | S66: =ROUND(CHOOSE($W$61,WACC!S20,WACC!S18),3) -> 0.026 | T66: =ROUND(CHOOSE($W$61,WACC!T20,WACC!T18),3) -> 0.026
B67: WACC used for forecast return on working capital | C67: =CHOOSE($W$61,"Nominal pre-tax WACC (rounded)", "Nominal post-tax WACC (rounded)") -> Nominal post-tax WACC (rounded) | K67: =ROUND(CHOOSE($W$61,WACC!K19,WACC!$H$51),3) -> 0.056 | L67: =ROUND(CHOOSE($W$61,WACC!L19,WACC!$H$51),3) -> 0.056 | M67: =ROUND(CHOOSE($W$61,WACC!M19,WACC!$H$51),3) -> 0.056 | N67: =ROUND(CHOOSE($W$61,WACC!N19,WACC!$H$51),3) -> 0.056 | O67: =ROUND(CHOOSE($W$61,WACC!O19,WACC!$H$51),3) -> 0.056 | P67: =ROUND(CHOOSE($W$61,WACC!P19,WACC!$H$51),3) -> 0.056 | Q67: =ROUND(CHOOSE($W$61,WACC!Q19,WACC!$H$51),3) -> 0.056 | R67: =ROUND(CHOOSE($W$61,WACC!R19,WACC!$H$51),3) -> 0.056 | S67: =ROUND(CHOOSE($W$61,WACC!S19,WACC!$H$51),3) -> 0.056 | T67: =ROUND(CHOOSE($W$61,WACC!T19,WACC!$H$51),3) -> 0.056
B69: Pre-tax WACC for NPV calculations (rounded) | E69: rounded | K69: =WACC!K20 -> 0.034 | L69: =WACC!L20 -> 0.034 | M69: =WACC!M20 -> 0.034 | N69: =WACC!N20 -> 0.034 | O69: =WACC!O20 -> 0.034 | P69: =WACC!P20 -> 0.034 | Q69: =WACC!Q20 -> 0.034 | R69: =WACC!R20 -> 0.034 | S69: =WACC!S20 -> 0.034 | T69: =WACC!T20 -> 0.034
B70: Index for NPV calculations | K70: =1/(1+K69)^0.5 -> 0.9834215721 | L70: =IF(COUNT($K69:L69)>$D$31,0,K70/(1+L69)) -> 0.9510846925 | M70: =IF(COUNT($K69:M69)>$D$31,0,L70/(1+M69)) -> 0.9198111146 | N70: =IF(COUNT($K69:N69)>$D$31,0,M70/(1+N69)) -> 0.8895658749 | O70: =IF(COUNT($K69:O69)>$D$31,0,N70/(1+O69)) -> 0.8603151595 | P70: =IF(COUNT($K69:P69)>$D$31,0,O70/(1+P69)) -> 0 | Q70: =IF(COUNT($K69:Q69)>$D$31,0,P70/(1+Q69)) -> 0 | R70: =IF(COUNT($K69:R69)>$D$31,0,Q70/(1+R69)) -> 0 | S70: =IF(COUNT($K69:S69)>$D$31,0,R70/(1+S69)) -> 0 | T70: =IF(COUNT($K69:T69)>$D$31,0,S70/(1+T69)) -> 0
B76: Spare rows for additional inputs or outputs
B112: SETTING PRICES
B114: TABLE 4 - SETTING PRICES
B115: ='RAB & tax inputs'!B$32 -> Financial year | F115: ='RAB & tax inputs'!F$32 -> 2018-19 | G115: ='RAB & tax inputs'!G$32 -> 2019-20 | H115: ='RAB & tax inputs'!H$32 -> 2020-21 | I115: ='RAB & tax inputs'!I$32 -> 2021-22 | J115: ='RAB & tax inputs'!J$32 -> 2022-23 | K115: ='RAB & tax inputs'!K$32 -> 2023-24 | L115: ='RAB & tax inputs'!L$32 -> 2024-25 | M115: ='RAB & tax inputs'!M$32 -> 2025-26 | N115: ='RAB & tax inputs'!N$32 -> 2026-27 | O115: ='RAB & tax inputs'!O$32 -> 2027-28 | P115: ='RAB & tax inputs'!P$32 -> 2028-29 | Q115: ='RAB & tax inputs'!Q$32 -> 2029-30 | R115: ='RAB & tax inputs'!R$32 -> 2030-31 | S115: ='RAB & tax inputs'!S$32 -> 2031-32 | T115: ='RAB & tax inputs'!T$32 -> 2032-33
K116: ='RAB projected '!K15 -> Determination period is 2023-24 to 2027-28
I117: =J117 -> nominal | J117: ='Cost inputs'!J22 -> nominal | K117: ="$"&J115 -> $2022-23
B118: This model uses a very simple pricing structure. Most models will require more tariffs and a more complicated tariff structure.
B119: Instructions: | V119: This macro increases the prices by a constant % each year, and sets the increase so that NPV cost = NPV revenue for the first 4 year period
B120: Step 1. Enter the usage charges
B121: Step 2. The model calculates the default access charges such that required revenue from prices = expected revenue from prices each year | V121: This macro keeps usage charges unchanged in real terms
B122: Step 3. If you wish to change the access charges, enter alternative charges in the light blue cells. You can use Goal seek or Solver to set the prices, eg for NPV neutrality or a glide-path approach.
B123: If you use Goal seek or Solver, consider developing a macro to automate the calculations. Remember to describe what the macros do. The model provides two examples of a tariff-setting macro.
K124: 0.01945969527
B125: ='Pricing & financial inputs'!B$47 -> Access charge | C125: ='Pricing & financial inputs'!C47 -> $/year | I125: ='Pricing & financial inputs'!I$47 -> 50 | J125: ='Pricing & financial inputs'!J$47 -> 50 | K125: =J125*(1+$K$124) -> 50.97298476 | L125: =K125*(1+$K$124) -> 51.96490351 | M125: 52.9761247 | N125: 54.00702394 | O125: 55.05798417 | P125: 56.12939577 | Q125: 57.2216567 | R125: 58.3351727 | S125: 59.47035739 | T125: 60.62763242
B126: default = the tariff that equates required revenue with expected revenue each year | K126: =(K138-SUM(K134:K135))/'Pricing & financial inputs'!K33*1000 -> 41.66872325 | L126: =(L138-SUM(L134:L135))/'Pricing & financial inputs'!L33*1000 -> 48.47708069 | M126: =(M138-SUM(M134:M135))/'Pricing & financial inputs'!M33*1000 -> 60.42263774 | N126: =(N138-SUM(N134:N135))/'Pricing & financial inputs'!N33*1000 -> 59.18130526 | O126: =(O138-SUM(O134:O135))/'Pricing & financial inputs'!O33*1000 -> 55.76675265 | P126: =(P138-SUM(P134:P135))/'Pricing & financial inputs'!P33*1000 -> 49.9783154 | Q126: =(Q138-SUM(Q134:Q135))/'Pricing & financial inputs'!Q33*1000 -> 41.27241749 | R126: =(R138-SUM(R134:R135))/'Pricing & financial inputs'!R33*1000 -> 30.8232324 | S126: =(S138-SUM(S134:S135))/'Pricing & financial inputs'!S33*1000 -> 20.17883066 | T126: =(T138-SUM(T134:T135))/'Pricing & financial inputs'!T33*1000 -> 9.296758209
B127: Applicable access charge | C127: =C125 -> $/year | I127: =IF(ISBLANK(I125),I126,I125) -> 50 | J127: =IF(ISBLANK(J125),J126,J125) -> 50 | K127: 50.97298476 | L127: 51.96490351 | M127: 52.9761247 | N127: 54.00702394 | O127: 55.05798417 | P127: 56.12939577 | Q127: 57.2216567 | R127: 58.3351727 | S127: 59.47035739 | T127: 60.62763242
B129: ='Pricing & financial inputs'!B48 -> Usage charge for Tier 1 consumption | C129: ='Pricing & financial inputs'!C48 -> $/kL | I129: ='Pricing & financial inputs'!I48 -> 2 | J129: ='Pricing & financial inputs'!J48 -> 2 | K129: =J129*(1+$K$124) -> 2.038919391 | L129: 2.078596141 | M129: 2.119044988 | N129: 2.160280958 | O129: 2.202319367 | P129: 2.245175831 | Q129: 2.288866268 | R129: 2.333406908 | S129: 2.378814296 | T129: 2.425105297
B130: ='Pricing & financial inputs'!B49 -> Usage charge for Tier 2 consumption | C130: ='Pricing & financial inputs'!C49 -> $/kL | I130: ='Pricing & financial inputs'!I49 -> 2.5 | J130: ='Pricing & financial inputs'!J49 -> 2.5 | K130: =J130*(1+$K$124) -> 2.548649238 | L130: 2.598245176 | M130: 2.648806235 | N130: 2.700351197 | O130: 2.752899209 | P130: 2.806469788 | Q130: 2.861082835 | R130: 2.916758635 | S130: 2.973517869 | T130: 3.031381621
K131: =IF(K129+K130=0,"ok",IF(AND(SUM(K130:N130)=0,SUM('Pricing & financial inputs'!K51:N51)>0),"The model assumes Tier 2 price = Tier 1 price","ok")) -> ok | O131: =IF(O129+O130=0,"ok",IF(AND(SUM(O130:R130)=0,SUM('Pricing & financial inputs'!O51:R51)>0),"The model assumes Tier 2 price = Tier 1 price","ok")) -> ok
K132: =IF(K131="ok","ok","Two consumption tiers have been defined on the Fixed Inputs worksheet,Table 3") -> ok
B133: Expected revenue from access charges | C133: ='RAB & tax inputs'!C$36 -> $'000 | I133: ='Pricing & financial inputs'!I$33*I127/1000 -> 10290 | J133: ='Pricing & financial inputs'!J$33*J127/1000 -> 10500 | K133: ='Pricing & financial inputs'!K$33*K127/1000 -> 10864.8917 | L133: ='Pricing & financial inputs'!L$33*L127/1000 -> 11242.60688 | M133: ='Pricing & financial inputs'!M$33*M127/1000 -> 11633.55698 | N133: ='Pricing & financial inputs'!N$33*N127/1000 -> 12037.62557 | O133: ='Pricing & financial inputs'!O$33*O127/1000 -> 12455.76776 | P133: ='Pricing & financial inputs'!P$33*P127/1000 -> 12888.43186 | Q133: ='Pricing & financial inputs'!Q$33*Q127/1000 -> 13336.07931 | R133: ='Pricing & financial inputs'!R$33*R127/1000 -> 13799.76846 | S133: ='Pricing & financial inputs'!S$33*S127/1000 -> 14279.42751 | T133: ='Pricing & financial inputs'!T$33*T127/1000 -> 14775.5603
B134: Expected revenue from Tier 1 sales | C134: =C133 -> $'000 | I134: ='Pricing & financial inputs'!I$36*I129 -> 79970 | J134: ='Pricing & financial inputs'!J$36*J129 -> 81600 | K134: ='Pricing & financial inputs'!K$36*K129 -> 84411.26277 | L134: ='Pricing & financial inputs'!L$36*L129 -> 87321.82386 | M134: ='Pricing & financial inputs'!M$36*M129 -> 90334.88784 | N134: ='Pricing & financial inputs'!N$36*N129 -> 93453.75423 | O134: ='Pricing & financial inputs'!O$36*O129 -> 96219.33314 | P134: ='Pricing & financial inputs'!P$36*P129 -> 99573.54809 | Q134: ='Pricing & financial inputs'!Q$36*Q129 -> 103044.7594 | R134: ='Pricing & financial inputs'!R$36*R129 -> 106636.6957 | S134: ='Pricing & financial inputs'!S$36*S129 -> 110353.1952 | T134: ='Pricing & financial inputs'!T$36*T129 -> 114198.2084
B135: Expected revenue from Tier 2 sales | C135: =C134 -> $'000 | I135: ='Pricing & financial inputs'!I$37*I130 -> 20825 | J135: ='Pricing & financial inputs'!J$37*J130 -> 21250 | K135: ='Pricing & financial inputs'!K$37*K130 -> 21918.38345 | L135: ='Pricing & financial inputs'!L$37*L130 -> 22344.90851 | M135: ='Pricing & financial inputs'!M$37*M130 -> 22779.73362 | N135: ='Pricing & financial inputs'!N$37*N130 -> 23223.0203 | O135: ='Pricing & financial inputs'!O$37*O130 -> 23922.69412 | P135: ='Pricing & financial inputs'!P$37*P130 -> 24640.80474 | Q135: ='Pricing & financial inputs'!Q$37*Q130 -> 25377.80475 | R135: ='Pricing & financial inputs'!R$37*R130 -> 26134.15737 | S135: ='Pricing & financial inputs'!S$37*S130 -> 26910.33672 | T135: ='Pricing & financial inputs'!T$37*T130 -> 27706.82802
B136: Total expected revenue from prices | I136: =SUM(I133:I135) -> 111085 | J136: =SUM(J133:J135) -> 113350 | K136: =SUM(K133:K135) -> 117194.5379 | L136: =SUM(L133:L135) -> 120909.3393 | M136: 124748.1784 | N136: 128714.4001 | O136: 132597.795 | P136: 137102.7847 | Q136: 141758.6434 | R136: 146570.6215 | S136: 151542.9594 | T136: 156680.5967
B138: =NRR!B25 -> Revenue required from prices | K138: =NRR!K$25 -> 115211.3346 | L138: =NRR!L$25 -> 120154.7488 | M138: =NRR!M$25 -> 126383.4327 | N138: =NRR!N$25 -> 129867.6957 | O138: =NRR!O$25 -> 132758.1397 | P138: =NRR!P$25 -> 135690.3736 | Q138: =NRR!Q$25 -> 138041.5138 | R138: =NRR!R$25 -> 140062.3969 | S138: =NRR!S$25 -> 142108.6709 | T138: =NRR!T$25 -> 144170.7494
B140: Difference between required and expected revenue | K140: =IF(COUNT($K136:K136)>$D$31,"na",K136-K138) -> 1983.203342 | L140: =IF(COUNT($K136:L136)>$D$31,"na",L136-L138) -> 754.5904686 | M140: =IF(COUNT($K136:M136)>$D$31,"na",M136-M138) -> -1635.254263 | N140: =IF(COUNT($K136:N136)>$D$31,"na",N136-N138) -> -1153.295562 | O140: =IF(COUNT($K136:O136)>$D$31,"na",O136-O138) -> -160.3446927 | P140: =IF(COUNT($K136:P136)>$D$31,"na",P136-P138) -> na | Q140: =IF(COUNT($K136:Q136)>$D$31,"na",Q136-Q138) -> na | R140: =IF(COUNT($K136:R136)>$D$31,"na",R136-R138) -> na | S140: =IF(COUNT($K136:S136)>$D$31,"na",S136-S138) -> na | T140: =IF(COUNT($K136:T136)>$D$31,"na",T136-T138) -> na
B141: WACC (for NPV calculations)
B142: NPV of difference between required and revenue expected from prices | K142: =SUMPRODUCT(K140:T140,$K$70:$T$70) -> 6.312035339e-09 | L142: =" (NPV over the "&$D$31&" year determination period)" -> (NPV over the 5 year determination period)
B148: OUTPUT TABLES
B152: TABLE 5 - REGULATORY ASSET BASE
B153: =B$115 -> Financial year | F153: =F$115 -> 2018-19 | G153: 2019-20 | H153: 2020-21 | I153: 2021-22 | J153: 2022-23 | K153: 2023-24 | L153: 2024-25 | M153: 2025-26 | N153: 2026-27 | O153: 2027-28 | P153: 2028-29 | Q153: 2029-30 | R153: 2030-31 | S153: 2031-32 | T153: 2032-33
K154: ='RAB & tax inputs'!K$33 -> Determination period is 2023-24 to 2027-28
F155: ='RAB historical'!F15 -> nominal | G155: ='RAB historical'!G15 -> nominal | H155: ='RAB historical'!H15 -> nominal | I155: ='RAB historical'!I15 -> nominal | J155: ='RAB historical'!J15 -> nominal | K155: ='RAB projected '!K16 -> 2022-23 $'000
B157: ='RAB historical'!B58 -> Opening value | C157: ='RAB historical'!C58 -> $'000 | F157: ='RAB historical'!F115 -> 660000 | G157: ='RAB historical'!G115 -> 687106.4449 | H157: ='RAB historical'!H115 -> 701839.5291 | I157: ='RAB historical'!I115 -> 728126.5853 | J157: ='RAB historical'!J115 -> 786452.8938 | K157: ='RAB projected '!K114 -> 869811.6426 | L157: ='RAB projected '!L114 -> 944063.0107 | M157: ='RAB projected '!M114 -> 1037073.166 | N157: ='RAB projected '!N114 -> 1077653.01 | O157: ='RAB projected '!O114 -> 1096222.375 | P157: ='RAB projected '!P114 -> 1119147.761 | Q157: ='RAB projected '!Q114 -> 1130116.621 | R157: ='RAB projected '!R114 -> 1129348.957 | S157: ='RAB projected '!S114 -> 1128449.768 | T157: ='RAB projected '!T114 -> 1127409.054
B158: ='RAB historical'!B59 -> capex net of cash capital contributions | C158: ='RAB historical'!C59 -> $'000 | F158: ='RAB historical'!F116 -> 34000 | G158: ='RAB historical'!G116 -> 35000 | H158: ='RAB historical'!H116 -> 18900 | I158: ='RAB historical'!I116 -> 34860 | J158: ='RAB historical'!J116 -> 64955 | K158: ='RAB projected '!K115 -> 98300 | L158: ='RAB projected '!L115 -> 119860 | M158: ='RAB projected '!M115 -> 69650 | N158: ='RAB projected '!N115 -> 48720 | O158: ='RAB projected '!O115 -> 54000 | P158: ='RAB projected '!P115 -> 43000 | Q158: ='RAB projected '!Q115 -> 32000 | R158: ='RAB projected '!R115 -> 32500 | S158: ='RAB projected '!S115 -> 33000 | T158: ='RAB projected '!T115 -> 33500
B159: ='RAB historical'!B60 -> disposals | C159: ='RAB historical'!C60 -> $'000 | F159: ='RAB historical'!F117 -> 935 | G159: ='RAB historical'!G117 -> 500 | H159: ='RAB historical'!H117 -> 500 | I159: ='RAB historical'!I117 -> 750 | J159: ='RAB historical'!J117 -> 500 | K159: ='RAB projected '!K116 -> 750 | L159: ='RAB projected '!L116 -> 675 | M159: ='RAB projected '!M116 -> 500 | N159: ='RAB projected '!N116 -> 500 | O159: ='RAB projected '!O116 -> 500 | P159: ='RAB projected '!P116 -> 500 | Q159: ='RAB projected '!Q116 -> 500 | R159: ='RAB projected '!R116 -> 500 | S159: ='RAB projected '!S116 -> 500 | T159: ='RAB projected '!T116 -> 500
B160: ='RAB historical'!B61 -> depreciation | C160: ='RAB historical'!C61 -> $'000 | F160: ='RAB historical'!F118 -> 16783.0751 | G160: ='RAB historical'!G118 -> 17653.84647 | H160: ='RAB historical'!H118 -> 19132.4459 | I160: ='RAB historical'!I118 -> 21239.76824 | J160: ='RAB historical'!J118 -> 23667.63164 | K160: ='RAB projected '!K117 -> 23298.63188 | L160: ='RAB projected '!L117 -> 26174.84498 | M160: ='RAB projected '!M117 -> 28570.15558 | N160: ='RAB projected '!N117 -> 29650.63502 | O160: ='RAB projected '!O117 -> 30574.61446 | P160: ='RAB projected '!P117 -> 31531.13936 | Q160: ='RAB projected '!Q117 -> 32267.66425 | R160: ='RAB projected '!R117 -> 32899.18914 | S160: ='RAB projected '!S117 -> 33540.71404 | T160: ='RAB projected '!T117 -> 34192.23893
B161: ='RAB historical'!B62 -> indexation | C161: ='RAB historical'!C62 -> $'000 | F161: ='RAB historical'!F119 -> 10824.52 | G161: ='RAB historical'!G119 -> -2113.069335 | H161: ='RAB historical'!H119 -> 27019.50211 | I161: ='RAB historical'!I119 -> 45456.0767 | J161: ='RAB historical'!J119 -> 42571.38048 | K161: ='RAB projected '!K118 -> 0 | L161: ='RAB projected '!L118 -> 0 | M161: ='RAB projected '!M118 -> 0 | N161: ='RAB projected '!N118 -> 0 | O161: ='RAB projected '!O118 -> 0 | P161: ='RAB projected '!P118 -> 0 | Q161: ='RAB projected '!Q118 -> 0 | R161: ='RAB projected '!R118 -> 0 | S161: ='RAB projected '!S118 -> 0 | T161: ='RAB projected '!T118 -> 0
B162: ='RAB historical'!B63 -> Closing value | C162: ='RAB historical'!C63 -> $'000 | F162: ='RAB historical'!F120 -> 687106.4449 | G162: ='RAB historical'!G120 -> 701839.5291 | H162: ='RAB historical'!H120 -> 728126.5853 | I162: ='RAB historical'!I120 -> 786452.8938 | J162: ='RAB historical'!J120 -> 869811.6426 | K162: ='RAB projected '!K119 -> 944063.0107 | L162: ='RAB projected '!L119 -> 1037073.166 | M162: ='RAB projected '!M119 -> 1077653.01 | N162: ='RAB projected '!N119 -> 1096222.375 | O162: ='RAB projected '!O119 -> 1119147.761 | P162: ='RAB projected '!P119 -> 1130116.621 | Q162: ='RAB projected '!Q119 -> 1129348.957 | R162: ='RAB projected '!R119 -> 1128449.768 | S162: ='RAB projected '!S119 -> 1127409.054 | T162: ='RAB projected '!T119 -> 1126216.815
B164: Value of net working capital | C164: =C162 -> $'000 | J164: ='Working capital'!J47 -> 11079.91997 | K164: ='Working capital'!K47 -> 9342.03315 | L164: ='Working capital'!L47 -> 7984.648828 | M164: ='Working capital'!M47 -> 13203.57456 | N164: ='Working capital'!N47 -> 15610.10781 | O164: ='Working capital'!O47 -> 15695.22795 | P164: ='Working capital'!P47 -> 17065.22047 | Q164: ='Working capital'!Q47 -> 18351.46739 | R164: ='Working capital'!R47 -> 18631.80905 | S164: ='Working capital'!S47 -> 18897.61463 | T164: ='Working capital'!T47 -> 19165.5352
B165: check = 0 | F165: =F157+F158-F159-F160+F161-F162 -> 0 | G165: 0 | H165: 0 | I165: 0 | J165: 0 | K165: 0 | L165: 0 | M165: 0 | N165: 0 | O165: 0 | P165: 0 | Q165: 0 | R165: 0 | S165: 0 | T165: 0
B168: TABLE 6 - NOTIONAL REVENUE REQUIREMENT AND TARGET REVENUE | K168: =SUM(K173:K178) -> 115211.3346
B169: =B$115 -> Financial year | K169: =K$115 -> 2023-24 | L169: 2024-25 | M169: 2025-26 | N169: 2026-27 | O169: 2027-28 | P169: 2028-29 | Q169: 2029-30 | R169: 2030-31 | S169: 2031-32 | T169: 2032-33
K170: =K$154 -> Determination period is 2023-24 to 2027-28
K171: =K$155 -> 2022-23 $'000
B173: =NRR!B15 -> Operating expenditure | C173: =NRR!C15 -> $'000 | K173: =NRR!K15 -> 65920 | L173: =NRR!L15 -> 66910 | M173: =NRR!M15 -> 67920 | N173: =NRR!N15 -> 68940 | O173: =NRR!O15 -> 69970 | P173: =NRR!P15 -> 71020 | Q173: =NRR!Q15 -> 72080 | R173: =NRR!R15 -> 73160 | S173: =NRR!S15 -> 74260 | T173: =NRR!T15 -> 75370
B174: =NRR!B16 -> Depreciation | C174: =NRR!C16 -> $'000 | K174: =NRR!K16 -> 23001.53075 | L174: =NRR!L16 -> 25841.06675 | M174: =NRR!M16 -> 28205.83266 | N174: =NRR!N16 -> 29272.53397 | O174: =NRR!O16 -> 30184.73094 | P174: =NRR!P16 -> 31129.05835 | Q174: =NRR!Q16 -> 31856.19118 | R174: =NRR!R16 -> 32479.66295 | S174: =NRR!S16 -> 33113.0072 | T174: =NRR!T16 -> 33756.22393
B175: =NRR!B17 -> Return on RAB | C175: =NRR!C17 -> $'000 | K175: =NRR!K17 -> 23578.69656 | L175: =NRR!L17 -> 25762.28267 | M175: =NRR!M17 -> 27507.54883 | N175: =NRR!N17 -> 28280.55025 | O175: =NRR!O17 -> 28824.9618 | P175: =NRR!P17 -> 29272.24446 | Q175: =NRR!Q17 -> 29412.62165 | R175: =NRR!R17 -> 29399.33401 | S175: =NRR!S17 -> 29382.67033 | T175: =NRR!T17 -> 29362.37392
B176: =NRR!B18 -> Return on working capital | C176: =NRR!C18 -> $'000 | K176: =NRR!K18 -> 509.0934061 | L176: =NRR!L18 -> 435.1228478 | M176: =NRR!M18 -> 719.5278197 | N176: =NRR!N18 -> 850.6716712 | O176: =NRR!O18 -> 855.3102869 | P176: =NRR!P18 -> 929.9679285 | Q176: =NRR!Q18 -> 1000.061859 | R176: =NRR!R18 -> 1015.339057 | S176: =NRR!S18 -> 1029.824112 | T176: =NRR!T18 -> 1044.424424
B177: =NRR!B19 -> Tax allowance | C177: =NRR!C19 -> $'000 | K177: =NRR!K19 -> 1197.01386 | L177: =NRR!L19 -> 2206.276519 | M177: =NRR!M19 -> 3030.523397 | N177: =NRR!N19 -> 3523.93977 | O177: =NRR!O19 -> 3923.136684 | P177: =NRR!P19 -> 4339.102869 | Q177: =NRR!Q19 -> 4692.639077 | R177: =NRR!R19 -> 5008.060924 | S177: =NRR!S19 -> 5323.169283 | T177: =NRR!T19 -> 5637.727113
B178: =NRR!B20 -> Total revenue adjustments | K178: =NRR!K20 -> 1005 | L178: =NRR!L20 -> 0 | M178: =NRR!M20 -> 0 | N178: =NRR!N20 -> 0 | O178: =NRR!O20 -> 0 | P178: =NRR!P20 -> 0 | Q178: =NRR!Q20 -> 0 | R178: =NRR!R20 -> 0 | S178: =NRR!S20 -> 0 | T178: =NRR!T20 -> 0
B179: =NRR!B21 -> Notional revenue requirement (NRR) | C179: =NRR!C21 -> $'000 | K179: =NRR!K21 -> 115211.3346 | L179: =NRR!L21 -> 121154.7488 | M179: =NRR!M21 -> 127383.4327 | N179: =NRR!N21 -> 130867.6957 | O179: =NRR!O21 -> 133758.1397 | P179: =NRR!P21 -> 136690.3736 | Q179: =NRR!Q21 -> 139041.5138 | R179: =NRR!R21 -> 141062.3969 | S179: =NRR!S21 -> 143108.6709 | T179: =NRR!T21 -> 145170.7494
B180: =NRR!B22 -> less
B181: =NRR!B23 -> Profit/loss on asset sales | C181: =NRR!C23 -> $'000 | K181: =NRR!K23 -> 0 | L181: =NRR!L23 -> 0 | M181: =NRR!M23 -> 0 | N181: =NRR!N23 -> 0 | O181: =NRR!O23 -> 0 | P181: =NRR!P23 -> 0 | Q181: =NRR!Q23 -> 0 | R181: =NRR!R23 -> 0 | S181: =NRR!S23 -> 0 | T181: =NRR!T23 -> 0
B182: =NRR!B24 -> Other regulatory revenue (customer share) | C182: =NRR!C23 -> $'000 | K182: =NRR!K24 -> 0 | L182: =NRR!L24 -> 1000 | M182: =NRR!M24 -> 1000 | N182: =NRR!N24 -> 1000 | O182: =NRR!O24 -> 1000 | P182: =NRR!P24 -> 1000 | Q182: =NRR!Q24 -> 1000 | R182: =NRR!R24 -> 1000 | S182: =NRR!S24 -> 1000 | T182: =NRR!T24 -> 1000
B183: =NRR!B25 -> Revenue required from prices | C183: =NRR!C25 -> $'000 | K183: =NRR!K25 -> 115211.3346 | L183: =NRR!L25 -> 120154.7488 | M183: =NRR!M25 -> 126383.4327 | N183: =NRR!N25 -> 129867.6957 | O183: =NRR!O25 -> 132758.1397 | P183: =NRR!P25 -> 135690.3736 | Q183: =NRR!Q25 -> 138041.5138 | R183: =NRR!R25 -> 140062.3969 | S183: =NRR!S25 -> 142108.6709 | T183: =NRR!T25 -> 144170.7494
B186: Target revenue | C186: =C183 -> $'000 | K186: =K136 -> 117194.5379 | L186: 120909.3393 | M186: 124748.1784 | N186: 128714.4001 | O186: 132597.795 | P186: 137102.7847 | Q186: 141758.6434 | R186: 146570.6215 | S186: 151542.9594 | T186: 156680.5967
B187: ="Implied real return on RAB ("&IF($W$61=2,"post-tax","pre-tax")&")" -> Implied real return on RAB (post-tax) | C187: % | K187: ='Implied return'!K30 -> 0.02818685909 | L187: ='Implied return'!L30 -> 0.02676155333 | M187: ='Implied return'!M30 -> 0.0244543657 | N187: ='Implied return'!N30 -> 0.02493970646 | O187: ='Implied return'!O30 -> 0.02585536973 | P187: ='Implied return'!P30 -> 0.02725452245 | Q187: ='Implied return'!Q30 -> 0.02928584691 | R187: ='Implied return'!R30 -> 0.03175570316 | S187: ='Implied return'!S30 -> 0.0343481691 | T187: ='Implied return'!T30 -> 0.03707730704
B189: NPV of required revenue from prices over next determination period | K189: =SUMPRODUCT($K$70:$T$70,K183:T183) -> 573567.2506
B190: NPV of target revenue from prices over the next determination period | K190: =SUMPRODUCT($K$70:$T$70,K186:T186) -> 573567.2506
B191: Difference | K191: =K190-K189 -> 6.4028427e-09
B192: check required revenue = 0 | K192: =SUM(K173:K177)+K178-SUM(K181:K183) -> 0 | L192: 0 | M192: 0 | N192: 0 | O192: 0 | P192: 0 | Q192: 0 | R192: 0 | S192: 0 | T192: 0
B193: Check NPVs = 0 | K193: =NRR!K26-K189 -> 0
B196: TABLE 7 - FINANCIAL INDICATORS
B197: =B$115 -> Financial year | D197: ='Financials actual'!D109 -> Target ratios | I197: =I$115 -> 2021-22 | J197: 2022-23 | K197: 2023-24 | L197: 2024-25 | M197: 2025-26 | N197: 2026-27 | O197: 2027-28 | P197: 2028-29 | Q197: 2029-30 | R197: 2030-31 | S197: 2031-32 | T197: 2032-33
K198: =K$154 -> Determination period is 2023-24 to 2027-28
B201: ='Financials actual'!B112 -> 1A. Interest Coverage Ratio (ICR) | D201: ='Financials actual'!D112 -> Higher is better | J201: This is a coverage ratio and measures a business’s ability to service its debt prior to repayment.
B202: - Actual 1 | C202: ='Financials actual'!C113 -> > | D202: ='Financials actual'!D113&" times" -> 1.8 times | I202: ='Financials actual'!I113 -> 2.288624057 | J202: ='Financials actual'!J113 -> 2.139706213 | K202: ='Financials actual'!K113 -> 1.942279227 | L202: ='Financials actual'!L113 -> 1.902849258 | M202: ='Financials actual'!M113 -> 1.74218893 | N202: ='Financials actual'!N113 -> 1.71470655 | O202: ='Financials actual'!O113 -> 1.744063751 | P202: ='Financials actual'!P113 -> 1.78147212 | Q202: ='Financials actual'!Q113 -> 1.846869184 | R202: ='Financials actual'!R113 -> 1.946343644 | S202: ='Financials actual'!S113 -> 2.057528581 | T202: ='Financials actual'!T113 -> 2.179673381 | V202: ='Financials actual'!V113 -> = (FFO + net interest payments) / net interest payments, after adjustment for operating leases and superannuation
B203: ='Financials benchmark'!B104 -> 1B. Real Interest Coverage Ratio (RICR)
B204: - Benchmark | C204: ='Financials benchmark'!C105 -> > | D204: ='Financials benchmark'!D105&" times" -> 2.2 times | I204: na | J204: ='Financials benchmark'!J105 -> 2.675458474 | K204: ='Financials benchmark'!K105 -> 5.509879321 | L204: ='Financials benchmark'!L105 -> 5.177550168 | M204: ='Financials benchmark'!M105 -> 5.124998292 | N204: ='Financials benchmark'!N105 -> 5.242234045 | O204: ='Financials benchmark'!O105 -> 5.348531248 | P204: ='Financials benchmark'!P105 -> 5.55378882 | Q204: ='Financials benchmark'!Q105 -> 5.834241938 | R204: ='Financials benchmark'!R105 -> 6.137443599 | S204: ='Financials benchmark'!S105 -> 6.454614261 | T204: ='Financials benchmark'!T105 -> 6.787256925 | V204: ='Financials benchmark'!V105 -> = (FFO + net interest payments) / net interest payments, assuming a real cost of debt
B207: ='Financials actual'!B115 -> 2A. FFO / Net Debt | D207: ='Financials actual'!D115 -> Higher is better | J207: This is a more dynamic measure of leverage than debt gearing and a useful indicator of a business’s ability to generate cash flows.
B208: - Actual 1 | C208: ='Financials actual'!C116 -> > | D208: ='Financials actual'!D116 -> 0.06 | I208: ='Financials actual'!I116 -> 0.06465368405 | J208: ='Financials actual'!J116 -> 0.05715991529 | K208: ='Financials actual'!K116 -> 0.04524297806 | L208: ='Financials actual'!L116 -> 0.04262223415 | M208: ='Financials actual'!M116 -> 0.03828337629 | N208: ='Financials actual'!N116 -> 0.03844322521 | O208: ='Financials actual'!O116 -> 0.03995261737 | P208: ='Financials actual'!P116 -> 0.04271006227 | Q208: ='Financials actual'!Q116 -> 0.04718995992 | R208: ='Financials actual'!R116 -> 0.05290622739 | S208: ='Financials actual'!S116 -> 0.05923903995 | T208: ='Financials actual'!T116 -> 0.0662249197 | V208: ='Financials actual'!V116 -> = FFO / Net Debt, after adjustment for operating leases and superannuation
B209: ='Financials benchmark'!B107 -> 2B. Real FFO / Net Debt
B210: =B204 -> - Benchmark | C210: ='Financials benchmark'!C108 -> > | D210: ='Financials benchmark'!D108 -> 0.07 | I210: na | J210: ='Financials benchmark'!J108 -> 0.05361467117 | K210: ='Financials benchmark'!K108 -> 0.07108251453 | L210: ='Financials benchmark'!L108 -> 0.06698695604 | M210: ='Financials benchmark'!M108 -> 0.06614428748 | N210: ='Financials benchmark'!N108 -> 0.06802416107 | O210: ='Financials benchmark'!O108 -> 0.06972863517 | P210: ='Financials benchmark'!P108 -> 0.07301993735 | Q210: ='Financials benchmark'!Q108 -> 0.07751699901 | R210: ='Financials benchmark'!R108 -> 0.08237883321 | S210: ='Financials benchmark'!S108 -> 0.08746466017 | T210: ='Financials benchmark'!T108 -> 0.09279858043 | V210: ='Financials benchmark'!V108 -> = FFO / Net Debt, assuming a real cost of debt
B213: ='Financials benchmark'!B110 -> 3. Net Debt / RAB | D213: ='Financials actual'!D118 -> Lower is better | J213: The gearing ratio can provide useful information by assessing the business' leverage over the determination period and as a comparison to the gearing level assumed in the WACC.
B214: - Actual 1 | C214: ='Financials actual'!C119 -> < | D214: ='Financials actual'!D119 -> 0.7 | I214: ='Financials actual'!I119 -> 0.500805583 | J214: ='Financials actual'!J119 -> 0.5038758672 | K214: ='Financials actual'!K119 -> 0.53116041 | L214: ='Financials actual'!L119 -> 0.562117218 | M214: ='Financials actual'!M119 -> 0.5715419824 | N214: ='Financials actual'!N119 -> 0.5706606423 | O214: ='Financials actual'!O119 -> 0.5699353214 | P214: ='Financials actual'!P119 -> 0.5646457172 | Q214: ='Financials actual'!Q119 -> 0.5543817944 | R214: ='Financials actual'!R119 -> 0.5430779249 | S214: ='Financials actual'!S119 -> 0.5310482257 | T214: ='Financials actual'!T119 -> 0.518248694 | V214: ='Financials actual'!V119 -> = Net Debt / (RAB + net working capital), after adjustment for operating leases and superannuation
B215: =B204 -> - Benchmark | C215: ='Financials benchmark'!C111 -> < | D215: ='Financials benchmark'!D111 -> 0.7 | I215: na | J215: ='Financials benchmark'!J111 -> 0.6 | K215: ='Financials benchmark'!K111 -> 0.6 | L215: ='Financials benchmark'!L111 -> 0.6 | M215: ='Financials benchmark'!M111 -> 0.6 | N215: ='Financials benchmark'!N111 -> 0.6 | O215: ='Financials benchmark'!O111 -> 0.6 | P215: ='Financials benchmark'!P111 -> 0.6 | Q215: ='Financials benchmark'!Q111 -> 0.6 | R215: ='Financials benchmark'!R111 -> 0.6 | S215: ='Financials benchmark'!S111 -> 0.6 | T215: ='Financials benchmark'!T111 -> 0.6 | V215: ='Financials benchmark'!V111 -> = Net Debt / (RAB + net working capital)
B217: ='Financials benchmark'!B113 -> 4. Return on capital employed | C217: ='Financials benchmark'!C113 -> Target = real Post-tax WACC | J217: This ratio provides a check against the WACC under our benchmark test.
B218: =B215 -> - Benchmark | K218: ='Financials benchmark'!K114 -> 0.02930818187 | L218: ='Financials benchmark'!L114 -> 0.02674322849 | M218: ='Financials benchmark'!M114 -> 0.02441618124 | N218: ='Financials benchmark'!N114 -> 0.02491084342 | O218: ='Financials benchmark'!O114 -> 0.02583780243 | P218: ='Financials benchmark'!P114 -> 0.02725743416 | Q218: ='Financials benchmark'!Q114 -> 0.02931874411 | R218: ='Financials benchmark'!R114 -> 0.03182421224 | S218: ='Financials benchmark'!S114 -> 0.03445553802 | T218: ='Financials benchmark'!T114 -> 0.03722715374 | V218: ='Financials benchmark'!V114 -> = EBIT- tax + franking credits - return on working capital / average of opening and closing RAB
B219: =B218&", average over determination period" -> - Benchmark, average over determination period | D219: ='Financials benchmark'!D114 -> 0.026 | K219: ='Financials benchmark'!K115 -> 0.02615010161
B221: 1. Interest expense for Actual ratios is calculated using previous year's closing debt to avoid circular referencing (forecast period only)
B224: TABLE 8 - PRICES
B225: =B$115 -> Financial year | I225: =I$115 -> 2021-22 | J225: 2022-23 | K225: 2023-24 | L225: 2024-25 | M225: 2025-26 | N225: 2026-27 | O225: 2027-28 | P225: 2028-29 | Q225: 2029-30 | R225: 2030-31 | S225: 2031-32 | T225: 2032-33
K226: =K$154 -> Determination period is 2023-24 to 2027-28
B227: ="Base year prices, "&K227 -> Base year prices, 2022-23$ | I227: =Bills!I14 -> 2022-23$ | J227: =Bills!J14 -> 2022-23$ | K227: =Bills!K14 -> 2022-23$
B229: =Bills!B21 -> Access charge | C229: =Bills!C21 -> $/year | I229: =Bills!I21 -> 47.5737393 | J229: =Bills!J21 -> 50 | K229: =Bills!K21 -> 50.97298476 | L229: =Bills!L21 -> 51.96490351 | M229: =Bills!M21 -> 52.9761247 | N229: =Bills!N21 -> 54.00702394 | O229: =Bills!O21 -> 55.05798417 | P229: =Bills!P21 -> 56.12939577 | Q229: =Bills!Q21 -> 57.2216567 | R229: =Bills!R21 -> 58.3351727 | S229: =Bills!S21 -> 59.47035739 | T229: =Bills!T21 -> 60.62763242
B230: =Bills!B22 -> Usage charge for Tier 1 consumption | C230: =Bills!C22 -> $/kL | I230: =Bills!I22 -> 1.902949572 | J230: =Bills!J22 -> 2 | K230: =Bills!K22 -> 2.038919391 | L230: =Bills!L22 -> 2.078596141 | M230: =Bills!M22 -> 2.119044988 | N230: =Bills!N22 -> 2.160280958 | O230: =Bills!O22 -> 2.202319367 | P230: =Bills!P22 -> 2.245175831 | Q230: =Bills!Q22 -> 2.288866268 | R230: =Bills!R22 -> 2.333406908 | S230: =Bills!S22 -> 2.378814296 | T230: =Bills!T22 -> 2.425105297
B231: =Bills!B23 -> Usage charge for Tier 2 consumption | C231: =Bills!C23 -> $/kL | I231: =Bills!I23 -> 2.378686965 | J231: =Bills!J23 -> 2.5 | K231: =Bills!K23 -> 2.548649238 | L231: =Bills!L23 -> 2.598245176 | M231: =Bills!M23 -> 2.648806235 | N231: =Bills!N23 -> 2.700351197 | O231: =Bills!O23 -> 2.752899209 | P231: =Bills!P23 -> 2.806469788 | Q231: =Bills!Q23 -> 2.861082835 | R231: =Bills!R23 -> 2.916758635 | S231: =Bills!S23 -> 2.973517869 | T231: =Bills!T23 -> 3.031381621
B234: =K234 -> Determination prices, 2023-24$ | D234: rounding factors | K234: ="Determination prices, "&K225&"$" -> Determination prices, 2023-24$
B236: =B229 -> Access charge | C236: $/year | D236: 2 | K236: =ROUND(K229*(1+'Pricing & financial inputs'!$K$24),2) -> 54.18 | L236: =ROUND(L229*(1+'Pricing & financial inputs'!$K$24),2) -> 55.24 | M236: =ROUND(M229*(1+'Pricing & financial inputs'!$K$24),2) -> 56.31 | N236: =ROUND(N229*(1+'Pricing & financial inputs'!$K$24),2) -> 57.41 | O236: =ROUND(O229*(1+'Pricing & financial inputs'!$K$24),2) -> 58.53 | P236: =ROUND(P229*(1+'Pricing & financial inputs'!$K$24),2) -> 59.67 | Q236: =ROUND(Q229*(1+'Pricing & financial inputs'!$K$24),2) -> 60.83 | R236: =ROUND(R229*(1+'Pricing & financial inputs'!$K$24),2) -> 62.01 | S236: =ROUND(S229*(1+'Pricing & financial inputs'!$K$24),2) -> 63.22 | T236: =ROUND(T229*(1+'Pricing & financial inputs'!$K$24),2) -> 64.45
B237: Usage charge for Tier 1 consumption | C237: $/kL | D237: 2 | K237: =ROUND(K230*(1+'Pricing & financial inputs'!$K$24),2) -> 2.17 | L237: =ROUND(L230*(1+'Pricing & financial inputs'!$K$24),2) -> 2.21 | M237: =ROUND(M230*(1+'Pricing & financial inputs'!$K$24),2) -> 2.25 | N237: =ROUND(N230*(1+'Pricing & financial inputs'!$K$24),2) -> 2.3 | O237: =ROUND(O230*(1+'Pricing & financial inputs'!$K$24),2) -> 2.34 | P237: =ROUND(P230*(1+'Pricing & financial inputs'!$K$24),2) -> 2.39 | Q237: =ROUND(Q230*(1+'Pricing & financial inputs'!$K$24),2) -> 2.43 | R237: =ROUND(R230*(1+'Pricing & financial inputs'!$K$24),2) -> 2.48 | S237: =ROUND(S230*(1+'Pricing & financial inputs'!$K$24),2) -> 2.53 | T237: =ROUND(T230*(1+'Pricing & financial inputs'!$K$24),2) -> 2.58
B238: Usage charge for Tier 2 consumption | C238: $/kL | D238: =D237 -> 2 | K238: =ROUND(K231*(1+'Pricing & financial inputs'!$K$24),2) -> 2.71 | L238: =ROUND(L231*(1+'Pricing & financial inputs'!$K$24),2) -> 2.76 | M238: =ROUND(M231*(1+'Pricing & financial inputs'!$K$24),2) -> 2.82 | N238: =ROUND(N231*(1+'Pricing & financial inputs'!$K$24),2) -> 2.87 | O238: =ROUND(O231*(1+'Pricing & financial inputs'!$K$24),2) -> 2.93 | P238: =ROUND(P231*(1+'Pricing & financial inputs'!$K$24),2) -> 2.98 | Q238: =ROUND(Q231*(1+'Pricing & financial inputs'!$K$24),2) -> 3.04 | R238: =ROUND(R231*(1+'Pricing & financial inputs'!$K$24),2) -> 3.1 | S238: =ROUND(S231*(1+'Pricing & financial inputs'!$K$24),2) -> 3.16 | T238: =ROUND(T231*(1+'Pricing & financial inputs'!$K$24),2) -> 3.22
B240: Nominal prices | K240: =Bills!K69 -> nominal
B242: =B229 -> Access charge | C242: $/year | I242: =Bills!I72 -> 50 | J242: =Bills!J72 -> 50 | K242: =Bills!K72 -> 54.18 | L242: =Bills!L72 -> 56.62 | M242: =Bills!M72 -> 59.16 | N242: =Bills!N72 -> 61.82 | O242: =Bills!O72 -> 64.6 | P242: =Bills!P72 -> 67.51 | Q242: =Bills!Q72 -> 70.54 | R242: =Bills!R72 -> 73.71 | S242: =Bills!S72 -> 77.02 | T242: =Bills!T72 -> 80.49
B243: Usage charge for Tier 1 consumption | C243: $/kL | I243: =Bills!I73 -> 2 | J243: =Bills!J73 -> 2 | K243: =Bills!K73 -> 2.17 | L243: =Bills!L73 -> 2.26 | M243: =Bills!M73 -> 2.37 | N243: =Bills!N73 -> 2.47 | O243: =Bills!O73 -> 2.58 | P243: =Bills!P73 -> 2.7 | Q243: =Bills!Q73 -> 2.82 | R243: =Bills!R73 -> 2.95 | S243: =Bills!S73 -> 3.08 | T243: =Bills!T73 -> 3.22
B244: Usage charge for Tier 2 consumption | C244: $/kL | I244: =Bills!I74 -> 2.5 | J244: =Bills!J74 -> 2.5 | K244: =Bills!K74 -> 2.71 | L244: =Bills!L74 -> 2.83 | M244: =Bills!M74 -> 2.96 | N244: =Bills!N74 -> 3.09 | O244: =Bills!O74 -> 3.23 | P244: =Bills!P74 -> 3.38 | Q244: =Bills!Q74 -> 3.53 | R244: =Bills!R74 -> 3.69 | S244: =Bills!S74 -> 3.85 | T244: =Bills!T74 -> 4.02
B248: TABLE 9 - ANNUAL BILLS
B249: =B$115 -> Financial year | I249: =I$115 -> 2021-22 | J249: 2022-23 | K249: 2023-24 | L249: 2024-25 | M249: 2025-26 | N249: 2026-27 | O249: 2027-28 | P249: 2028-29 | Q249: 2029-30 | R249: 2030-31 | S249: 2031-32 | T249: 2032-33
K250: =K$154 -> Determination period is 2023-24 to 2027-28
B251: =B227 -> Base year prices, 2022-23$ | I251: =K251 -> 2022-23$ | J251: =K251 -> 2022-23$ | K251: =K227 -> 2022-23$
B253: =Bills!B53 -> Bills for non-pensioners
B254: =Bills!B54&" ("&Bills!D28&" kL pa)" -> Small customer (100 kL pa) | C254: =Bills!C54&", "&$K$251 -> $/year, 2022-23$ | I254: =Bills!I54 -> 237.8686965 | J254: =Bills!J54 -> 250 | K254: =Bills!K54 -> 254.8649238 | L254: =Bills!L54 -> 259.8245176 | M254: =Bills!M54 -> 264.8806235 | N254: =Bills!N54 -> 270.0351197 | O254: =Bills!O54 -> 275.2899209 | P254: =Bills!P54 -> 280.6469788 | Q254: =Bills!Q54 -> 286.1082835 | R254: =Bills!R54 -> 291.6758635 | S254: =Bills!S54 -> 297.3517869 | T254: =Bills!T54 -> 303.1381621
B255: ---- annual percentage change | C255: % | K255: =K254/J254-1 -> 0.01945969527 | L255: 0.01945969527 | M255: 0.01945969527 | N255: 0.01945969527 | O255: 0.01945969527 | P255: 0.01945969527 | Q255: 0.01945969527 | R255: 0.01945969527 | S255: 0.01945969527 | T255: 0.01945969527
B256: =Bills!B55&" ("&Bills!D29&" kL pa)" -> Medium customer (200 kL pa) | C256: =C$254 -> $/year, 2022-23$ | I256: =Bills!I55 -> 451.9505233 | J256: =Bills!J55 -> 475 | K256: =Bills!K55 -> 484.2433553 | L256: =Bills!L55 -> 493.6665834 | M256: =Bills!M55 -> 503.2731847 | N256: =Bills!N55 -> 513.0667275 | O256: =Bills!O55 -> 523.0508496 | P256: =Bills!P55 -> 533.2292598 | Q256: =Bills!Q55 -> 543.6057387 | R256: =Bills!R55 -> 554.1841407 | S256: =Bills!S55 -> 564.9683952 | T256: =Bills!T55 -> 575.962508
B257: =B255 -> ---- annual percentage change | C257: =C255 -> % | K257: =K256/J256-1 -> 0.01945969527 | L257: 0.01945969527 | M257: 0.01945969527 | N257: 0.01945969527 | O257: 0.01945969527 | P257: 0.01945969527 | Q257: 0.01945969527 | R257: 0.01945969527 | S257: 0.01945969527 | T257: 0.01945969527
B258: =Bills!B56&" ("&Bills!D30&" kL pa)" -> Large customer (400 kL pa) | C258: =C$254 -> $/year, 2022-23$ | I258: =Bills!I56 -> 927.6879163 | J258: =Bills!J56 -> 975 | K258: =Bills!K56 -> 993.9732029 | L258: =Bills!L56 -> 1013.315619 | M258: =Bills!M56 -> 1033.034432 | N258: =Bills!N56 -> 1053.136967 | O258: =Bills!O56 -> 1073.630691 | P258: =Bills!P56 -> 1094.523217 | Q258: =Bills!Q56 -> 1115.822306 | R258: =Bills!R56 -> 1137.535868 | S258: =Bills!S56 -> 1159.671969 | T258: =Bills!T56 -> 1182.238832
B259: =B257 -> ---- annual percentage change | C259: =C257 -> % | K259: =K258/J258-1 -> 0.01945969527 | L259: 0.01945969527 | M259: 0.01945969527 | N259: 0.01945969527 | O259: 0.01945969527 | P259: 0.01945969527 | Q259: 0.01945969527 | R259: 0.01945969527 | S259: 0.01945969527 | T259: 0.01945969527
B261: =Bills!B58 -> Bills for pensioners
B262: =B254 -> Small customer (100 kL pa) | C262: =C$254 -> $/year, 2022-23$ | I262: =Bills!I59 -> 152.2359657 | J262: =Bills!J59 -> 160 | K262: =Bills!K59 -> 164.8649238 | L262: =Bills!L59 -> 169.8245176 | M262: =Bills!M59 -> 174.8806235 | N262: =Bills!N59 -> 180.0351197 | O262: =Bills!O59 -> 185.2899209 | P262: =Bills!P59 -> 190.6469788 | Q262: =Bills!Q59 -> 196.1082835 | R262: =Bills!R59 -> 201.6758635 | S262: =Bills!S59 -> 207.3517869 | T262: =Bills!T59 -> 213.1381621
B263: =B255 -> ---- annual percentage change | C263: =C255 -> % | K263: =K262/J262-1 -> 0.03040577385 | L263: 0.03008277101 | M263: 0.0297725323 | N263: 0.02947437007 | O263: 0.02918764488 | P263: 0.02891176134 | Q263: 0.02864616433 | R263: 0.02839033574 | S263: 0.02814379134 | T263: 0.0279060781
B264: =B256 -> Medium customer (200 kL pa) | C264: =C$254 -> $/year, 2022-23$ | I264: =Bills!I60 -> 366.3177926 | J264: =Bills!J60 -> 385 | K264: =Bills!K60 -> 394.2433553 | L264: =Bills!L60 -> 403.6665834 | M264: =Bills!M60 -> 413.2731847 | N264: =Bills!N60 -> 423.0667275 | O264: =Bills!O60 -> 433.0508496 | P264: =Bills!P60 -> 443.2292598 | Q264: =Bills!Q60 -> 453.6057387 | R264: =Bills!R60 -> 464.1841407 | S264: =Bills!S60 -> 474.9683952 | T264: =Bills!T60 -> 485.962508
B265: =B263 -> ---- annual percentage change | C265: =C263 -> % | K265: =K264/J264-1 -> 0.02400871494 | L265: 0.02390205948 | M265: 0.02379835654 | N265: 0.02369750367 | O265: 0.02359940293 | P265: 0.02350396068 | Q265: 0.02341108732 | R265: 0.02332069707 | S265: 0.02323270778 | T265: 0.02314704076
B266: =B258 -> Large customer (400 kL pa) | C266: =C$254 -> $/year, 2022-23$ | I266: =Bills!I61 -> 842.0551855 | J266: =Bills!J61 -> 885 | K266: =Bills!K61 -> 903.9732029 | L266: =Bills!L61 -> 923.3156185 | M266: =Bills!M61 -> 943.0344317 | N266: =Bills!N61 -> 963.1369669 | O266: =Bills!O61 -> 983.6306913 | P266: =Bills!P61 -> 1004.523217 | Q266: =Bills!Q61 -> 1025.822306 | R266: =Bills!R61 -> 1047.535868 | S266: =Bills!S61 -> 1069.671969 | T266: =Bills!T61 -> 1092.238832
B267: =B265 -> ---- annual percentage change | C267: =C265 -> % | K267: =K266/J266-1 -> 0.02143864733 | L267: 0.02139711174 | M267: 0.02135652506 | N267: 0.02131686242 | O267: 0.02127809974 | P267: 0.0212402137 | Q267: 0.02120318167 | R267: 0.02116698177 | S267: 0.02113159274 | T267: 0.02109699401
B268: =B240 -> Nominal prices | I268: =J268 -> nominal | J268: =K268 -> nominal | K268: =Bills!K69 -> nominal
B270: =B253 -> Bills for non-pensioners
B271: =B254 -> Small customer (100 kL pa) | C271: =Bills!C54&", "&$K$268 -> $/year, nominal | I271: =Bills!I79 -> 250 | J271: =Bills!J79 -> 250 | K271: =Bills!K79 -> 271.18 | L271: =Bills!L79 -> 282.62 | M271: =Bills!M79 -> 296.16 | N271: =Bills!N79 -> 308.82 | O271: =Bills!O79 -> 322.6 | P271: =Bills!P79 -> 337.51 | Q271: =Bills!Q79 -> 352.54 | R271: =Bills!R79 -> 368.71 | S271: =Bills!S79 -> 385.02 | T271: =Bills!T79 -> 402.49
B272: =B255 -> ---- annual percentage change | C272: % | K272: =K271/J271-1 -> 0.08472 | L272: =L271/K271-1 -> 0.04218600192 | M272: 0.04790885288 | N272: 0.0427471637 | O272: 0.04462146234 | P272: 0.04621822691 | Q272: 0.04453201387 | R272: 0.04586713564 | S272: 0.04423530688 | T272: 0.04537426627
B273: Medium customer (200 kL pa) | C273: =C271 -> $/year, nominal | I273: =Bills!I80 -> 475 | J273: =Bills!J80 -> 475 | K273: =Bills!K80 -> 515.18 | L273: =Bills!L80 -> 537.12 | M273: =Bills!M80 -> 562.66 | N273: =Bills!N80 -> 586.82 | O273: =Bills!O80 -> 613.1 | P273: =Bills!P80 -> 641.51 | Q273: =Bills!Q80 -> 670.04 | R273: =Bills!R80 -> 700.71 | S273: =Bills!S80 -> 731.52 | T273: =Bills!T80 -> 764.49
B274: ---- annual percentage change | C274: =C272 -> % | K274: =K273/J273-1 -> 0.08458947368 | L274: =L273/K273-1 -> 0.04258705695 | M274: 0.04754989574 | N274: 0.04293889738 | O274: 0.0447837497 | P274: 0.04633828087 | Q274: 0.04447319605 | R274: 0.04577338666 | S274: 0.04396968789 | T274: 0.04507053806
B275: Large customer (400 kL pa) | C275: =C273 -> $/year, nominal | I275: =Bills!I81 -> 975 | J275: =Bills!J81 -> 975 | K275: =Bills!K81 -> 1057.18 | L275: =Bills!L81 -> 1103.12 | M275: =Bills!M81 -> 1154.66 | N275: =Bills!N81 -> 1204.82 | O275: =Bills!O81 -> 1259.1 | P275: =Bills!P81 -> 1317.51 | Q275: =Bills!Q81 -> 1376.04 | R275: =Bills!R81 -> 1438.71 | S275: =Bills!S81 -> 1501.52 | T275: =Bills!T81 -> 1568.49
B276: ---- annual percentage change | C276: =C274 -> % | K276: =K275/J275-1 -> 0.08428717949 | L276: =L275/K275-1 -> 0.04345522995 | M276: 0.0467220248 | N276: 0.04344135936 | O276: 0.04505237297 | P276: 0.04639027877 | Q276: 0.04442471025 | R276: 0.04554373419 | S276: 0.0436571651 | T276: 0.04460147051
B278: Bills for pensioners
B279: Small customer (100 kL pa) | C279: =C271 -> $/year, nominal | I279: =Bills!I84 -> 160 | J279: =Bills!J84 -> 160 | K279: =Bills!K84 -> 175.51 | L279: =Bills!L84 -> 184.56 | M279: =Bills!M84 -> 195.65 | N279: =Bills!N84 -> 205.79 | O279: =Bills!O84 -> 217 | P279: =Bills!P84 -> 229.27 | Q279: =Bills!Q84 -> 241.59 | R279: =Bills!R84 -> 254.99 | S279: =Bills!S84 -> 268.46 | T279: =Bills!T84 -> 283.01
B280: ---- annual percentage change | C280: % | K280: =K279/J279-1 -> 0.0969375 | L280: =L279/K279-1 -> 0.05156401345 | M280: 0.06008885999 | N280: 0.05182724252 | O280: 0.05447300646 | P280: 0.0565437788 | Q280: 0.05373577005 | R280: 0.05546587193 | S280: 0.052825601 | T280: 0.05419801833
B281: Medium customer (200 kL pa) | C281: $/year, nominal | I281: =Bills!I85 -> 385 | J281: =Bills!J85 -> 385 | K281: =Bills!K85 -> 419.51 | L281: =Bills!L85 -> 439.06 | M281: =Bills!M85 -> 462.15 | N281: =Bills!N85 -> 483.79 | O281: =Bills!O85 -> 507.5 | P281: =Bills!P85 -> 533.27 | Q281: =Bills!Q85 -> 559.09 | R281: =Bills!R85 -> 586.99 | S281: =Bills!S85 -> 614.96 | T281: =Bills!T85 -> 645.01
B282: ---- annual percentage change | C282: % | K282: =K281/J281-1 -> 0.08963636364 | L282: =L281/K281-1 -> 0.04660198803 | M282: 0.05258962329 | N282: 0.04682462404 | O282: 0.04900886748 | P282: 0.05077832512 | Q282: 0.04841824967 | R282: 0.04990252017 | S282: 0.04764987478 | T282: 0.04886496683
B283: Large customer (400 kL pa) | C283: $/year, nominal | I283: =Bills!I86 -> 885 | J283: =Bills!J86 -> 885 | K283: =Bills!K86 -> 961.51 | L283: =Bills!L86 -> 1005.06 | M283: =Bills!M86 -> 1054.15 | N283: =Bills!N86 -> 1101.79 | O283: =Bills!O86 -> 1153.5 | P283: =Bills!P86 -> 1209.27 | Q283: =Bills!Q86 -> 1265.09 | R283: =Bills!R86 -> 1324.99 | S283: =Bills!S86 -> 1384.96 | T283: =Bills!T86 -> 1449.01
B284: ---- annual percentage change | C284: % | K284: =K283/J283-1 -> 0.0864519774 | L284: =L283/K283-1 -> 0.04529334068 | M284: 0.04884285515 | N284: 0.04519280937 | O284: 0.04693271858 | P284: 0.04834850455 | Q284: 0.04616008005 | R284: 0.04734840999 | S284: 0.04526071895 | T284: 0.04624682301

Sheet Financials actual
B1: =Cover!B1 -> THE INDEPENDENT PRICING AND REGULATORY TRIBUNAL OF NSW | K1: =Cover!$B$3 -> IPART TEMPLATE FOR COST BUILDING BLOCKS, SIMPLE TARIFF SETTING AND FINANCIAL RATIO ANALYSIS
B3: 6a FINANCIAL STATEMENTS AND FINANCIAL RATIOS - ACTUAL
B5: Index | L5: row number
B6: =B16 -> TABLE 1 - ASSUMPTIONS | L6: =ROW(B16) -> 16
B7: =B34 -> TABLE 2 - REGULATORY INCOME STATEMENT (nominal $'000) | L7: =ROW(B34) -> 34
B8: =B64 -> TABLE 3 - REGULATORY BALANCE SHEET (nominal $'000) | L8: =ROW(B64) -> 64
B9: =B85 -> TABLE 4 - REGULATORY CASH FLOW (nominal$'000) | L9: =ROW(B85) -> 85
B10: =B108 -> TABLE 5 - FINANCEABILITY RATIOS | L10: =ROW(B108) -> 108
B11: =B127 -> TABLE 6 - CALCULATION OF TAX PAYABLE (nominal$'000) | L11: =ROW(B127) -> 127
B12: =B149 -> TABLE 7 - CALCULATIONS FOR FINANCEABILITY RATIOS (nominal$'000) | L12: =ROW(B149) -> 149
B16: TABLE 1 - ASSUMPTIONS
B17: ='Pricing & financial inputs'!B63 -> Financial year | C17: ='Pricing & financial inputs'!C63 -> Units | D17: Selection options | H17: ='Pricing & financial inputs'!H63 -> 2020-21 | I17: ='Pricing & financial inputs'!I63 -> 2021-22 | J17: ='Pricing & financial inputs'!J63 -> 2022-23 | K17: ='Pricing & financial inputs'!K63 -> 2023-24 | L17: ='Pricing & financial inputs'!L63 -> 2024-25 | M17: ='Pricing & financial inputs'!M63 -> 2025-26 | N17: ='Pricing & financial inputs'!N63 -> 2026-27 | O17: ='Pricing & financial inputs'!O63 -> 2027-28 | P17: ='Pricing & financial inputs'!P63 -> 2028-29 | Q17: ='Pricing & financial inputs'!Q63 -> 2029-30 | R17: ='Pricing & financial inputs'!R63 -> 2030-31 | S17: ='Pricing & financial inputs'!S63 -> 2031-32 | T17: ='Pricing & financial inputs'!T63 -> 2032-33
D18: & messages
B19: ='Pricing & financial inputs'!$B$67 -> Corporate tax rate | C19: % | I19: ='Pricing & financial inputs'!I69 -> 0.3 | J19: ='Pricing & financial inputs'!J69 -> 0.3 | K19: ='Pricing & financial inputs'!K69 -> 0.3 | L19: ='Pricing & financial inputs'!L69 -> 0.3 | M19: ='Pricing & financial inputs'!M69 -> 0.3 | N19: ='Pricing & financial inputs'!N69 -> 0.3 | O19: ='Pricing & financial inputs'!O69 -> 0.3 | P19: ='Pricing & financial inputs'!P69 -> 0.3 | Q19: ='Pricing & financial inputs'!Q69 -> 0.3 | R19: ='Pricing & financial inputs'!R69 -> 0.3 | S19: ='Pricing & financial inputs'!S69 -> 0.3 | T19: ='Pricing & financial inputs'!T69 -> 0.3
B20: =CHOOSE($D$20,Scenario!W62,Scenario!W63) -> Dividend payout rate | C20: =CHOOSE($D$20,'Pricing & financial inputs'!C72,'Pricing & financial inputs'!C74) -> % | D20: =Scenario!$W$65 -> 2 | I20: =CHOOSE($D$20,'Pricing & financial inputs'!I72*I23,'Pricing & financial inputs'!I74) -> 0.5 | J20: =CHOOSE($D$20,'Pricing & financial inputs'!J72*J23,'Pricing & financial inputs'!J74) -> 0.5 | K20: =CHOOSE($D$20,'Pricing & financial inputs'!K72*K23,'Pricing & financial inputs'!K74) -> 0.5 | L20: =CHOOSE($D$20,'Pricing & financial inputs'!L72*L23,'Pricing & financial inputs'!L74) -> 0.5 | M20: =CHOOSE($D$20,'Pricing & financial inputs'!M72*M23,'Pricing & financial inputs'!M74) -> 0.5 | N20: =CHOOSE($D$20,'Pricing & financial inputs'!N72*N23,'Pricing & financial inputs'!N74) -> 0.5 | O20: =CHOOSE($D$20,'Pricing & financial inputs'!O72*O23,'Pricing & financial inputs'!O74) -> 0.5 | P20: =CHOOSE($D$20,'Pricing & financial inputs'!P72*P23,'Pricing & financial inputs'!P74) -> 0.5 | Q20: =CHOOSE($D$20,'Pricing & financial inputs'!Q72*Q23,'Pricing & financial inputs'!Q74) -> 0.5 | R20: =CHOOSE($D$20,'Pricing & financial inputs'!R72*R23,'Pricing & financial inputs'!R74) -> 0.5 | S20: =CHOOSE($D$20,'Pricing & financial inputs'!S72*S23,'Pricing & financial inputs'!S74) -> 0.5 | T20: =CHOOSE($D$20,'Pricing & financial inputs'!T72*T23,'Pricing & financial inputs'!T74) -> 0.5
B21: ='Pricing & financial inputs'!B82 -> Expected actual average cost of debt | C21: =C19 -> % | I21: ='Pricing & financial inputs'!I82 -> 0.05 | J21: ='Pricing & financial inputs'!J82 -> 0.05 | K21: ='Pricing & financial inputs'!K82 -> 0.056 | L21: ='Pricing & financial inputs'!L82 -> 0.056 | M21: ='Pricing & financial inputs'!M82 -> 0.056 | N21: ='Pricing & financial inputs'!N82 -> 0.056 | O21: ='Pricing & financial inputs'!O82 -> 0.056 | P21: ='Pricing & financial inputs'!P82 -> 0.056 | Q21: ='Pricing & financial inputs'!Q82 -> 0.056 | R21: ='Pricing & financial inputs'!R82 -> 0.056 | S21: ='Pricing & financial inputs'!S82 -> 0.056 | T21: ='Pricing & financial inputs'!T82 -> 0.056
B22: Share of debt paid at nominal cost of debt | C22: =C21 -> % | I22: ='Pricing & financial inputs'!I78 -> 1 | J22: ='Pricing & financial inputs'!J78 -> 1 | K22: ='Pricing & financial inputs'!K78 -> 1 | L22: ='Pricing & financial inputs'!L78 -> 1 | M22: ='Pricing & financial inputs'!M78 -> 1 | N22: ='Pricing & financial inputs'!N78 -> 1 | O22: ='Pricing & financial inputs'!O78 -> 1 | P22: ='Pricing & financial inputs'!P78 -> 1 | Q22: ='Pricing & financial inputs'!Q78 -> 1 | R22: ='Pricing & financial inputs'!R78 -> 1 | S22: ='Pricing & financial inputs'!S78 -> 1 | T22: ='Pricing & financial inputs'!T78 -> 1
B23: Inflator to nominal values | C23: no. | I23: 1 | J23: ='RAB projected '!J19 -> 1 | K23: ='RAB projected '!K19 -> 1.025 | L23: ='RAB projected '!L19 -> 1.050625 | M23: ='RAB projected '!M19 -> 1.076890625 | N23: ='RAB projected '!N19 -> 1.103812891 | O23: ='RAB projected '!O19 -> 1.131408213 | P23: ='RAB projected '!P19 -> 1.159693418 | Q23: ='RAB projected '!Q19 -> 1.188685754 | R23: ='RAB projected '!R19 -> 1.218402898 | S23: ='RAB projected '!S19 -> 1.24886297 | T23: ='RAB projected '!T19 -> 1.280084544
B25: Tax treatment of cash capital contributions
B26: =Scenario!J53&" up to "&$J$17 -> Use net of tax & do not include tax in tax allowance up to 2022-23 | D26: =Scenario!W54 -> 1
B27: =Scenario!J54&" from "&$K$17 -> Use net of tax & do not include tax in tax allowance from 2023-24 | D27: =Scenario!W55 -> 1
B29: ='Pricing & financial inputs'!B87 -> Retained earnings | C29: ='Pricing & financial inputs'!C87 -> $'000 | H29: ='Pricing & financial inputs'!H87 -> 4000 | I29: ='Pricing & financial inputs'!I87 -> na | J29: ='Pricing & financial inputs'!J87 -> na
B30: ='Pricing & financial inputs'!B88 -> Closing cash assets | C30: ='Pricing & financial inputs'!C88 -> $'000 | H30: ='Pricing & financial inputs'!H88 -> na | I30: ='Pricing & financial inputs'!I88 -> 10000 | J30: ='Pricing & financial inputs'!J88 -> 10000
B31: ='Pricing & financial inputs'!B90 -> Closing debt (excluding operating lease debt obligation) | C31: ='Pricing & financial inputs'!C90 -> $'000 | H31: ='Pricing & financial inputs'!H90 -> na | I31: ='Pricing & financial inputs'!I90 -> 400000 | J31: ='Pricing & financial inputs'!J90 -> 450000
B34: ="TABLE 2 - REGULATORY INCOME STATEMENT (nominal "&'RAB & tax inputs'!$C$36&")" -> TABLE 2 - REGULATORY INCOME STATEMENT (nominal $'000)
B35: =B17 -> Financial year | H35: =H17 -> 2020-21 | I35: 2021-22 | J35: 2022-23 | K35: 2023-24 | L35: 2024-25 | M35: 2025-26 | N35: 2026-27 | O35: 2027-28 | P35: 2028-29 | Q35: 2029-30 | R35: 2030-31 | S35: 2031-32 | T35: 2032-33
J36: =K36 -> nominal $'000 | K36: ="nominal "&'RAB & tax inputs'!$C$36 -> nominal $'000
B38: Revenue from sales | C38: =$C$29 -> $'000 | I38: =Scenario!I136*I$23 -> 111085 | J38: =Scenario!J136*J$23 -> 113350 | K38: =Scenario!K136*K$23 -> 120124.4014 | L38: =Scenario!L136*L$23 -> 127030.3745 | M38: =Scenario!M136*M$23 -> 134340.1439 | N38: =Scenario!N136*N$23 -> 142076.614 | O38: =Scenario!O136*O$23 -> 150022.2343 | P38: =Scenario!P136*P$23 -> 158997.197 | Q38: =Scenario!Q136*Q$23 -> 168506.4799 | R38: =Scenario!R136*R$23 -> 178582.07 | S38: =Scenario!S136*S$23 -> 189256.3904 | T38: =Scenario!T136*T$23 -> 200564.4103
B39: Profit/loss on the asset sales | C39: =$C$29 -> $'000 | I39: ='Cost inputs'!I90*I23 -> 750 | J39: ='Cost inputs'!J90*J23 -> 500 | K39: ='Cost inputs'!K90*K23 -> 768.75 | L39: ='Cost inputs'!L90*L23 -> 709.171875 | M39: ='Cost inputs'!M90*M23 -> 538.4453125 | N39: ='Cost inputs'!N90*N23 -> 551.9064453 | O39: ='Cost inputs'!O90*O23 -> 565.7041064 | P39: ='Cost inputs'!P90*P23 -> 579.8467091 | Q39: ='Cost inputs'!Q90*Q23 -> 594.3428768 | R39: ='Cost inputs'!R90*R23 -> 609.2014488 | S39: ='Cost inputs'!S90*S23 -> 624.431485 | T39: ='Cost inputs'!T90*T23 -> 640.0422721 | V39: Total profit or loss, not just share of other revenue used to offset costs
B40: Non-regulatory profit | C40: =$C$29 -> $'000 | I40: ='Cost inputs'!I117*I23 -> 2000 | J40: ='Cost inputs'!J117*J23 -> 2000 | K40: ='Cost inputs'!K117*K23 -> -2050 | L40: ='Cost inputs'!L117*L23 -> 2101.25 | M40: ='Cost inputs'!M117*M23 -> 2153.78125 | N40: ='Cost inputs'!N117*N23 -> 2207.625781 | O40: ='Cost inputs'!O117*O23 -> 2262.816426 | P40: ='Cost inputs'!P117*P23 -> 2319.386836 | Q40: ='Cost inputs'!Q117*Q23 -> 2377.371507 | R40: ='Cost inputs'!R117*R23 -> 2436.805795 | S40: ='Cost inputs'!S117*S23 -> 2497.72594 | T40: ='Cost inputs'!T117*T23 -> 2560.169088 | V40: Total non-regulatory profit, not just share of other revenue used to offset costs
B41: Total revenue | C41: =$C$29 -> $'000 | I41: =SUM(I38:I40) -> 113835 | J41: =SUM(J38:J40) -> 115850 | K41: 118843.1514 | L41: 129840.7964 | M41: =SUM(M38:M40) -> 137032.3704 | N41: 144836.1463 | O41: 152850.7548 | P41: 161896.4306 | Q41: 171478.1943 | R41: 181628.0772 | S41: 192378.5478 | T41: 203764.6216
B43: Operating costs | C43: =$C$29 -> $'000 | I43: ='Selected costs'!I16*I$23 -> 64940 | J43: ='Selected costs'!J16*J$23 -> 64950 | K43: ='Selected costs'!K16*K$23 -> 67568 | L43: ='Selected costs'!L16*L$23 -> 70297.31875 | M43: ='Selected costs'!M16*M$23 -> 73142.41125 | N43: ='Selected costs'!N16*N$23 -> 76096.86068 | O43: ='Selected costs'!O16*O$23 -> 79164.63266 | P43: ='Selected costs'!P16*P$23 -> 82361.42656 | Q43: ='Selected costs'!Q16*Q$23 -> 85680.46912 | R43: ='Selected costs'!R16*R$23 -> 89138.35598 | S43: ='Selected costs'!S16*S$23 -> 92740.56415 | T43: ='Selected costs'!T16*T$23 -> 96479.9721
B45: EBITDA | C45: =C43 -> $'000 | I45: =I41-I43 -> 48895 | J45: 50900 | K45: 51275.15137 | L45: 59543.47767 | M45: =M41-M43 -> 63889.95917 | N45: 68739.28558 | O45: 73686.12217 | P45: 79535.004 | Q45: 85797.72519 | R45: 92489.72123 | S45: 99637.98363 | T45: 107284.6495
B46: Depreciation | C46: =C45 -> $'000 | I46: ='RAB historical'!I118 -> 21239.76824 | J46: ='RAB historical'!J118 -> 23667.63164 | K46: ='RAB projected '!K135 -> 23881.09768 | L46: ='RAB projected '!L135 -> 27499.9465 | M46: ='RAB projected '!M135 -> 30766.9327 | N46: ='RAB projected '!N135 -> 32728.75315 | O46: ='RAB projected '!O135 -> 34592.36991 | P46: ='RAB projected '!P135 -> 36566.45478 | Q46: ='RAB projected '!Q135 -> 38356.1128 | R46: ='RAB projected '!R135 -> 40084.46738 | S46: ='RAB projected '!S135 -> 41887.75574 | T46: ='RAB projected '!T135 -> 43768.95658 | V46: Year-end value of depreciation
B48: EBIT | C48: =$C$29 -> $'000 | I48: =I45-I46 -> 27655.23176 | J48: 27232.36836 | K48: 27394.05369 | L48: 32043.53117 | M48: =M45-M46 -> 33123.02646 | N48: 36010.53243 | O48: 39093.75226 | P48: 42968.54922 | Q48: 47441.61239 | R48: 52405.25385 | S48: 57750.22789 | T48: 63515.69294
B49: Interest income 1 | C49: =$C$29 -> $'000 | I49: =I68*I21 -> 500 | J49: =J68*J21 -> 500 | K49: =J68*K21 -> 560 | L49: 0 | M49: -1.629814506e-12 | N49: -1.629814506e-12 | O49: -2.444721758e-12 | P49: -2.037268132e-12 | Q49: 2.852175385e-12 | R49: -2.852175385e-12 | S49: 3.259629011e-12 | T49: -1.222360879e-12
B50: Interest expense 1,2 | C50: =$C$29 -> $'000 | I50: =I74*I21+I167 -> 20000 | J50: =J74*J21+J167 -> 22500 | K50: =J74*K21+K167 -> 25200 | L50: 28846.4282 | M50: 34335.22297 | N50: 37366.14341 | O50: 38980.78375 | P50: 40735.12829 | Q50: 41816.12504 | R50: 42096.87371 | S50: 42241.17828 | T50: 42303.37337 | V50: Interest expense includes the indexation on debt that carries a real cost of debt
B52: Pre Tax Profit | C52: =$C$29 -> $'000 | I52: =I48+I49-I50 -> 8155.231761 | J52: 5232.368356 | K52: 2754.053689 | L52: 3197.102967 | M52: =M48+M49-M50 -> -1212.196507 | N52: -1355.610981 | O52: 112.9685145 | P52: 2233.420935 | Q52: 5625.487347 | R52: 10308.38013 | S52: 15509.0496 | T52: 21212.31958
B53: Tax expense (incl tax on capital contributions) | C53: =$C$29 -> $'000 | I53: =(I52+I133+I134)*I19 -> 2716.569528 | J53: 1839.710507 | K53: 1118.341107 | L53: 1337.35589 | M53: -8.285045743 | N53: -9.310653744 | O53: 441.197511 | P53: 1087.515911 | Q53: 2115.573076 | R53: 3531.139083 | S53: 5102.30555 | T53: 6824.52631 | V53: Including tax on non-cash and cash capital contributions, the latter if cash capital contributions are deducted from capex at full value (see comment)
B55: Profit after tax | C55: =$C$29 -> $'000 | I55: =I52-I53 -> 5438.662233 | J55: 3392.657849 | K55: 1635.712582 | L55: 1859.747077 | M55: =M52-M53 -> -1203.911461 | N55: -1346.300327 | O55: -328.2289965 | P55: 1145.905024 | Q55: 3509.914272 | R55: 6777.241051 | S55: 10406.74405 | T55: 14387.79327
B56: Retained earnings at the beginning of the year | C56: =$C$29 -> $'000 | I56: =H59 -> 4000 | J56: 6719.331116 | K56: 8415.660041 | L56: 9233.516332 | M56: =L59 -> 10163.38987 | N56: =M59 -> 8959.47841 | O56: =N59 -> 7613.178082 | P56: =O59 -> 7284.949086 | Q56: =P59 -> 7857.901598 | R56: =Q59 -> 9612.858734 | S56: =R59 -> 13001.47926 | T56: =S59 -> 18204.85129
B57: Dividends payable | C57: =$C$29 -> $'000 | I57: =MAX(0,CHOOSE($D$20,MIN(I55+I56,I20),I55*I20)) -> 2719.331116 | J57: 1696.328924 | K57: 817.8562912 | L57: 929.8735386 | M57: 0 | N57: 0 | O57: 0 | P57: 572.9525118 | Q57: 1754.957136 | R57: 3388.620526 | S57: 5203.372026 | T57: 7193.896635 | V57: Dividend payments cannot exceed profit after tax plus retained earnings
B59: Retained Earnings at year end | C59: =$C$29 -> $'000 | H59: =H29 -> 4000 | I59: =SUM(I55:I56)-I57 -> 6719.331116 | J59: =SUM(J55:J56)-J57 -> 8415.660041 | K59: =SUM(K55:K56)-K57 -> 9233.516332 | L59: 10163.38987 | M59: =SUM(M55:M56)-M57 -> 8959.47841 | N59: 7613.178082 | O59: 7284.949086 | P59: 7857.901598 | Q59: 9612.858734 | R59: 13001.47926 | S59: 18204.85129 | T59: 25398.74792
B60: 1. Interest expense and income are calculated on the closing value of debt/cash balance of the previous year to avoid circular referencing.
B61: 2. Interest expense includes the indexation on debt that carries a real cost of debt
B64: ="TABLE 3 - REGULATORY BALANCE SHEET (nominal "&C29&")" -> TABLE 3 - REGULATORY BALANCE SHEET (nominal $'000)
B65: =B35 -> Financial year | H65: =H35 -> 2020-21 | I65: 2021-22 | J65: 2022-23 | K65: 2023-24 | L65: 2024-25 | M65: =M35 -> 2025-26 | N65: 2026-27 | O65: 2027-28 | P65: 2028-29 | Q65: 2029-30 | R65: 2030-31 | S65: 2031-32 | T65: 2032-33
J66: =K66 -> nominal $'000 | K66: =K36 -> nominal $'000
B68: Cash assets | C68: =$C$29 -> $'000 | I68: =I30 -> 10000 | J68: =J30 -> 10000 | K68: =J68+K74-J74+K104-K167 -> 0 | L68: -2.910383046e-11 | M68: -2.910383046e-11 | N68: -4.365574569e-11 | O68: -3.637978807e-11 | P68: 5.09317033e-11 | Q68: -5.09317033e-11 | R68: 5.820766091e-11 | S68: -2.182787284e-11 | T68: -5.09317033e-11
B69: Receivables | C69: $'000 | I69: ='Working capital'!I43*I$23 -> 0 | J69: ='Working capital'!J43*J$23 -> 21557.04326 | K69: ='Working capital'!K43*K$23 -> 23205.55658 | L69: ='Working capital'!L43*L$23 -> 24306.84787 | M69: ='Working capital'!M43*M$23 -> 26179.9626 | N69: ='Working capital'!N43*N$23 -> 27684.50233 | O69: ='Working capital'!O43*O$23 -> 29059.70291 | P69: ='Working capital'!P43*P$23 -> 30426.55999 | Q69: ='Working capital'!Q43*Q$23 -> 31745.0274 | R69: ='Working capital'!R43*R$23 -> 33038.44764 | S69: ='Working capital'!S43*S$23 -> 34360.59761 | T69: ='Working capital'!T43*T$23 -> 35731.96555
B70: Inventory & prepayments | C70: $'000 | I70: =('Working capital'!I44+'Working capital'!I45)*I$23 -> 0 | J70: =('Working capital'!J44+'Working capital'!J45)*J$23 -> 200 | K70: =('Working capital'!K44+'Working capital'!K45)*K$23 -> 205 | L70: =('Working capital'!L44+'Working capital'!L45)*L$23 -> 210.125 | M70: =('Working capital'!M44+'Working capital'!M45)*M$23 -> 215.378125 | N70: =('Working capital'!N44+'Working capital'!N45)*N$23 -> 220.7625781 | O70: =('Working capital'!O44+'Working capital'!O45)*O$23 -> 226.2816426 | P70: =('Working capital'!P44+'Working capital'!P45)*P$23 -> 231.9386836 | Q70: =('Working capital'!Q44+'Working capital'!Q45)*Q$23 -> 237.7371507 | R70: =('Working capital'!R44+'Working capital'!R45)*R$23 -> 243.6805795 | S70: =('Working capital'!S44+'Working capital'!S45)*S$23 -> 249.772594 | T70: =('Working capital'!T44+'Working capital'!T45)*T$23 -> 256.0169088
B71: RAB | C71: $'000 | I71: ='RAB historical'!I120 -> 786452.8938 | J71: ='RAB historical'!J120 -> 869811.6426 | K71: ='RAB projected '!K137 -> 967664.586 | L71: ='RAB projected '!L137 -> 1089574.995 | M71: ='RAB projected '!M137 -> 1160514.424 | N71: ='RAB projected '!N137 -> 1210024.389 | O71: ='RAB projected '!O137 -> 1266212.968 | P71: ='RAB projected '!P137 -> 1310588.808 | Q71: ='RAB projected '!Q137 -> 1342441.016 | R71: ='RAB projected '!R137 -> 1374906.467 | S71: ='RAB projected '!S137 -> 1407979.419 | T71: ='RAB projected '!T137 -> 1441652.738
B72: Net tax assets/-liabilities | C72: $'000 | H72: 0 | I72: =H72-I91-I53 -> 542.9304716 | J72: 1811.219965 | K72: =J72-K91-K53 -> 3140.549268 | L72: =K72-L91-L53 -> 5552.533219 | M72: =L72-M91-M53 -> 8942.213031 | N72: =M72-N91-N53 -> 12919.83898 | O72: =N72-O91-O53 -> 17454.14995 | P72: =O72-P91-P53 -> 22577.38638 | Q72: =P72-Q91-Q53 -> 28234.52022 | R72: =Q72-R91-R53 -> 34408.66044 | S72: =R72-S91-S53 -> 41122.88716 | T72: =S72-T91-T53 -> 48400.57413 | V72: Difference between tax paid and tax expense
B73: Payables | C73: $'000 | I73: ='Working capital'!I46*I$23 -> 0 | J73: ='Working capital'!J46*J$23 -> 10677.12329 | K73: ='Working capital'!K46*K$23 -> 13834.9726 | L73: ='Working capital'!L46*L$23 -> 16128.1012 | M73: ='Working capital'!M46*M$23 -> 12176.53506 | N73: ='Working capital'!N46*N$23 -> 10674.62669 | O73: ='Working capital'!O46*O$23 -> 11528.27475 | P73: ='Working capital'!P46*P$23 -> 10868.07481 | Q73: ='Working capital'!Q46*Q$23 -> 10168.6367 | R73: ='Working capital'!R46*R$23 -> 10581.07809 | S73: ='Working capital'!S46*S$23 -> 11009.83908 | T73: ='Working capital'!T46*T$23 -> 11454.47707
B74: Debt | C74: $'000 | I74: =I31 -> 400000 | J74: =J31 -> 450000 | K74: =MAX(0,J74-K104-J68)+K167 -> 515114.7893 | L74: 613128.9816 | M74: 667252.5608 | N74: 696085.4241 | O74: 727413.0051 | P74: 746716.5186 | Q74: 751729.8878 | R74: 754306.7551 | S74: 755417.3815 | T74: 754907.9795 | V74: Debt includes the indexation on debt that carries a real cost of debt
B75: Net assets employed | C75: $'000 | I75: =SUM(I68:I72)-SUM(I73:I74) -> 396995.8242 | J75: =SUM(J68:J72)-SUM(J73:J74) -> 442702.7825 | K75: =SUM(K68:K72)-SUM(K73:K74) -> 465265.9299 | L75: 490387.4181 | M75: =SUM(M68:M72)-SUM(M73:M74) -> 516422.8815 | N75: 544089.4417 | O75: 574011.8225 | P75: 606240.0992 | Q75: 640759.7765 | R75: 677709.4224 | S75: 717285.4561 | T75: 759678.8382
B77: Owner contributions | C77: =$C$29 -> $'000 | I77: =I75-I78-I79 -> 313863.3442 | J77: =J75-J78-J79 -> 317707.0149 | K77: =J77 -> 317707.0149 | L77: 317707.0149 | M77: =L77 -> 317707.0149 | N77: =M77 -> 317707.0149 | O77: =N77 -> 317707.0149 | P77: =O77 -> 317707.0149 | Q77: =P77 -> 317707.0149 | R77: =Q77 -> 317707.0149 | S77: =R77 -> 317707.0149 | T77: =S77 -> 317707.0149
B78: Retained earnings | C78: =$C$29 -> $'000 | I78: =I59 -> 6719.331116 | J78: =J59 -> 8415.660041 | K78: 9233.516332 | L78: 10163.38987 | M78: =M59 -> 8959.47841 | N78: 7613.178082 | O78: 7284.949086 | P78: 7857.901598 | Q78: 9612.858734 | R78: 13001.47926 | S78: 18204.85129 | T78: 25398.74792
B79: Asset revaluation reserve | C79: =$C$29 -> $'000 | I79: ='Pricing & financial inputs'!I94 -> 76413.14889 | J79: ='Pricing & financial inputs'!J94 -> 116580.1076 | K79: =J79+'RAB projected '!K136 -> 138325.3986 | L79: =K79+'RAB projected '!L136 -> 162517.0133 | M79: =L79+'RAB projected '!M136 -> 189756.3882 | N79: =M79+'RAB projected '!N136 -> 218769.2487 | O79: =N79+'RAB projected '!O136 -> 249019.8585 | P79: =O79+'RAB projected '!P136 -> 280675.1827 | Q79: =P79+'RAB projected '!Q136 -> 313439.9029 | R79: =Q79+'RAB projected '!R136 -> 347000.9283 | S79: =R79+'RAB projected '!S136 -> 381373.5899 | T79: =S79+'RAB projected '!T136 -> 416573.0754
B80: Total equity | C80: =$C$29 -> $'000 | I80: =SUM(I77:I79) -> 396995.8242 | J80: =SUM(J77:J79) -> 442702.7825 | K80: 465265.9299 | L80: 490387.4181 | M80: =SUM(M77:M79) -> 516422.8815 | N80: 544089.4417 | O80: 574011.8225 | P80: 606240.0992 | Q80: 640759.7765 | R80: 677709.4224 | S80: 717285.4561 | T80: 759678.8382
B81: check net assets = total equity | I81: =I75-SUM(I80) -> 0 | J81: =J75-SUM(J80) -> 0 | K81: 0 | L81: 0 | M81: =M75-SUM(M80) -> 0 | N81: 0 | O81: 0 | P81: 0 | Q81: 0 | R81: 0 | S81: 0 | T81: 0
L82: =L81-K81 -> 0 | M82: =M81-L81 -> 0 | N82: 0 | O82: 0 | P82: 0 | Q82: 0 | R82: 0 | S82: 0 | T82: 0 | U82: =U81-T81 -> 0
B85: ="TABLE 4 - REGULATORY CASH FLOW (nominal"&C29&")" -> TABLE 4 - REGULATORY CASH FLOW (nominal$'000)
B86: =B35 -> Financial year | I86: =I35 -> 2021-22 | J86: 2022-23 | K86: 2023-24 | L86: 2024-25 | M86: =M35 -> 2025-26 | N86: 2026-27 | O86: 2027-28 | P86: 2028-29 | Q86: 2029-30 | R86: 2030-31 | S86: 2031-32 | T86: 2032-33
J87: =K87 -> nominal $'000 | K87: =K36 -> nominal $'000
B89: Receipts from customers | C89: =$C$29 -> $'000 | I89: =I41-I39 -> 113085 | J89: 115350 | K89: 118074.4014 | L89: 129131.6245 | M89: =M41-M39 -> 136493.9251 | N89: 144284.2398 | O89: 152285.0507 | P89: 161316.5839 | Q89: 170883.8514 | R89: 181018.8758 | S89: 191754.1163 | T89: 203124.5794 | V89: Revenue excluding profit/loss on asset sales
B90: Operating costs | C90: =$C$29 -> $'000 | I90: =-I43 -> -64940 | J90: -64950 | K90: -67568 | L90: -70297.31875 | M90: =-M43 -> -73142.41125 | N90: -76096.86068 | O90: -79164.63266 | P90: -82361.42656 | Q90: -85680.46912 | R90: -89138.35598 | S90: -92740.56415 | T90: -96479.9721
B91: Tax paid | C91: =$C$29 -> $'000 | I91: =-I144 -> -3259.5 | J91: -3108 | K91: =-K144 -> -2447.67041 | L91: =-L144 -> -3749.339841 | M91: =-M144 -> -3381.394765 | N91: -3968.315293 | O91: -4975.508484 | P91: -6210.752345 | Q91: -7772.706915 | R91: -9705.279296 | S91: -11816.53227 | T91: -14102.21328 | V91: Including tax on both cash and non-cash capital contributions. Assume tax paid = tax payable
B92: Change in working capital | C92: =$C$29 -> $'000 | I92: 0 | J92: =(I69+I70-I73)-(J69+J70-J73) -> -11079.91997 | K92: 1504.335992 | L92: 1186.712304 | M92: =(L69+L70-L73)-(M69+M70-M73) -> -5829.933983 | N92: =(M69+M70-M73)-(N69+N70-N73) -> -3011.832564 | O92: =(N69+N70-N73)-(O69+O70-O73) -> -527.0715792 | P92: =(O69+O70-O73)-(P69+P70-P73) -> -2032.714063 | Q92: =(P69+P70-P73)-(Q69+Q70-Q73) -> -2023.703984 | R92: =(Q69+Q70-Q73)-(R69+R70-R73) -> -886.9222811 | S92: =(R69+R70-R73)-(S69+S70-S73) -> -899.4809964 | T92: =(S69+S70-S73)-(T69+T70-T73) -> -932.9742628
B93: Cash Flow From Operations | C93: =$C$29 -> $'000 | I93: =SUM(I89:I92) -> 44885.5 | J93: =SUM(J89:J92) -> 36212.08003 | K93: 49563.06695 | L93: 56271.67826 | M93: =SUM(M89:M92) -> 54140.1851 | N93: 61207.23128 | O93: 67617.838 | P93: 70711.69089 | Q93: 75406.97141 | R93: 81288.3182 | S93: 86297.53888 | T93: 91609.41971
B95: Sale of assets | C95: =$C$29 -> $'000 | I95: =SUM('Cost inputs'!I79:I80)*I$23 -> 1500 | J95: =SUM('Cost inputs'!J79:J80)*J$23 -> 1000 | K95: =SUM('Cost inputs'!K79:K80)*K$23 -> 1537.5 | L95: =SUM('Cost inputs'!L79:L80)*L$23 -> 1418.34375 | M95: =SUM('Cost inputs'!M79:M80)*M$23 -> 1076.890625 | N95: =SUM('Cost inputs'!N79:N80)*N$23 -> 1103.812891 | O95: =SUM('Cost inputs'!O79:O80)*O$23 -> 1131.408213 | P95: =SUM('Cost inputs'!P79:P80)*P$23 -> 1159.693418 | Q95: =SUM('Cost inputs'!Q79:Q80)*Q$23 -> 1188.685754 | R95: =SUM('Cost inputs'!R79:R80)*R$23 -> 1218.402898 | S95: =SUM('Cost inputs'!S79:S80)*S$23 -> 1248.86297 | T95: =SUM('Cost inputs'!T79:T80)*T$23 -> 1280.084544
B96: Purchase of assets | C96: =$C$29 -> $'000 | I96: =-SUM('Selected costs'!I20:I21)*I$23 -> -35000 | J96: =-SUM('Selected costs'!J20:J21)*J$23 -> -65200 | K96: =-SUM('Selected costs'!K20:K21)*K$23 -> -101475 | L96: =-SUM('Selected costs'!L20:L21)*L$23 -> -126075 | M96: =-SUM('Selected costs'!M20:M21)*M$23 -> -75382.34375 | N96: =-SUM('Selected costs'!N20:N21)*N$23 -> -54086.83164 | O96: =-SUM('Selected costs'!O20:O21)*O$23 -> -61096.0435 | P96: =-SUM('Selected costs'!P20:P21)*P$23 -> -49866.81698 | Q96: =-SUM('Selected costs'!Q20:Q21)*Q$23 -> -38037.94412 | R96: =-SUM('Selected costs'!R20:R21)*R$23 -> -39598.09417 | S96: =-SUM('Selected costs'!S20:S21)*S$23 -> -41212.47801 | T96: =-SUM('Selected costs'!T20:T21)*T$23 -> -42882.83223
B97: Cash capital contributions | C97: =$C$29 -> $'000 | I97: =SUM('Selected costs'!I25:I26)*I23*'RAB historical'!I38 -> 140 | J97: =SUM('Selected costs'!J25:J26)*J23*'RAB historical'!J38 -> 245 | K97: =SUM('Selected costs'!K25:K26)*K23*'RAB projected '!K30 -> 717.5 | L97: =SUM('Selected costs'!L25:L26)*L23*'RAB projected '!L30 -> 147.0875 | M97: =SUM('Selected costs'!M25:M26)*M23*'RAB projected '!M30 -> 376.9117187 | N97: =SUM('Selected costs'!N25:N26)*N23*'RAB projected '!N30 -> 309.0676094 | O97: =SUM('Selected costs'!O25:O26)*O23*'RAB projected '!O30 -> 0 | P97: =SUM('Selected costs'!P25:P26)*P23*'RAB projected '!P30 -> 0 | Q97: =SUM('Selected costs'!Q25:Q26)*Q23*'RAB projected '!Q30 -> 0 | R97: =SUM('Selected costs'!R25:R26)*R23*'RAB projected '!R30 -> 0 | S97: =SUM('Selected costs'!S25:S26)*S23*'RAB projected '!S30 -> 0 | T97: =SUM('Selected costs'!T25:T26)*T23*'RAB projected '!T30 -> 0 | V97: Value of cash capital contributions included in the RAB
B98: Cash Flow From Investing | C98: =$C$29 -> $'000 | I98: =SUM(I95:I97) -> -33360 | J98: =SUM(J95:J97) -> -63955 | K98: -99220 | L98: -124509.5687 | M98: =SUM(M95:M97) -> -73928.54141 | N98: -52673.95114 | O98: -59964.63528 | P98: -48707.12356 | Q98: -36849.25836 | R98: -38379.69127 | S98: -39963.61504 | T98: -41602.74769
B100: Interest received | C100: =$C$29 -> $'000 | I100: =I49 -> 500 | J100: 500 | K100: 560 | L100: 0 | M100: =M49 -> -1.629814506e-12 | N100: -1.629814506e-12 | O100: -2.444721758e-12 | P100: -2.037268132e-12 | Q100: 2.852175385e-12 | R100: -2.852175385e-12 | S100: 3.259629011e-12 | T100: -1.222360879e-12
B101: Interest paid | C101: =$C$29 -> $'000 | I101: =-I50+I167 -> -20000 | J101: -22500 | K101: -25200 | L101: -28846.4282 | M101: -34335.22297 | N101: -37366.14341 | O101: -38980.78375 | P101: -40735.12829 | Q101: -41816.12504 | R101: -42096.87371 | S101: -42241.17828 | T101: -42303.37337 | V101: Interest paid excludes the indexation on debt that carries a real cost of debt
B102: Dividends paid | C102: =$C$29 -> $'000 | I102: =-I57 -> -2719.331116 | J102: =-J57 -> -1696.328924 | K102: =-K57 -> -817.8562912 | L102: -929.8735386 | M102: =-M57 -> 0 | N102: 0 | O102: 0 | P102: -572.9525118 | Q102: -1754.957136 | R102: -3388.620526 | S102: -5203.372026 | T102: -7193.896635 | V102: Assume dividends paid = dividends payable
B103: Cash Flow from Financing | C103: =$C$29 -> $'000 | I103: =SUM(I100:I102) -> -22219.33112 | J103: -23696.32892 | K103: -25457.85629 | L103: -29776.30174 | M103: =SUM(M100:M102) -> -34335.22297 | N103: -37366.14341 | O103: -38980.78375 | P103: -41308.0808 | Q103: -43571.08218 | R103: -45485.49424 | S103: -47444.55031 | T103: -49497.27
B104: NET CASH FLOW | C104: =$C$29 -> $'000 | I104: =I93+I98+I103 -> -10693.83112 | J104: -51439.2489 | K104: -75114.78934 | L104: -98014.19223 | M104: =M93+M98+M103 -> -54123.57927 | N104: -28832.86327 | O104: -31327.58103 | P104: -19303.51348 | Q104: -5013.369131 | R104: -2576.867312 | S104: -1110.626472 | T104: 509.4020225
B108: TABLE 5 - FINANCEABILITY RATIOS
B109: =B35 -> Financial year | D109: Target ratios | I109: =I35 -> 2021-22 | J109: 2022-23 | K109: 2023-24 | L109: 2024-25 | M109: =M35 -> 2025-26 | N109: 2026-27 | O109: 2027-28 | P109: 2028-29 | Q109: 2029-30 | R109: 2030-31 | S109: 2031-32 | T109: 2032-33
B112: 1A. Interest Coverage Ratio (ICR) | D112: ='Financials benchmark'!D104 -> Higher is better
B113: - ratio (times) | C113: > | D113: 1.8 | I113: =(I178+I172)/I172 -> 2.288624057 | J113: 2.139706213 | K113: =(K178+K172)/K172 -> 1.942279227 | L113: 1.902849258 | M113: 1.74218893 | N113: 1.71470655 | O113: 1.744063751 | P113: 1.78147212 | Q113: 1.846869184 | R113: 1.946343644 | S113: 2.057528581 | T113: 2.179673381 | V113: = (FFO + net interest payments) / net interest payments, after adjustment for operating leases and superannuation
B115: 2A. FFO / Net Debt | D115: ='Financials benchmark'!D107 -> Higher is better
B116: - ratio (%) | C116: > | D116: 0.06 | I116: =I178/I171 -> 0.06465368405 | J116: 0.05715991529 | K116: 0.04524297806 | L116: 0.04262223415 | M116: 0.03828337629 | N116: 0.03844322521 | O116: 0.03995261737 | P116: 0.04271006227 | Q116: 0.04718995992 | R116: 0.05290622739 | S116: 0.05923903995 | T116: 0.0662249197 | V116: = FFO / Net Debt, after adjustment for operating leases and superannuation
B118: 3. Net Debt / RAB | D118: ='Financials benchmark'!D110 -> Lower is better
B119: - ratio (%) | C119: < | D119: 0.7 | I119: =I171/(I71+I69+I70-I73) -> 0.500805583 | J119: 0.5038758672 | K119: 0.53116041 | L119: 0.562117218 | M119: 0.5715419824 | N119: 0.5706606423 | O119: 0.5699353214 | P119: 0.5646457172 | Q119: 0.5543817944 | R119: 0.5430779249 | S119: 0.5310482257 | T119: 0.518248694 | V119: = Net Debt / (RAB + net working capital), after adjustment for operating leases and superannuation
B127: ="TABLE 6 - CALCULATION OF TAX PAYABLE (nominal"&C29&")" -> TABLE 6 - CALCULATION OF TAX PAYABLE (nominal$'000)
B128: =B17 -> Financial year | H128: =H17 -> 2020-21 | I128: 2021-22 | J128: 2022-23 | K128: 2023-24 | L128: 2024-25 | M128: 2025-26 | N128: 2026-27 | O128: 2027-28 | P128: 2028-29 | Q128: 2029-30 | R128: 2030-31 | S128: 2031-32 | T128: 2032-33
B131: Tax payable with actual cost of debt
B132: Total revenue excl cash and non-cash capital contributions | C132: =$C$29 -> $'000 | I132: =I41 -> 113835 | J132: 115850 | K132: 118843.1514 | L132: 129840.7964 | M132: 137032.3704 | N132: 144836.1463 | O132: 152850.7548 | P132: 161896.4306 | Q132: 171478.1943 | R132: 181628.0772 | S132: 192378.5478 | T132: 203764.6216
B133: Cash capital contributions included in taxable income | C133: $'000 | I133: =CHOOSE($D$26,0,I97) -> 0 | J133: =CHOOSE($D$26,0,J97) -> 0 | K133: =CHOOSE($D$27,0,K97) -> 0 | L133: 0 | M133: 0 | N133: 0 | O133: 0 | P133: 0 | Q133: 0 | R133: 0 | S133: 0 | T133: 0 | V133: Zero if cash capital contributions are included in the RAB net of tax
B134: Non-cash capital contributions | C134: $'000 | I134: ='Cost inputs'!I68*I23 -> 900 | J134: ='Cost inputs'!J68*J23 -> 900 | K134: ='Cost inputs'!K68*K23 -> 973.75 | L134: ='Cost inputs'!L68*L23 -> 1260.75 | M134: ='Cost inputs'!M68*M23 -> 1184.579687 | N134: ='Cost inputs'!N68*N23 -> 1324.575469 | O134: ='Cost inputs'!O68*O23 -> 1357.689855 | P134: ='Cost inputs'!P68*P23 -> 1391.632102 | Q134: ='Cost inputs'!Q68*Q23 -> 1426.422904 | R134: ='Cost inputs'!R68*R23 -> 1462.083477 | S134: ='Cost inputs'!S68*S23 -> 1498.635564 | T134: ='Cost inputs'!T68*T23 -> 1536.101453
B135: Total revenue | I135: =SUM(I132:I134) -> 114735 | J135: 116750 | K135: 119816.9014 | L135: 131101.5464 | M135: =SUM(M132:M134) -> 138216.9501 | N135: 146160.7217 | O135: 154208.4447 | P135: 163288.0627 | Q135: 172904.6172 | R135: 183090.1607 | S135: 193877.1833 | T135: 205300.7231
B136: less
B137: =B43 -> Operating costs | C137: $'000 | I137: =I43 -> 64940 | J137: 64950 | K137: 67568 | L137: 70297.31875 | M137: 73142.41125 | N137: 76096.86068 | O137: 79164.63266 | P137: 82361.42656 | Q137: 85680.46912 | R137: 89138.35598 | S137: 92740.56415 | T137: 96479.9721
B138: Tax depreciation | C138: $'000 | I138: =IF(Scenario!$W$32=1,'RAB & tax inputs'!I122,I46*$K138/$K46) -> 19430 | J138: =IF(Scenario!$W$32=1,'RAB & tax inputs'!J122,J46*$K138/$K46) -> 19440 | K138: =Tax!K36 -> 19450 | L138: =Tax!L36 -> 19460 | M138: =Tax!M36 -> 19468 | N138: =Tax!N36 -> 19470 | O138: =Tax!O36 -> 19478 | P138: =Tax!P36 -> 19489 | Q138: =Tax!Q36 -> 19499 | R138: =Tax!R36 -> 19504 | S138: =Tax!S36 -> 19507 | T138: =Tax!T36 -> 19510
B139: Net interest payments (including accruals) | C139: $'000 | I139: =I50-I49 -> 19500 | J139: 22000 | K139: =K50-K49 -> 24640 | L139: =L50-L49 -> 28846.4282 | M139: 34335.22297 | N139: 37366.14341 | O139: 38980.78375 | P139: 40735.12829 | Q139: 41816.12504 | R139: 42096.87371 | S139: 42241.17828 | T139: 42303.37337 | V139: Net interest payments from P&L statement (i.e. including indexation on debt that carries a real cost of debt)
B140: gives
B141: Income before tax | C141: $'000 | I141: =I135-SUM(I137:I139) -> 10865 | J141: 10360 | K141: =K135-SUM(K137:K139) -> 8158.901367 | L141: =L135-SUM(L137:L139) -> 12497.79947 | M141: =M135-SUM(M137:M139) -> 11271.31588 | N141: 13227.71764 | O141: 16585.02828 | P141: 20702.50782 | Q141: 25909.02305 | R141: 32350.93099 | S141: 39388.44091 | T141: 47007.37762
B142: Accumulated tax losses | C142: $'000 | I142: 0 | J142: =MAX(0,I142-I141) -> 0 | K142: 0 | L142: 0 | M142: =MAX(0,L142-L141) -> 0 | N142: =MAX(0,M142-M141) -> 0 | O142: =MAX(0,N142-N141) -> 0 | P142: =MAX(0,O142-O141) -> 0 | Q142: =MAX(0,P142-P141) -> 0 | R142: =MAX(0,Q142-Q141) -> 0 | S142: =MAX(0,R142-R141) -> 0 | T142: =MAX(0,S142-S141) -> 0 | V142: ="Assume zero accumulated tax losses in "&I128 -> Assume zero accumulated tax losses in 2021-22
B143: Taxable income | C143: $'000 | I143: =MAX(0,I141-I142) -> 10865 | J143: =MAX(0,J141-J142) -> 10360 | K143: 8158.901367 | L143: 12497.79947 | M143: 11271.31588 | N143: 13227.71764 | O143: 16585.02828 | P143: 20702.50782 | Q143: 25909.02305 | R143: 32350.93099 | S143: 39388.44091 | T143: 47007.37762
B144: Tax payable | C144: $'000 | I144: =I143*I$19 -> 3259.5 | J144: 3108 | K144: =K143*K$19 -> 2447.67041 | L144: =L143*L$19 -> 3749.339841 | M144: =M143*M$19 -> 3381.394765 | N144: =N143*N$19 -> 3968.315293 | O144: =O143*O$19 -> 4975.508484 | P144: =P143*P$19 -> 6210.752345 | Q144: =Q143*Q$19 -> 7772.706915 | R144: =R143*R$19 -> 9705.279296 | S144: =S143*S$19 -> 11816.53227 | T144: =T143*T$19 -> 14102.21328
B149: ="TABLE 7 - CALCULATIONS FOR FINANCEABILITY RATIOS (nominal"&C29&")" -> TABLE 7 - CALCULATIONS FOR FINANCEABILITY RATIOS (nominal$'000)
B150: =B$17 -> Financial year | D150: ='Pricing & financial inputs'!D63 -> Constants | J150: =J$17 -> 2022-23 | K150: 2023-24 | L150: 2024-25 | M150: 2025-26 | N150: 2026-27 | O150: 2027-28 | P150: 2028-29 | Q150: 2029-30 | R150: 2030-31 | S150: 2031-32 | T150: 2032-33
B152: Operating lease and superannuation adjustments for calculation of ratios
B154: Operating lease adjustments
B155: Operating lease interest adjustment | C155: =$C$29 -> $'000 | I155: ='Pricing & financial inputs'!I103*I$23 -> 136 | J155: ='Pricing & financial inputs'!J103*J$23 -> 136 | K155: ='Pricing & financial inputs'!K103*K$23 -> 139.4 | L155: ='Pricing & financial inputs'!L103*L$23 -> 142.885 | M155: ='Pricing & financial inputs'!M103*M$23 -> 146.457125 | N155: ='Pricing & financial inputs'!N103*N$23 -> 150.1185531 | O155: ='Pricing & financial inputs'!O103*O$23 -> 153.871517 | P155: ='Pricing & financial inputs'!P103*P$23 -> 157.7183049 | Q155: ='Pricing & financial inputs'!Q103*Q$23 -> 161.6612625 | R155: ='Pricing & financial inputs'!R103*R$23 -> 165.7027941 | S155: ='Pricing & financial inputs'!S103*S$23 -> 169.8453639 | T155: ='Pricing & financial inputs'!T103*T$23 -> 174.091498 | V155: This is the interest charge on the debt liability (See comment on 'Pricing & financial inputs' worksheet).
B156: Operating lease depreciation adjustment | C156: =$C$29 -> $'000 | I156: ='Pricing & financial inputs'!I105*I$23 -> 204 | J156: ='Pricing & financial inputs'!J105*J$23 -> 204 | K156: ='Pricing & financial inputs'!K105*K$23 -> 209.1 | L156: ='Pricing & financial inputs'!L105*L$23 -> 214.3275 | M156: ='Pricing & financial inputs'!M105*M$23 -> 219.6856875 | N156: ='Pricing & financial inputs'!N105*N$23 -> 225.1778297 | O156: ='Pricing & financial inputs'!O105*O$23 -> 230.8072754 | P156: ='Pricing & financial inputs'!P105*P$23 -> 236.5774573 | Q156: ='Pricing & financial inputs'!Q105*Q$23 -> 242.4918937 | R156: ='Pricing & financial inputs'!R105*R$23 -> 248.5541911 | S156: ='Pricing & financial inputs'!S105*S$23 -> 254.7680459 | T156: ='Pricing & financial inputs'!T105*T$23 -> 261.137247 | V156: This is the depreciation component of the operating lease expense.
B158: Operating lease debt adjustment | C158: =$C$29 -> $'000 | I158: ='Pricing & financial inputs'!I102*I$23 -> 1360 | J158: ='Pricing & financial inputs'!J102*J$23 -> 1360 | K158: ='Pricing & financial inputs'!K102*K$23 -> 1394 | L158: ='Pricing & financial inputs'!L102*L$23 -> 1428.85 | M158: ='Pricing & financial inputs'!M102*M$23 -> 1464.57125 | N158: ='Pricing & financial inputs'!N102*N$23 -> 1501.185531 | O158: ='Pricing & financial inputs'!O102*O$23 -> 1538.71517 | P158: ='Pricing & financial inputs'!P102*P$23 -> 1577.183049 | Q158: ='Pricing & financial inputs'!Q102*Q$23 -> 1616.612625 | R158: ='Pricing & financial inputs'!R102*R$23 -> 1657.027941 | S158: ='Pricing & financial inputs'!S102*S$23 -> 1698.453639 | T158: ='Pricing & financial inputs'!T102*T$23 -> 1740.91498 | V158: This is the ‘lease liability’ recognised on the business' balance sheet.
B160: Superannuation adjustment | C160: =$C$29 -> $'000 | I160: ='Pricing & financial inputs'!I110*I23 -> 2500 | J160: ='Pricing & financial inputs'!J110*J23 -> 2500 | K160: ='Pricing & financial inputs'!K110*K23 -> 2562.5 | L160: ='Pricing & financial inputs'!L110*L23 -> 2626.5625 | M160: ='Pricing & financial inputs'!M110*M23 -> 2692.226562 | N160: ='Pricing & financial inputs'!N110*N23 -> 2759.532227 | O160: ='Pricing & financial inputs'!O110*O23 -> 2828.520532 | P160: ='Pricing & financial inputs'!P110*P23 -> 2899.233546 | Q160: ='Pricing & financial inputs'!Q110*Q23 -> 2971.714384 | R160: ='Pricing & financial inputs'!R110*R23 -> 3046.007244 | S160: ='Pricing & financial inputs'!S110*S23 -> 3122.157425 | T160: ='Pricing & financial inputs'!T110*T23 -> 3200.21136 | V160: This is the unfunded defined benefits liability.
B161: Interest on superannuation adjustment | C161: =C160 -> $'000 | I161: =I160*I21 -> 125 | J161: 125 | K161: 143.5 | L161: 147.0875 | M161: 150.7646875 | N161: 154.5338047 | O161: 158.3971498 | P161: 162.3570785 | Q161: 166.4160055 | R161: 170.5764057 | S161: 174.8408158 | T161: 179.2118362 | V161: This is the interest costs of the unfunded defined benefits liability.
B163: Debt portion of RAB inflationary gain
B164: Total RAB inflationary gain | C164: =C155 -> $'000 | I164: ='RAB historical'!I119 -> 45456.0767 | J164: ='RAB historical'!J119 -> 42571.38048 | K164: ='RAB projected '!K136 -> 21745.29106 | L164: ='RAB projected '!L136 -> 24191.61465 | M164: ='RAB projected '!M136 -> 27239.37487 | N164: ='RAB projected '!N136 -> 29012.86059 | O164: ='RAB projected '!O136 -> 30250.60972 | P164: ='RAB projected '!P136 -> 31655.3242 | Q164: ='RAB projected '!Q136 -> 32764.72019 | R164: ='RAB projected '!R136 -> 33561.0254 | S164: ='RAB projected '!S136 -> 34372.66167 | T164: ='RAB projected '!T136 -> 35199.48548
B165: Share of inflationary gain that is debt1 | C165: =C164 -> $'000 | I165: =I164*I119 -> 22764.657 | J165: =J164*J119 -> 21450.69126 | K165: =K164*J119 -> 10956.92739 | L165: 12849.62796 | M165: 15311.72162 | N165: 16582.06786 | O165: 17262.83237 | P165: 18041.48737 | Q165: 18500.45893 | R165: 18605.62149 | S165: 18667.03378 | T165: 18692.62431
B166: Inflationary gain that represents the inflation component of interest payments | C166: =C165 -> $'000 | I166: =I165*I22 -> 22764.657 | J166: 21450.69126 | K166: 10956.92739 | L166: 12849.62796 | M166: 15311.72162 | N166: 16582.06786 | O166: 17262.83237 | P166: 18041.48737 | Q166: 18500.45893 | R166: 18605.62149 | S166: 18667.03378 | T166: 18692.62431 | V166: Share of inflationary gain that is debt x share of debt paid at nominal cost of debt
B167: Inflationary gain that is added to interest expense (P&L) and debt (balance sheet) | C167: $'000 | I167: =I165-I166 -> 0 | J167: =J165-J166 -> 0 | K167: =K165-K166 -> 0 | L167: =L165-L166 -> 0 | M167: =M165-M166 -> 0 | N167: 0 | O167: 0 | P167: 0 | Q167: 0 | R167: 0 | S167: 0 | T167: 0 | V167: Represents the indexation on principle for loans that carry a real cost of debt
B170: Adjusted Values for calculation of ratios
B171: Adjusted net debt | C171: =C155 -> $'000 | I171: =I74-I68+I158+I160 -> 393860 | J171: 443860 | K171: 519071.2893 | L171: 617184.3941 | M171: 671409.3587 | N171: 700346.1419 | O171: 731780.2408 | P171: 751192.9352 | Q171: 756318.2148 | R171: 759009.7902 | S171: 760237.9926 | T171: 759849.1059 | V171: Net debt plus the capitalised value of operating leases plus the unfunded defined benefits superannuation liability.
B172: Adjusted net interest payments | C172: =C171 -> $'000 | I172: =-I100-I101+I155+I161 -> 19761 | J172: 22261 | K172: 24922.9 | L172: 29136.4007 | M172: 34632.44478 | N172: 37670.79576 | O172: 39293.05242 | P172: 41055.20367 | Q172: 42144.20231 | R172: 42433.15291 | S172: 42585.86446 | T172: 42656.6767 | V172: Net interest expense plus interest portion of operating leases plus interest on unfunded superannuation liabilities
B174: Funds from Operations
B175: Funds From Operations (FFO) | C175: =$C$29 -> $'000 | I175: =I93-I92+I100+I101+I133*I19 -> 25385.5 | J175: 25292 | K175: 23418.73096 | L175: 26238.53776 | M175: 25634.89612 | N175: 26852.92044 | O175: 29164.12583 | P175: 32009.27666 | Q175: 35614.55035 | R175: 40078.36677 | S175: 44955.84159 | T175: 50239.02061 | V175: Cash flow from operations (CFO) minus change in working capital minus interest paid plus interest received plus tax on cash capital contributions if the latter are included in the RAB before tax.
B176: Adjustments to FFO for operating leases | C176: =$C$29 -> $'000 | I176: =I156 -> 204 | J176: 204 | K176: 209.1 | L176: 214.3275 | M176: 219.6856875 | N176: 225.1778297 | O176: 230.8072754 | P176: 236.5774573 | Q176: 242.4918937 | R176: 248.5541911 | S176: 254.7680459 | T176: 261.137247 | V176: Add back share of operating lease that is classified as depreciation (because depreciation is a non-cash expense).
B177: Adjustments to FFO for interest on superannuation adjustment | C177: =$C$29 -> $'000 | I177: =-I161 -> -125 | J177: -125 | K177: =-K161 -> -143.5 | L177: -147.0875 | M177: -150.7646875 | N177: -154.5338047 | O177: -158.3971498 | P177: -162.3570785 | Q177: -166.4160055 | R177: -170.5764057 | S177: -174.8408158 | T177: -179.2118362 | V177: Subtract notional interest payments on unfunded superannuation liabilities
B178: Adjusted FFO | C178: $'000 | I178: =SUM(I175:I177) -> 25464.5 | J178: 25371 | K178: 23484.33096 | L178: 26305.77776 | M178: =SUM(M175:M177) -> 25703.81712 | N178: 26923.56446 | O178: 29236.53596 | P178: 32083.49704 | Q178: 35690.62624 | R178: 40156.34455 | S178: 45035.76882 | T178: 50320.94602 | V178: FFO measures a company's operating cash flows before changes in working capital.
B180: 1. Share of inflationary gain calculated using the gearing ratio of the previous year to avoid circular referencing

Sheet Financials benchmark
B1: =Cover!B1 -> THE INDEPENDENT PRICING AND REGULATORY TRIBUNAL OF NSW | K1: =Cover!$B$3 -> IPART TEMPLATE FOR COST BUILDING BLOCKS, SIMPLE TARIFF SETTING AND FINANCIAL RATIO ANALYSIS
B3: 6b FINANCIAL STATEMENTS AND FINANCIAL RATIOS - BENCHMARK
B5: Index | L5: row number
B6: =B26 -> TABLE 2 - REGULATORY INCOME STATEMENT (nominal ) | L6: =ROW(B26) -> 26
B7: =B56 -> TABLE 3 - REGULATORY BALANCE SHEET (nominal ) | L7: =ROW(B56) -> 56
B8: =B76 -> TABLE 4 - REGULATORY CASH FLOW (nominal) | L8: =ROW(B76) -> 76
B9: =B101 -> TABLE 5 - FINANCEABILITY RATIOS | L9: =ROW(B101) -> 101
B10: =B127 -> TABLE 6 - CALCULATIONS FOR FINANCEABILITY RATIOS (nominal) | L10: =ROW(B127) -> 127
B14: TABLE 1 - ASSUMPTIONS
B15: ='Pricing & financial inputs'!B63 -> Financial year | C15: ='Pricing & financial inputs'!C63 -> Units | D15: Selection options | H15: ='Pricing & financial inputs'!H63 -> 2020-21 | I15: ='Pricing & financial inputs'!I63 -> 2021-22 | J15: ='Pricing & financial inputs'!J63 -> 2022-23 | K15: ='Pricing & financial inputs'!K63 -> 2023-24 | L15: ='Pricing & financial inputs'!L63 -> 2024-25 | M15: ='Pricing & financial inputs'!M63 -> 2025-26 | N15: ='Pricing & financial inputs'!N63 -> 2026-27 | O15: ='Pricing & financial inputs'!O63 -> 2027-28 | P15: ='Pricing & financial inputs'!P63 -> 2028-29 | Q15: ='Pricing & financial inputs'!Q63 -> 2029-30 | R15: ='Pricing & financial inputs'!R63 -> 2030-31 | S15: ='Pricing & financial inputs'!S63 -> 2031-32 | T15: ='Pricing & financial inputs'!T63 -> 2032-33
D16: & messages
B17: Real cost of debt (benchmark) | C17: % | I17: ='Pricing & financial inputs'!I84 -> 0.032 | J17: ='Pricing & financial inputs'!J84 -> 0.032 | K17: ='Pricing & financial inputs'!K84 -> 0.01603498542 | L17: ='Pricing & financial inputs'!L84 -> 0.01603498542 | M17: ='Pricing & financial inputs'!M84 -> 0.01603498542 | N17: ='Pricing & financial inputs'!N84 -> 0.01603498542 | O17: ='Pricing & financial inputs'!O84 -> 0.01603498542 | P17: ='Pricing & financial inputs'!P84 -> 0.01603498542 | Q17: ='Pricing & financial inputs'!Q84 -> 0.01603498542 | R17: ='Pricing & financial inputs'!R84 -> 0.01603498542 | S17: ='Pricing & financial inputs'!S84 -> 0.01603498542 | T17: ='Pricing & financial inputs'!T84 -> 0.01603498542
B18: Gearing ratio | C18: =C17 -> % | D18: =WACC!$F$36 -> 0.6 | I18: =$D18 -> 0.6 | J18: =$D18 -> 0.6 | K18: =$D18 -> 0.6 | L18: 0.6 | M18: 0.6 | N18: 0.6 | O18: 0.6 | P18: 0.6 | Q18: 0.6 | R18: 0.6 | S18: 0.6 | T18: 0.6
B19: Inflator to nominal values | C19: no. | I19: 1 | J19: ='RAB projected '!J19 -> 1 | K19: ='RAB projected '!K19 -> 1.025 | L19: ='RAB projected '!L19 -> 1.050625 | M19: ='RAB projected '!M19 -> 1.076890625 | N19: ='RAB projected '!N19 -> 1.103812891 | O19: ='RAB projected '!O19 -> 1.131408213 | P19: ='RAB projected '!P19 -> 1.159693418 | Q19: ='RAB projected '!Q19 -> 1.188685754 | R19: ='RAB projected '!R19 -> 1.218402898 | S19: ='RAB projected '!S19 -> 1.24886297 | T19: ='RAB projected '!T19 -> 1.280084544
B20: =Scenario!B70 -> Index for NPV calculations | K20: =Scenario!K70 -> 0.9834215721 | L20: =Scenario!L70 -> 0.9510846925 | M20: =Scenario!M70 -> 0.9198111146 | N20: =Scenario!N70 -> 0.8895658749 | O20: =Scenario!O70 -> 0.8603151595 | P20: =Scenario!P70 -> 0 | Q20: =Scenario!Q70 -> 0 | R20: =Scenario!R70 -> 0 | S20: =Scenario!S70 -> 0 | T20: =Scenario!T70 -> 0
B22: ='Pricing & financial inputs'!B88 -> Closing cash assets | C22: ='Pricing & financial inputs'!C87 -> $'000 | I22: ='Pricing & financial inputs'!I88 -> 10000 | J22: ='Pricing & financial inputs'!J88 -> 10000
B26: ="TABLE 2 - REGULATORY INCOME STATEMENT (nominal "&$C$25&")" -> TABLE 2 - REGULATORY INCOME STATEMENT (nominal )
B27: =B15 -> Financial year | I27: =I15 -> 2021-22 | J27: 2022-23 | K27: 2023-24 | L27: 2024-25 | M27: 2025-26 | N27: 2026-27 | O27: 2027-28 | P27: 2028-29 | Q27: 2029-30 | R27: 2030-31 | S27: 2031-32 | T27: 2032-33
J28: nominal | K28: =J28 -> nominal
B30: Revenue from sales | C30: =$C$22 -> $'000 | J30: =Scenario!J136*J$19 -> 113350 | K30: =Scenario!K136*K$19 -> 120124.4014 | L30: =Scenario!L136*L$19 -> 127030.3745 | M30: =Scenario!M136*M$19 -> 134340.1439 | N30: =Scenario!N136*N$19 -> 142076.614 | O30: =Scenario!O136*O$19 -> 150022.2343 | P30: =Scenario!P136*P$19 -> 158997.197 | Q30: =Scenario!Q136*Q$19 -> 168506.4799 | R30: =Scenario!R136*R$19 -> 178582.07 | S30: =Scenario!S136*S$19 -> 189256.3904 | T30: =Scenario!T136*T$19 -> 200564.4103
B31: Profit/loss on the asset sales | C31: =$C$22 -> $'000 | J31: =NRR!J23*J$19 -> 0 | K31: =NRR!K23*K$19 -> 0 | L31: =NRR!L23*L$19 -> 0 | M31: =NRR!M23*M$19 -> 0 | N31: =NRR!N23*N$19 -> 0 | O31: =NRR!O23*O$19 -> 0 | P31: =NRR!P23*P$19 -> 0 | Q31: =NRR!Q23*Q$19 -> 0 | R31: =NRR!R23*R$19 -> 0 | S31: =NRR!S23*S$19 -> 0 | T31: =NRR!T23*T$19 -> 0 | V31: Share of profit or loss used to offset costs
B32: Non-regulatory profit shared with customers | C32: =$C$22 -> $'000 | J32: =NRR!J24*J$19 -> 0 | K32: =NRR!K24*K$19 -> 0 | L32: =NRR!L24*L$19 -> 1050.625 | M32: =NRR!M24*M$19 -> 1076.890625 | N32: =NRR!N24*N$19 -> 1103.812891 | O32: =NRR!O24*O$19 -> 1131.408213 | P32: =NRR!P24*P$19 -> 1159.693418 | Q32: =NRR!Q24*Q$19 -> 1188.685754 | R32: =NRR!R24*R$19 -> 1218.402898 | S32: =NRR!S24*S$19 -> 1248.86297 | T32: =NRR!T24*T$19 -> 1280.084544 | V32: Share of profit used to offset costs
B33: Total revenue | C33: =$C$22 -> $'000 | J33: =SUM(J30:J32) -> 113350 | K33: 120124.4014 | L33: 128080.9995 | M33: 135417.0345 | N33: 143180.4269 | O33: 151153.6425 | P33: 160156.8904 | Q33: 169695.1657 | R33: 179800.4729 | S33: 190505.2533 | T33: 201844.4948
B35: Operating costs | C35: =$C$22 -> $'000 | J35: ='Selected costs'!J16*J$19 -> 64950 | K35: ='Selected costs'!K16*K$19 -> 67568 | L35: ='Selected costs'!L16*L$19 -> 70297.31875 | M35: ='Selected costs'!M16*M$19 -> 73142.41125 | N35: ='Selected costs'!N16*N$19 -> 76096.86068 | O35: ='Selected costs'!O16*O$19 -> 79164.63266 | P35: ='Selected costs'!P16*P$19 -> 82361.42656 | Q35: ='Selected costs'!Q16*Q$19 -> 85680.46912 | R35: ='Selected costs'!R16*R$19 -> 89138.35598 | S35: ='Selected costs'!S16*S$19 -> 92740.56415 | T35: ='Selected costs'!T16*T$19 -> 96479.9721
B37: EBITDA | C37: =$C$22 -> $'000 | J37: =J33-J35 -> 48400 | K37: 52556.40137 | L37: 57783.6808 | M37: 62274.62323 | N37: 67083.56624 | O37: 71989.00985 | P37: 77795.46387 | Q37: 84014.69656 | R37: 90662.11688 | S37: 97764.68917 | T37: 105364.5227
B38: Depreciation | C38: $'000 | J38: ='RAB historical'!J118 -> 23667.63164 | K38: ='RAB projected '!K135 -> 23881.09768 | L38: ='RAB projected '!L135 -> 27499.9465 | M38: ='RAB projected '!M135 -> 30766.9327 | N38: ='RAB projected '!N135 -> 32728.75315 | O38: ='RAB projected '!O135 -> 34592.36991 | P38: ='RAB projected '!P135 -> 36566.45478 | Q38: ='RAB projected '!Q135 -> 38356.1128 | R38: ='RAB projected '!R135 -> 40084.46738 | S38: ='RAB projected '!S135 -> 41887.75574 | T38: ='RAB projected '!T135 -> 43768.95658 | V38: Year-end value of depreciation
B40: EBIT | C40: =$C$22 -> $'000 | J40: =J37-J38 -> 24732.36836 | K40: 28675.30369 | L40: 30283.7343 | M40: 31507.69052 | N40: 34354.81309 | O40: 37396.63995 | P40: 41229.0091 | Q40: 45658.58376 | R40: 50577.6495 | S40: 55876.93343 | T40: 61595.56613
B41: Interest income 1 | C41: =$C$22 -> $'000 | J41: =J60*J17 -> 320 | K41: =J60*K17 -> 160.3498542 | L41: 0 | M41: 0 | N41: 0 | O41: 0 | P41: 0 | Q41: 0 | R41: 0 | S41: 0 | T41: 0
B42: Interest expense | C42: =$C$22 -> $'000 | J42: =J65*J17 -> 17233.118 | K42: 9402.019128 | L42: 10563.50076 | M42: 11302.09812 | N42: 11807.40988 | O42: 12353.07066 | P42: 12799.56695 | Q42: 13125.48681 | R42: 13446.3697 | S42: 13773.21818 | T42: 14106.16503
B44: Pre Tax Profit | C44: =$C$22 -> $'000 | J44: =J40+J41-J42 -> 7819.250354 | K44: 19433.63442 | L44: 19720.23354 | M44: 20205.5924 | N44: 22547.40321 | O44: 25043.56929 | P44: 28429.44215 | Q44: 32533.09695 | R44: 37131.2798 | S44: 42103.71525 | T44: 47489.4011
B45: Tax expense (= tax allowance before adjustment for franking credits) | C45: =$C$22 -> $'000 | J45: ='RAB & tax inputs'!J140/'RAB historical'!J$68*'RAB historical'!J$69 -> 3149.655119 | K45: =Tax!K62*K19 -> 1635.918942 | L45: =Tax!L62*L19 -> 3090.62569 | M45: =Tax!M62*M19 -> 4351.389647 | N45: =Tax!N62*N19 -> 5186.360192 | O45: =Tax!O62*O19 -> 5918.22542 | P45: =Tax!P62*P19 -> 6709.37205 | Q45: =Tax!Q62*Q19 -> 7437.430957 | R45: =Tax!R62*R19 -> 8135.781254 | S45: =Tax!S62*S19 -> 8863.878667 | T45: =Tax!T62*T19 -> 9622.356457
B47: Profit after tax | C47: =$C$22 -> $'000 | J47: =J44-J45 -> 4669.595235 | K47: 17797.71547 | L47: 16629.60785 | M47: 15854.20275 | N47: 17361.04302 | O47: 19125.34387 | P47: 21720.0701 | Q47: 25095.66599 | R47: 28995.49855 | S47: 33239.83658 | T47: 37867.04465
B48: Retained earnings at the beginning of the year | C48: =$C$22 -> $'000 | J48: =I51 -> 0 | K48: 0 | L48: 16794.15189 | M48: 33423.75974 | N48: 36892.13002 | O48: 28887.98846 | P48: 21323.63906 | Q48: 8231.736363 | R48: 0 | S48: 0 | T48: 0
B49: Dividends payable | C49: =$C$22 -> $'000 | J49: =MAX(0,MIN(J47+J48,(J65-J60)-(I65-I60)+J84+J89+SUM(J91:J92))) -> 4669.595235 | K49: =MAX(0,MIN(K47+K48,(K65-K60)-(J65-J60)+K84+K89+SUM(K91:K92))) -> 1003.56358 | L49: =MAX(0,MIN(L47+L48,(L65-L60)-(K65-K60)+L84+L89+SUM(L91:L92))) -> 0 | M49: 12385.83247 | N49: =MAX(0,MIN(N47+N48,(N65-N60)-(M65-M60)+N84+N89+SUM(N91:N92))) -> 25365.18457 | O49: 26689.69327 | P49: 34811.97279 | Q49: 33327.40236 | R49: 28995.49855 | S49: 33239.83658 | T49: 37867.04465 | V49: Dividend payments cannot exceed retained earnings or fall below zero
B51: Retained Earnings at year end | C51: =$C$22 -> $'000 | I51: 0 | J51: =SUM(J47:J48)-J49 -> 0 | K51: 16794.15189 | L51: 33423.75974 | M51: 36892.13002 | N51: 28887.98846 | O51: 21323.63906 | P51: 8231.736363 | Q51: 0 | R51: 0 | S51: 0 | T51: 0
B56: ="TABLE 3 - REGULATORY BALANCE SHEET (nominal "&C25&")" -> TABLE 3 - REGULATORY BALANCE SHEET (nominal )
B57: =B27 -> Financial year | I57: =I27 -> 2021-22 | J57: 2022-23 | K57: 2023-24 | L57: 2024-25 | M57: 2025-26 | N57: 2026-27 | O57: 2027-28 | P57: 2028-29 | Q57: 2029-30 | R57: 2030-31 | S57: 2031-32 | T57: 2032-33
J58: =J28 -> nominal | K58: =K28 -> nominal
B60: Cash assets | C60: =$C$22 -> $'000 | I60: =I22 -> 10000 | J60: =J22 -> 10000 | K60: =IF(J65>=J60,0,J60) -> 0 | L60: =IF(K65>=K60,0,K60) -> 0 | M60: 0 | N60: 0 | O60: 0 | P60: 0 | Q60: 0 | R60: 0 | S60: 0 | T60: 0 | V60: Use cash balance to pay down debt
B61: Receivables | C61: $'000 | I61: ='Working capital'!I43*I$19 -> 0 | J61: ='Working capital'!J43*J$19 -> 21557.04326 | K61: ='Working capital'!K43*K$19 -> 23205.55658 | L61: ='Working capital'!L43*L$19 -> 24306.84787 | M61: ='Working capital'!M43*M$19 -> 26179.9626 | N61: ='Working capital'!N43*N$19 -> 27684.50233 | O61: ='Working capital'!O43*O$19 -> 29059.70291 | P61: ='Working capital'!P43*P$19 -> 30426.55999 | Q61: ='Working capital'!Q43*Q$19 -> 31745.0274 | R61: ='Working capital'!R43*R$19 -> 33038.44764 | S61: ='Working capital'!S43*S$19 -> 34360.59761 | T61: ='Working capital'!T43*T$19 -> 35731.96555
B62: Inventory & prepayments | C62: $'000 | I62: =('Working capital'!I44+'Working capital'!I45)*I$19 -> 0 | J62: =('Working capital'!J44+'Working capital'!J45)*J$19 -> 200 | K62: =('Working capital'!K44+'Working capital'!K45)*K$19 -> 205 | L62: =('Working capital'!L44+'Working capital'!L45)*L$19 -> 210.125 | M62: =('Working capital'!M44+'Working capital'!M45)*M$19 -> 215.378125 | N62: =('Working capital'!N44+'Working capital'!N45)*N$19 -> 220.7625781 | O62: =('Working capital'!O44+'Working capital'!O45)*O$19 -> 226.2816426 | P62: =('Working capital'!P44+'Working capital'!P45)*P$19 -> 231.9386836 | Q62: =('Working capital'!Q44+'Working capital'!Q45)*Q$19 -> 237.7371507 | R62: =('Working capital'!R44+'Working capital'!R45)*R$19 -> 243.6805795 | S62: =('Working capital'!S44+'Working capital'!S45)*S$19 -> 249.772594 | T62: =('Working capital'!T44+'Working capital'!T45)*T$19 -> 256.0169088
B63: RAB | C63: $'000 | I63: ='RAB historical'!I120 -> 786452.8938 | J63: ='RAB historical'!J120 -> 869811.6426 | K63: ='RAB projected '!K137 -> 967664.586 | L63: ='RAB projected '!L137 -> 1089574.995 | M63: ='RAB projected '!M137 -> 1160514.424 | N63: ='RAB projected '!N137 -> 1210024.389 | O63: ='RAB projected '!O137 -> 1266212.968 | P63: ='RAB projected '!P137 -> 1310588.808 | Q63: ='RAB projected '!Q137 -> 1342441.016 | R63: ='RAB projected '!R137 -> 1374906.467 | S63: ='RAB projected '!S137 -> 1407979.419 | T63: ='RAB projected '!T137 -> 1441652.738
B64: Payables | C64: $'000 | I64: ='Working capital'!I46*I$19 -> 0 | J64: ='Working capital'!J46*J$19 -> 10677.12329 | K64: ='Working capital'!K46*K$19 -> 13834.9726 | L64: ='Working capital'!L46*L$19 -> 16128.1012 | M64: ='Working capital'!M46*M$19 -> 12176.53506 | N64: ='Working capital'!N46*N$19 -> 10674.62669 | O64: ='Working capital'!O46*O$19 -> 11528.27475 | P64: ='Working capital'!P46*P$19 -> 10868.07481 | Q64: ='Working capital'!Q46*Q$19 -> 10168.6367 | R64: ='Working capital'!R46*R$19 -> 10581.07809 | S64: ='Working capital'!S46*S$19 -> 11009.83908 | T64: ='Working capital'!T46*T$19 -> 11454.47707
B65: Debt | C65: $'000 | I65: =(I61+I62+I63-I64)*I18+I60 -> 481871.7363 | J65: 538534.9375 | K65: 586344.102 | L65: 658778.3199 | M65: 704839.9376 | N65: 736353.0161 | O65: 770382.4066 | P65: 798227.5388 | Q65: 818553.0864 | R65: 838564.5102 | S65: 858947.9703 | T65: 879711.7462 | V65: (RAB + net working capital) x gearing ratio
B66: Net assets employed | C66: $'000 | I66: =SUM(I60:I63)-SUM(I64:I65) -> 314581.1575 | J66: 352356.625 | K66: 390896.068 | L66: 439185.5466 | M66: 469893.2917 | N66: 490902.0108 | O66: 513588.2711 | P66: 532151.6926 | Q66: 545702.0576 | R66: 559043.0068 | S66: 572631.9802 | T66: 586474.4975
B68: Owner contributions | C68: =$C$22 -> $'000 | I68: =(I61+I62+I63-I64)*(1-I18)-SUM(I69:I70) -> 238168.0086 | J68: 235776.5175 | K68: 235776.5175 | L68: 243244.7735 | M68: 243244.7735 | N68: 243244.7735 | O68: 243244.7735 | P68: 243244.7735 | Q68: 232262.1548 | R68: 212042.0786 | S68: 191258.3903 | T68: 169901.422 | V68: Owner contributions = (1- gearing ratio) x (RAB + net working capital- retained earnings - asset reval reserve)
B69: Retained earnings | C69: =$C$22 -> $'000 | I69: =I51 -> 0 | J69: =J51 -> 0 | K69: 16794.15189 | L69: 33423.75974 | M69: 36892.13002 | N69: 28887.98846 | O69: 21323.63906 | P69: 8231.736363 | Q69: 0 | R69: 0 | S69: 0 | T69: 0
B70: Asset revaluation reserve | C70: =$C$22 -> $'000 | I70: ='Pricing & financial inputs'!I94 -> 76413.14889 | J70: ='Pricing & financial inputs'!J94 -> 116580.1076 | K70: =J70+'RAB projected '!K136 -> 138325.3986 | L70: =K70+'RAB projected '!L136 -> 162517.0133 | M70: =L70+'RAB projected '!M136 -> 189756.3882 | N70: =M70+'RAB projected '!N136 -> 218769.2487 | O70: =N70+'RAB projected '!O136 -> 249019.8585 | P70: =O70+'RAB projected '!P136 -> 280675.1827 | Q70: =P70+'RAB projected '!Q136 -> 313439.9029 | R70: =Q70+'RAB projected '!R136 -> 347000.9283 | S70: =R70+'RAB projected '!S136 -> 381373.5899 | T70: =S70+'RAB projected '!T136 -> 416573.0754
B71: Total equity | C71: =$C$22 -> $'000 | I71: =SUM(I68:I70) -> 314581.1575 | J71: =SUM(J68:J70) -> 352356.625 | K71: 390896.068 | L71: 439185.5466 | M71: 469893.2917 | N71: 490902.0108 | O71: 513588.2711 | P71: 532151.6926 | Q71: 545702.0576 | R71: 559043.0068 | S71: 572631.9802 | T71: 586474.4975
B72: check net assets = total equity | I72: =I66-SUM(I71) -> 0 | J72: 0 | K72: 0 | L72: 0 | M72: 0 | N72: 0 | O72: 0 | P72: 0 | Q72: 0 | R72: 0 | S72: 0 | T72: 0
B76: ="TABLE 4 - REGULATORY CASH FLOW (nominal"&C25&")" -> TABLE 4 - REGULATORY CASH FLOW (nominal)
B77: =B27 -> Financial year | J77: =J27 -> 2022-23 | K77: 2023-24 | L77: 2024-25 | M77: 2025-26 | N77: 2026-27 | O77: 2027-28 | P77: 2028-29 | Q77: 2029-30 | R77: 2030-31 | S77: 2031-32 | T77: 2032-33
J78: =J28 -> nominal | K78: =K28 -> nominal
B80: Receipts from customers | C80: =$C$22 -> $'000 | J80: =J33-J31 -> 113350 | K80: =K33-K31 -> 120124.4014 | L80: 128080.9995 | M80: 135417.0345 | N80: 143180.4269 | O80: 151153.6425 | P80: 160156.8904 | Q80: 169695.1657 | R80: 179800.4729 | S80: 190505.2533 | T80: 201844.4948 | V80: Revenue excluding profit/loss on asset sales
B81: Operating costs | C81: =$C$22 -> $'000 | J81: =-J35 -> -64950 | K81: -67568 | L81: -70297.31875 | M81: -73142.41125 | N81: -76096.86068 | O81: -79164.63266 | P81: -82361.42656 | Q81: -85680.46912 | R81: -89138.35598 | S81: -92740.56415 | T81: -96479.9721
B82: Tax paid | C82: =$C$22 -> $'000 | J82: =-J45 -> -3149.655119 | K82: =-K45 -> -1635.918942 | L82: =-L45 -> -3090.62569 | M82: -4351.389647 | N82: -5186.360192 | O82: -5918.22542 | P82: -6709.37205 | Q82: -7437.430957 | R82: -8135.781254 | S82: -8863.878667 | T82: -9622.356457 | V82: Assume tax paid = tax payable
B83: Change in working capital | C83: =$C$22 -> $'000 | J83: =(I61+I62-I64)-(J61+J62-J64) -> -11079.91997 | K83: =(J61+J62-J64)-(K61+K62-K64) -> 1504.335992 | L83: =(K61+K62-K64)-(L61+L62-L64) -> 1186.712304 | M83: -5829.933983 | N83: -3011.832564 | O83: -527.0715792 | P83: -2032.714063 | Q83: -2023.703984 | R83: -886.9222811 | S83: -899.4809964 | T83: -932.9742628
B84: Cash Flow From Operations | C84: =$C$22 -> $'000 | J84: =SUM(J80:J83) -> 34170.42491 | K84: 52424.81842 | L84: 55879.76741 | M84: 52093.2996 | N84: 58885.37349 | O84: 65543.71285 | P84: 69053.37776 | Q84: 74553.56162 | R84: 81639.41334 | S84: 88001.32951 | T84: 94809.19199
B86: Sale of assets | C86: =$C$22 -> $'000 | J86: =SUM('Cost inputs'!J79:J80)*J$19-'Cost inputs'!J90*'Cost inputs'!J92*J$19 -> 500 | K86: =SUM('Cost inputs'!K79:K80)*K$19-'Cost inputs'!K90*'Cost inputs'!K92*K$19 -> 768.75 | L86: =SUM('Cost inputs'!L79:L80)*L$19-'Cost inputs'!L90*'Cost inputs'!L92*L$19 -> 709.171875 | M86: =SUM('Cost inputs'!M79:M80)*M$19-'Cost inputs'!M90*'Cost inputs'!M92*M$19 -> 538.4453125 | N86: =SUM('Cost inputs'!N79:N80)*N$19-'Cost inputs'!N90*'Cost inputs'!N92*N$19 -> 551.9064453 | O86: =SUM('Cost inputs'!O79:O80)*O$19-'Cost inputs'!O90*'Cost inputs'!O92*O$19 -> 565.7041064 | P86: =SUM('Cost inputs'!P79:P80)*P$19-'Cost inputs'!P90*'Cost inputs'!P92*P$19 -> 579.8467091 | Q86: =SUM('Cost inputs'!Q79:Q80)*Q$19-'Cost inputs'!Q90*'Cost inputs'!Q92*Q$19 -> 594.3428768 | R86: =SUM('Cost inputs'!R79:R80)*R$19-'Cost inputs'!R90*'Cost inputs'!R92*R$19 -> 609.2014488 | S86: =SUM('Cost inputs'!S79:S80)*S$19-'Cost inputs'!S90*'Cost inputs'!S92*S$19 -> 624.431485 | T86: =SUM('Cost inputs'!T79:T80)*T$19-'Cost inputs'!T90*'Cost inputs'!T92*T$19 -> 640.0422721 | V86: Value of sales excluding share of profit/loss not shared with customers
B87: Purchase of assets | C87: =$C$22 -> $'000 | J87: =-SUM('Selected costs'!J20:J21)*J$19 -> -65200 | K87: =-SUM('Selected costs'!K20:K21)*K$19 -> -101475 | L87: =-SUM('Selected costs'!L20:L21)*L$19 -> -126075 | M87: =-SUM('Selected costs'!M20:M21)*M$19 -> -75382.34375 | N87: =-SUM('Selected costs'!N20:N21)*N$19 -> -54086.83164 | O87: =-SUM('Selected costs'!O20:O21)*O$19 -> -61096.0435 | P87: =-SUM('Selected costs'!P20:P21)*P$19 -> -49866.81698 | Q87: =-SUM('Selected costs'!Q20:Q21)*Q$19 -> -38037.94412 | R87: =-SUM('Selected costs'!R20:R21)*R$19 -> -39598.09417 | S87: =-SUM('Selected costs'!S20:S21)*S$19 -> -41212.47801 | T87: =-SUM('Selected costs'!T20:T21)*T$19 -> -42882.83223
B88: Cash capital contributions | C88: =$C$22 -> $'000 | J88: =SUM('Selected costs'!$J25:J$26)*'RAB historical'!J$38 -> 245 | K88: =SUM('Selected costs'!K$25:K$26)*'RAB projected '!K$30*K19 -> 717.5 | L88: =SUM('Selected costs'!L$25:L$26)*'RAB projected '!L$30*L19 -> 147.0875 | M88: =SUM('Selected costs'!M$25:M$26)*'RAB projected '!M$30*M19 -> 376.9117187 | N88: =SUM('Selected costs'!N$25:N$26)*'RAB projected '!N$30*N19 -> 309.0676094 | O88: =SUM('Selected costs'!O$25:O$26)*'RAB projected '!O$30*O19 -> 0 | P88: =SUM('Selected costs'!P$25:P$26)*'RAB projected '!P$30*P19 -> 0 | Q88: =SUM('Selected costs'!Q$25:Q$26)*'RAB projected '!Q$30*Q19 -> 0 | R88: =SUM('Selected costs'!R$25:R$26)*'RAB projected '!R$30*R19 -> 0 | S88: =SUM('Selected costs'!S$25:S$26)*'RAB projected '!S$30*S19 -> 0 | T88: =SUM('Selected costs'!T$25:T$26)*'RAB projected '!T$30*T19 -> 0 | V88: Value of cash capital contributions included in the RAB
B89: Cash Flow From Investing | C89: =$C$22 -> $'000 | J89: =SUM(J86:J88) -> -64455 | K89: -99988.75 | L89: -125218.7406 | M89: -74466.98672 | N89: -53225.85759 | O89: -60530.33939 | P89: -49286.97027 | Q89: -37443.60124 | R89: -38988.89272 | S89: -40588.04652 | T89: -42242.78996
B91: Interest received | C91: =$C$22 -> $'000 | J91: =J41 -> 320 | K91: 160.3498542 | L91: 0 | M91: 0 | N91: 0 | O91: 0 | P91: 0 | Q91: 0 | R91: 0 | S91: 0 | T91: 0
B92: Interest paid | C92: $'000 | J92: =-J42 -> -17233.118 | K92: =-K42 -> -9402.019128 | L92: -10563.50076 | M92: -11302.09812 | N92: -11807.40988 | O92: -12353.07066 | P92: -12799.56695 | Q92: -13125.48681 | R92: -13446.3697 | S92: -13773.21818 | T92: -14106.16503
B93: Dividends paid | C93: $'000 | J93: =-J49 -> -4669.595235 | K93: -1003.56358 | L93: 0 | M93: -12385.83247 | N93: -25365.18457 | O93: -26689.69327 | P93: -34811.97279 | Q93: -33327.40236 | R93: -28995.49855 | S93: -33239.83658 | T93: -37867.04465 | V93: Assume dividends paid = dividends payable
B94: Change in owner contributions | C94: $'000 | J94: 0 | K94: =K68-J68 -> 0 | L94: =L68-K68 -> 7468.256088 | M94: 0 | N94: 0 | O94: 0 | P94: 0 | Q94: -10982.61878 | R94: -20220.07619 | S94: -20783.68829 | T94: -21356.96824
B95: Cash Flow from Financing | C95: $'000 | J95: =SUM(J91:J94) -> -21582.71324 | K95: =SUM(K91:K94) -> -10245.23285 | L95: =SUM(L91:L94) -> -3095.244668 | M95: =SUM(M91:M94) -> -23687.9306 | N95: -37172.59445 | O95: -39042.76393 | P95: -47611.53974 | Q95: -57435.50794 | R95: -62661.94444 | S95: -67796.74306 | T95: -73330.17791
B96: NET CASH FLOW | C96: $'000 | J96: =J84+J89+J95 -> -51867.28833 | K96: -57809.16444 | L96: -72434.21788 | M96: -46061.61772 | N96: -31513.07855 | O96: -34029.39047 | P96: -27845.13225 | Q96: -20325.54757 | R96: -20011.42382 | S96: -20383.46007 | T96: -20763.77587
B97: check = net cash flow = 0 | J97: na | K97: =(J65-J60)-(K65-K60)-K96 -> 0 | L97: =(K65-K60)-(L65-L60)-L96 -> 1.164153218e-10 | M97: 0 | N97: 0 | O97: 0 | P97: 0 | Q97: 2.910383046e-11 | R97: 1.236912794e-10 | S97: -5.09317033e-11 | T97: -1.164153218e-10
B101: TABLE 5 - FINANCEABILITY RATIOS
B102: =B27 -> Financial year | D102: Target ratios | J102: =J27 -> 2022-23 | K102: 2023-24 | L102: 2024-25 | M102: 2025-26 | N102: 2026-27 | O102: 2027-28 | P102: 2028-29 | Q102: 2029-30 | R102: 2030-31 | S102: 2031-32 | T102: 2032-33
J103: =J28 -> nominal | K103: =K28 -> nominal
B104: 1B. Real Interest Coverage Ratio (RICR) | D104: Higher is better
B105: - ratio (times) | C105: > | D105: 2.2 | J105: =(J130-J91-J92)/(-J91-J92) -> 2.675458474 | K105: 5.509879321 | L105: 5.177550168 | M105: 5.124998292 | N105: 5.242234045 | O105: 5.348531248 | P105: 5.55378882 | Q105: 5.834241938 | R105: 6.137443599 | S105: 6.454614261 | T105: 6.787256925 | V105: = (FFO + net interest payments) / net interest payments, assuming a real cost of debt
B107: 2B. Real FFO / Net Debt | D107: Higher is better
B108: - ratio (%) | C108: > | D108: 0.07 | J108: =J130/(J65-J60) -> 0.05361467117 | K108: 0.07108251453 | L108: 0.06698695604 | M108: 0.06614428748 | N108: 0.06802416107 | O108: 0.06972863517 | P108: 0.07301993735 | Q108: 0.07751699901 | R108: 0.08237883321 | S108: 0.08746466017 | T108: 0.09279858043 | V108: = FFO / Net Debt, assuming a real cost of debt
B110: 3. Net Debt / RAB | D110: Lower is better
B111: - ratio (%) | C111: < | D111: 0.7 | J111: =(J65-J60)/(J63+J61+J62-J64) -> 0.6 | K111: =(K65-K60)/(K63+K61+K62-K64) -> 0.6 | L111: =(L65-L60)/(L63+L61+L62-L64) -> 0.6 | M111: 0.6 | N111: 0.6 | O111: 0.6 | P111: 0.6 | Q111: 0.6 | R111: 0.6 | S111: 0.6 | T111: 0.6 | V111: = Net Debt / (RAB + net working capital)
B113: 4. Return on capital employed | C113: ="Target = real "&Scenario!J60 -> Target = real Post-tax WACC
B114: =B111 -> - ratio (%) | D114: =SUMPRODUCT(Scenario!K66:T66,$K$133:$T$133)/SUM('Financials benchmark'!$K$133:$T$133) -> 0.026 | K114: =K139/K140 -> 0.02930818187 | L114: =L139/L140 -> 0.02674322849 | M114: 0.02441618124 | N114: 0.02491084342 | O114: 0.02583780243 | P114: 0.02725743416 | Q114: 0.02931874411 | R114: 0.03182421224 | S114: 0.03445553802 | T114: 0.03722715374 | V114: = EBIT- tax + franking credits - return on working capital / average of opening and closing RAB
B115: - ratio, average over determination period (%) | K115: =K143 -> 0.02615010161
B116: - difference between WACC and return on capital employed per year | K116: =K114-Scenario!K$66 -> 0.003308181867 | L116: =L114-Scenario!L$66 -> 0.0007432284927 | M116: =M114-Scenario!M$66 -> -0.001583818758 | N116: =N114-Scenario!N$66 -> -0.001089156578 | O116: =O114-Scenario!O$66 -> -0.0001621975673 | P116: =P114-Scenario!P$66 -> 0.001257434163 | Q116: =Q114-Scenario!Q$66 -> 0.003318744108 | R116: =R114-Scenario!R$66 -> 0.005824212237 | S116: =S114-Scenario!S$66 -> 0.00845553802 | T116: =T114-Scenario!T$66 -> 0.01122715374
B117: - difference between WACC and return on capital employed over determination period | K117: =K115-D114 -> 0.0001501016067
B119: Real return on RAB calculated from target revenue, building block costs and value of assets on which return is given - for information
B120: - real return (%) | K120: ='Implied return'!K30 -> 0.02818685909 | L120: ='Implied return'!L30 -> 0.02676155333 | M120: ='Implied return'!M30 -> 0.0244543657 | N120: ='Implied return'!N30 -> 0.02493970646 | O120: ='Implied return'!O30 -> 0.02585536973 | P120: ='Implied return'!P30 -> 0.02725452245 | Q120: ='Implied return'!Q30 -> 0.02928584691 | R120: ='Implied return'!R30 -> 0.03175570316 | S120: ='Implied return'!S30 -> 0.0343481691 | T120: ='Implied return'!T30 -> 0.03707730704
B121: - average of return over determination period (%) | K121: =SUMPRODUCT(K120:T120,K133:T133)/SUM(K133:T133) -> 0.02603957086
B127: ="TABLE 6 - CALCULATIONS FOR FINANCEABILITY RATIOS (nominal"&C25&")" -> TABLE 6 - CALCULATIONS FOR FINANCEABILITY RATIOS (nominal)
B128: =B$15 -> Financial year | J128: =J$15 -> 2022-23 | K128: 2023-24 | L128: 2024-25 | M128: 2025-26 | N128: 2026-27 | O128: 2027-28 | P128: 2028-29 | Q128: 2029-30 | R128: 2030-31 | S128: 2031-32 | T128: 2032-33
B130: Funds From Operations (FFO) | C130: =$C$22 -> $'000 | J130: =J84-J83+J91+J92 -> 28337.22688 | K130: =K84-K83+K91+K92 -> 41678.81315 | L130: 44129.55435 | M130: 46621.13546 | N130: 50089.79617 | O130: 53717.71377 | P130: 58286.52487 | Q130: 63451.77879 | R130: 69079.96593 | S130: 75127.59233 | T130: 81636.00123 | V130: Cash flow from operations (CFO) minus change in working capital minus interest paid plus interest received.
B132: =Scenario!B31 -> Length of determination period (years) | D132: =Scenario!D31 -> 5
B133: Year included in determination period? | D133: yes = 1, no = 0 | K133: 1 | L133: =IF(COUNT($K133:K133)<$D$132,1,0) -> 1 | M133: =IF(COUNT($K133:L133)<$D$132,1,0) -> 1 | N133: =IF(COUNT($K133:M133)<$D$132,1,0) -> 1 | O133: =IF(COUNT($K133:N133)<$D$132,1,0) -> 1 | P133: =IF(COUNT($K133:O133)<$D$132,1,0) -> 0 | Q133: =IF(COUNT($K133:P133)<$D$132,1,0) -> 0 | R133: =IF(COUNT($K133:Q133)<$D$132,1,0) -> 0 | S133: =IF(COUNT($K133:R133)<$D$132,1,0) -> 0 | T133: =IF(COUNT($K133:S133)<$D$132,1,0) -> 0
B135: Calculations for return on capital employed
B136: Franking credits in the tax allowance | C136: =$C$22 -> $'000 | K136: =-Tax!K63*K$19 -> 408.9797356 | L136: =-Tax!L63*L$19 -> 772.6564226 | M136: =-Tax!M63*M$19 -> 1087.847412 | N136: =-Tax!N63*N$19 -> 1296.590048 | O136: =-Tax!O63*O$19 -> 1479.556355 | P136: =-Tax!P63*P$19 -> 1677.343013 | Q136: =-Tax!Q63*Q$19 -> 1859.357739 | R136: =-Tax!R63*R$19 -> 2033.945314 | S136: =-Tax!S63*S$19 -> 2215.969667 | T136: =-Tax!T63*T$19 -> 2405.589114
B137: Return on working capital in NRR | C137: =$C$22 -> $'000 | K137: =NRR!K$18*K$19 -> 521.8207412 | L137: =NRR!L$18*L$19 -> 457.1509419 | M137: =NRR!M$18*M$19 -> 774.8527634 | N137: =NRR!N$18*N$19 -> 938.9823564 | O137: =NRR!O$18*O$19 -> 967.7050832 | P137: =NRR!P$18*P$19 -> 1078.477686 | Q137: =NRR!Q$18*Q$19 -> 1188.759285 | R137: =NRR!R$18*R$19 -> 1237.092049 | S137: =NRR!S$18*S$19 -> 1286.109199 | T137: =NRR!T$18*T$19 -> 1336.951563
B138: check historical = 0 | K138: na | L138: na | M138: na | N138: na | O138: na | P138: na | Q138: na | R138: na | S138: na | T138: na
B139: Return on capital employed | C139: =C137 -> $'000 | K139: =(K$40-K$45+K136-K137) -> 26926.54374 | L139: 27508.61409 | M139: 27469.29553 | N139: 29526.06059 | O139: 31990.2658 | P139: 35118.50237 | Q139: 38891.75126 | R139: 43238.72151 | S139: 47942.91523 | T139: 53041.84722 | V139: = EBIT - tax + franking credits - return on working capital)
B140: Average of opening and closing RAB | C140: =C139 -> $'000 | K140: =AVERAGE(J$63:K$63) -> 918738.1143 | L140: =AVERAGE(K$63:L$63) -> 1028619.79 | M140: 1125044.709 | N140: 1185269.406 | O140: 1238118.678 | P140: 1288400.888 | Q140: 1326514.912 | R140: 1358673.742 | S140: 1391442.943 | T140: 1424816.079
B141: NPV of return | C141: =C140 -> $'000 | K141: =SUMPRODUCT(K139:T139,$K$20:$T$20) -> 131696.8156
B142: NPV of RAB | C142: =C141 -> $'000 | K142: =SUMPRODUCT(K140:T140,$K$20:$T$20) -> 5036187.53
B143: Return on capital employed over determination period | K143: =K141/K142 -> 0.02615010161

Sheet Calculations--->
A19: This worksheet is deliberately blank

Sheet Selected costs
B1: =Cover!B1 -> THE INDEPENDENT PRICING AND REGULATORY TRIBUNAL OF NSW | F1: =Cover!$B$3 -> IPART TEMPLATE FOR COST BUILDING BLOCKS, SIMPLE TARIFF SETTING AND FINANCIAL RATIO ANALYSIS
B3: 7 Selected costs
B9: TABLE 1 - SELECTED COSTS
B10: ='RAB & tax inputs'!B32 -> Financial year | F10: ='RAB & tax inputs'!F32 -> 2018-19 | G10: ='RAB & tax inputs'!G32 -> 2019-20 | H10: ='RAB & tax inputs'!H32 -> 2020-21 | I10: ='RAB & tax inputs'!I32 -> 2021-22 | J10: ='RAB & tax inputs'!J32 -> 2022-23 | K10: ='RAB & tax inputs'!K32 -> 2023-24 | L10: ='RAB & tax inputs'!L32 -> 2024-25 | M10: ='RAB & tax inputs'!M32 -> 2025-26 | N10: ='RAB & tax inputs'!N32 -> 2026-27 | O10: ='RAB & tax inputs'!O32 -> 2027-28 | P10: ='RAB & tax inputs'!P32 -> 2028-29 | Q10: ='RAB & tax inputs'!Q32 -> 2029-30 | R10: ='RAB & tax inputs'!R32 -> 2030-31 | S10: ='RAB & tax inputs'!S32 -> 2031-32 | T10: ='RAB & tax inputs'!T32 -> 2032-33
K11: ='RAB & tax inputs'!K33 -> Determination period is 2023-24 to 2027-28
F12: ='RAB historical'!F$15 -> nominal | G12: ='RAB historical'!G$15 -> nominal | H12: ='RAB historical'!H$15 -> nominal | I12: ='RAB historical'!I$15 -> nominal | J12: ='RAB historical'!J$15 -> nominal | K12: =Scenario!$Y$41 -> 2022-23 $'000
K14: =Scenario!J40 -> Option 1 - Agency opex
K15: =Scenario!$W$40 -> 1
B16: Selected operating expenditure | C16: ='RAB & tax inputs'!$C$36 -> $'000 | F16: na | G16: na | H16: na | I16: =CHOOSE($K$15,'Cost inputs'!I29,'Cost inputs'!I36) -> 64940 | J16: =CHOOSE($K$15,'Cost inputs'!J29,'Cost inputs'!J36) -> 64950 | K16: =CHOOSE($K$15,'Cost inputs'!K29,'Cost inputs'!K36) -> 65920 | L16: =CHOOSE($K$15,'Cost inputs'!L29,'Cost inputs'!L36) -> 66910 | M16: =CHOOSE($K$15,'Cost inputs'!M29,'Cost inputs'!M36) -> 67920 | N16: =CHOOSE($K$15,'Cost inputs'!N29,'Cost inputs'!N36) -> 68940 | O16: =CHOOSE($K$15,'Cost inputs'!O29,'Cost inputs'!O36) -> 69970 | P16: =CHOOSE($K$15,'Cost inputs'!P29,'Cost inputs'!P36) -> 71020 | Q16: =CHOOSE($K$15,'Cost inputs'!Q29,'Cost inputs'!Q36) -> 72080 | R16: =CHOOSE($K$15,'Cost inputs'!R29,'Cost inputs'!R36) -> 73160 | S16: =CHOOSE($K$15,'Cost inputs'!S29,'Cost inputs'!S36) -> 74260 | T16: =CHOOSE($K$15,'Cost inputs'!T29,'Cost inputs'!T36) -> 75370
I18: =Scenario!J43 -> Option 1 - Agency capex | K18: =Scenario!J44 -> Option 1 - Agency capex
B19: Selected capital expenditure | I19: =Scenario!$W$43 -> 1 | K19: =Scenario!$W$44 -> 1
B20: ='Cost inputs'!B$45 -> - depreciating assets | C20: ='RAB & tax inputs'!$C$36 -> $'000 | F20: =CHOOSE($I$19,'Cost inputs'!F45,'Cost inputs'!F50) -> 34000 | G20: =CHOOSE($I$19,'Cost inputs'!G45,'Cost inputs'!G50) -> 33000 | H20: =CHOOSE($I$19,'Cost inputs'!H45,'Cost inputs'!H50) -> 21000 | I20: =CHOOSE($I$19,'Cost inputs'!I45,'Cost inputs'!I50) -> 35000 | J20: =CHOOSE($K$19,'Cost inputs'!J45,'Cost inputs'!J50) -> 65000 | K20: =CHOOSE($K$19,'Cost inputs'!K45,'Cost inputs'!K50) -> 95000 | L20: =CHOOSE($K$19,'Cost inputs'!L45,'Cost inputs'!L50) -> 120000 | M20: =CHOOSE($K$19,'Cost inputs'!M45,'Cost inputs'!M50) -> 70000 | N20: =CHOOSE($K$19,'Cost inputs'!N45,'Cost inputs'!N50) -> 44000 | O20: =CHOOSE($K$19,'Cost inputs'!O45,'Cost inputs'!O50) -> 54000 | P20: =CHOOSE($K$19,'Cost inputs'!P45,'Cost inputs'!P50) -> 43000 | Q20: =CHOOSE($K$19,'Cost inputs'!Q45,'Cost inputs'!Q50) -> 32000 | R20: =CHOOSE($K$19,'Cost inputs'!R45,'Cost inputs'!R50) -> 32500 | S20: =CHOOSE($K$19,'Cost inputs'!S45,'Cost inputs'!S50) -> 33000 | T20: =CHOOSE($K$19,'Cost inputs'!T45,'Cost inputs'!T50) -> 33500
B21: ='Cost inputs'!B$46 -> - non-depreciating assets | C21: ='RAB & tax inputs'!$C$36 -> $'000 | F21: =CHOOSE($I$19,'Cost inputs'!F46,'Cost inputs'!F51) -> 0 | G21: =CHOOSE($I$19,'Cost inputs'!G46,'Cost inputs'!G51) -> 2000 | H21: =CHOOSE($I$19,'Cost inputs'!H46,'Cost inputs'!H51) -> 0 | I21: =CHOOSE($I$19,'Cost inputs'!I46,'Cost inputs'!I51) -> 0 | J21: =CHOOSE($K$19,'Cost inputs'!J46,'Cost inputs'!J51) -> 200 | K21: =CHOOSE($K$19,'Cost inputs'!K46,'Cost inputs'!K51) -> 4000 | L21: =CHOOSE($K$19,'Cost inputs'!L46,'Cost inputs'!L51) -> 0 | M21: =CHOOSE($K$19,'Cost inputs'!M46,'Cost inputs'!M51) -> 0 | N21: =CHOOSE($K$19,'Cost inputs'!N46,'Cost inputs'!N51) -> 5000 | O21: =CHOOSE($K$19,'Cost inputs'!O46,'Cost inputs'!O51) -> 0 | P21: =CHOOSE($K$19,'Cost inputs'!P46,'Cost inputs'!P51) -> 0 | Q21: =CHOOSE($K$19,'Cost inputs'!Q46,'Cost inputs'!Q51) -> 0 | R21: =CHOOSE($K$19,'Cost inputs'!R46,'Cost inputs'!R51) -> 0 | S21: =CHOOSE($K$19,'Cost inputs'!S46,'Cost inputs'!S51) -> 0 | T21: =CHOOSE($K$19,'Cost inputs'!T46,'Cost inputs'!T51) -> 0
B23: Selected cash capital contributions (before tax) | I23: =Scenario!J47 -> Option 1 - Agency cap cons | K23: =Scenario!J48 -> Option 1 - Agency cap cons
I24: =Scenario!$W$47 -> 1 | K24: =Scenario!$W$48 -> 1
B25: ='Cost inputs'!B$45 -> - depreciating assets | C25: ='RAB & tax inputs'!$C$36 -> $'000 | F25: =CHOOSE($I$24,'Cost inputs'!F61,'Cost inputs'!F65) -> 0 | G25: =CHOOSE($I$24,'Cost inputs'!G61,'Cost inputs'!G65) -> 0 | H25: =CHOOSE($I$24,'Cost inputs'!H61,'Cost inputs'!H65) -> 3000 | I25: =CHOOSE($I$24,'Cost inputs'!I61,'Cost inputs'!I65) -> 200 | J25: =CHOOSE($K$24,'Cost inputs'!J61,'Cost inputs'!J65) -> 350 | K25: =CHOOSE($K$24,'Cost inputs'!K61,'Cost inputs'!K65) -> 1000 | L25: =CHOOSE($K$24,'Cost inputs'!L61,'Cost inputs'!L65) -> 200 | M25: =CHOOSE($K$24,'Cost inputs'!M61,'Cost inputs'!M65) -> 500 | N25: =CHOOSE($K$24,'Cost inputs'!N61,'Cost inputs'!N65) -> 400 | O25: =CHOOSE($K$24,'Cost inputs'!O61,'Cost inputs'!O65) -> 0 | P25: =CHOOSE($K$24,'Cost inputs'!P61,'Cost inputs'!P65) -> 0 | Q25: =CHOOSE($K$24,'Cost inputs'!Q61,'Cost inputs'!Q65) -> 0 | R25: =CHOOSE($K$24,'Cost inputs'!R61,'Cost inputs'!R65) -> 0 | S25: =CHOOSE($K$24,'Cost inputs'!S61,'Cost inputs'!S65) -> 0 | T25: =CHOOSE($K$24,'Cost inputs'!T61,'Cost inputs'!T65) -> 0
B26: ='Cost inputs'!B$46 -> - non-depreciating assets | C26: ='RAB & tax inputs'!$C$36 -> $'000 | F26: =CHOOSE($I$24,'Cost inputs'!F62,'Cost inputs'!F66) -> 0 | G26: =CHOOSE($I$24,'Cost inputs'!G62,'Cost inputs'!G66) -> 0 | H26: =CHOOSE($I$24,'Cost inputs'!H62,'Cost inputs'!H66) -> 0 | I26: =CHOOSE($I$24,'Cost inputs'!I62,'Cost inputs'!I66) -> 0 | J26: =CHOOSE($K$24,'Cost inputs'!J62,'Cost inputs'!J66) -> 0 | K26: =CHOOSE($K$24,'Cost inputs'!K62,'Cost inputs'!K66) -> 0 | L26: =CHOOSE($K$24,'Cost inputs'!L62,'Cost inputs'!L66) -> 0 | M26: =CHOOSE($K$24,'Cost inputs'!M62,'Cost inputs'!M66) -> 0 | N26: =CHOOSE($K$24,'Cost inputs'!N62,'Cost inputs'!N66) -> 0 | O26: =CHOOSE($K$24,'Cost inputs'!O62,'Cost inputs'!O66) -> 0 | P26: =CHOOSE($K$24,'Cost inputs'!P62,'Cost inputs'!P66) -> 0 | Q26: =CHOOSE($K$24,'Cost inputs'!Q62,'Cost inputs'!Q66) -> 0 | R26: =CHOOSE($K$24,'Cost inputs'!R62,'Cost inputs'!R66) -> 0 | S26: =CHOOSE($K$24,'Cost inputs'!S62,'Cost inputs'!S66) -> 0 | T26: =CHOOSE($K$24,'Cost inputs'!T62,'Cost inputs'!T66) -> 0

Sheet RAB historical
B1: =Cover!B1 -> THE INDEPENDENT PRICING AND REGULATORY TRIBUNAL OF NSW | F1: =Cover!$B$3 -> IPART TEMPLATE FOR COST BUILDING BLOCKS, SIMPLE TARIFF SETTING AND FINANCIAL RATIO ANALYSIS
B3: 8 Regulatory Asset Base roll forward to start of new determination period
B6: List of tables | G6: row number
B7: =B13 -> TABLE 1 - ASSUMPTION MADE IN ROLL FORWARD OF REGULATORY ASSET BASE | G7: =ROW(B13) -> 13
B8: =B54 -> TABLE 2 - CALCULATION OF ROLLED FORWARD REGULATORY ASSET BASE (nominal $ million) | G8: =ROW(B54) -> 54
B9: =B127 -> TABLE 3 - CALCULATION OF AVERAGE REMAINING LIFE OF DEPRECIATING ASSETS | G9: =ROW(B127) -> 127
B13: TABLE 1 - ASSUMPTION MADE IN ROLL FORWARD OF REGULATORY ASSET BASE
B14: ='RAB & tax inputs'!B$32 -> Financial year | F14: ='RAB & tax inputs'!F$32 -> 2018-19 | G14: ='RAB & tax inputs'!G$32 -> 2019-20 | H14: ='RAB & tax inputs'!H$32 -> 2020-21 | I14: ='RAB & tax inputs'!I$32 -> 2021-22 | J14: ='RAB & tax inputs'!J$32 -> 2022-23
F15: ='Cost inputs'!F22 -> nominal | G15: ='Cost inputs'!G22 -> nominal | H15: ='Cost inputs'!H22 -> nominal | I15: ='Cost inputs'!I22 -> nominal | J15: ='Cost inputs'!J22 -> nominal
B17: Inflation rate to roll forward RAB (actual to June) | F17: ='Pricing & financial inputs'!F19 -> 0.016 | G17: ='Pricing & financial inputs'!G19 -> -0.003 | H17: ='Pricing & financial inputs'!H19 -> 0.038 | I17: ='Pricing & financial inputs'!I19 -> 0.061 | J17: ='Pricing & financial inputs'!J19 -> 0.052
B19: RAB opening value
B20: ='RAB & tax inputs'!B36 -> Depreciating assets | C20: ='RAB & tax inputs'!C36 -> $'000 | F20: ='RAB & tax inputs'!F36 -> 620000
B21: ='RAB & tax inputs'!B37 -> Non-depreciating assets (e.g. land) | C21: ='RAB & tax inputs'!C37 -> $'000 | F21: ='RAB & tax inputs'!F37 -> 40000
B23: Allowed depreciation from previous Determination
B24: Forecast inflation from previous determination | C24: % | F24: ='RAB & tax inputs'!F46 -> 0.012 | G24: ='RAB & tax inputs'!G46 -> 0.02 | H24: ='RAB & tax inputs'!H46 -> 0 | I24: ='RAB & tax inputs'!I46 -> 0 | J24: ='RAB & tax inputs'!J46 -> 0
B25: Allowed depreciation | C25: =C20 -> $'000 | F25: ='RAB & tax inputs'!F50 -> 16717 | G25: ='RAB & tax inputs'!G50 -> 17990 | H25: ='RAB & tax inputs'!H50 -> 18783 | I25: ='RAB & tax inputs'!I50 -> 19653 | J25: ='RAB & tax inputs'!J50 -> 20817
B27: Use allowed or actual depreciation? | D27: =Scenario!$W$51 -> 1 | E27: =Scenario!$J$50 -> Allowed depreciation
B29: Asset lives for calculated depreciation
B30: ='RAB & tax inputs'!B67 -> Ave remaining life of depreciating assets on 1 July 2018 | C30: years | D30: ='RAB & tax inputs'!F67 -> 40
B31: Expected life of new assets | C31: years | F31: ='RAB & tax inputs'!F69 -> 50 | G31: ='RAB & tax inputs'!G69 -> 45 | H31: ='RAB & tax inputs'!H69 -> 60 | I31: ='RAB & tax inputs'!I69 -> 40 | J31: ='RAB & tax inputs'!J69 -> 50
B33: Capex | D33: ="Selected: "&Scenario!$J$43&" & "&Scenario!$J$47 -> Selected: Option 1 - Agency capex & Option 1 - Agency cap cons
B34: ='Selected costs'!B20 -> - depreciating assets | C34: =C$20 -> $'000 | F34: ='Selected costs'!F20 -> 34000 | G34: ='Selected costs'!G20 -> 33000 | H34: ='Selected costs'!H20 -> 21000 | I34: ='Selected costs'!I20 -> 35000 | J34: ='Selected costs'!J20 -> 65000
B35: ='Selected costs'!B21 -> - non-depreciating assets | C35: =C$20 -> $'000 | F35: ='Selected costs'!F21 -> 0 | G35: ='Selected costs'!G21 -> 2000 | H35: ='Selected costs'!H21 -> 0 | I35: ='Selected costs'!I21 -> 0 | J35: ='Selected costs'!J21 -> 200
B37: Cash capital contributions
B38: Share of cash capital contributions included in RAB calculations | F38: =CHOOSE(Scenario!$W$54,(1-WACC!F$14),1) -> 0.7 | G38: =CHOOSE(Scenario!$W$54,(1-WACC!G$14),1) -> 0.7 | H38: =CHOOSE(Scenario!$W$54,(1-WACC!H$14),1) -> 0.7 | I38: =CHOOSE(Scenario!$W$54,(1-WACC!I$14),1) -> 0.7 | J38: =CHOOSE(Scenario!$W$54,(1-WACC!J$14),1) -> 0.7
B39: ='Cost inputs'!B61 -> - depreciating assets | C39: =CHOOSE(Scenario!$W$54,$C$20&", net of tax",$C$20&" before tax") -> $'000, net of tax | F39: ='Selected costs'!F25*F$38 -> 0 | G39: ='Selected costs'!G25*G$38 -> 0 | H39: ='Selected costs'!H25*H$38 -> 2100 | I39: ='Selected costs'!I25*I$38 -> 140 | J39: ='Selected costs'!J25*J$38 -> 245
B40: ='Cost inputs'!B62 -> - non-depreciating assets | C40: =C39 -> $'000, net of tax | F40: ='Selected costs'!F26*F$38 -> 0 | G40: ='Selected costs'!G26*G$38 -> 0 | H40: ='Selected costs'!H26*H$38 -> 0 | I40: ='Selected costs'!I26*I$38 -> 0 | J40: ='Selected costs'!J26*J$38 -> 0
B42: Disposals
B43: ='Cost inputs'!B83 -> - depreciating assets | C43: =C$20 -> $'000 | F43: ='Cost inputs'!F84 -> 550 | G43: ='Cost inputs'!G84 -> 500 | H43: ='Cost inputs'!H84 -> 500 | I43: ='Cost inputs'!I84 -> 500 | J43: ='Cost inputs'!J84 -> 500
B44: ='Cost inputs'!B85 -> - non-depreciating assets | C44: =C$20 -> $'000 | F44: ='Cost inputs'!F86 -> 385 | G44: ='Cost inputs'!G86 -> 0 | H44: ='Cost inputs'!H86 -> 0 | I44: ='Cost inputs'!I86 -> 250 | J44: ='Cost inputs'!J86 -> 0
B46: Timing assumptions
B47: 1. Half of capital expenditure and disposals occurs at the beginning of the year, and half at the end of the year:
B48: % of capex in year depreciated and indexed | D48: 0.5
B49: % of disposals in year depreciated and indexed | D49: 0.5
B54: TABLE 2 - CALCULATION OF ROLLED FORWARD REGULATORY ASSET BASE (nominal $ million)
B55: =B$14 -> Financial year | F55: =F$14 -> 2018-19 | G55: =G$14 -> 2019-20 | H55: =H$14 -> 2020-21 | I55: =I$14 -> 2021-22 | J55: =J$14 -> 2022-23
B57: =B20 -> Depreciating assets
B58: Opening value | C58: =C$20 -> $'000 | F58: =F$20 -> 620000 | G58: =F63 -> 646854.5249 | H58: =G63 -> 659711.3649 | I58: =H63 -> 684397.5508 | J58: =I63 -> 740314.0132
B59: capex net of cash capital contributions | C59: =C58 -> $'000 | F59: =F34-F$39 -> 34000 | G59: =G34-G$39 -> 33000 | H59: =H34-H$39 -> 18900 | I59: =I34-I$39 -> 34860 | J59: =J34-J$39 -> 64755
B60: disposals | C60: =C59 -> $'000 | F60: =F$43 -> 550 | G60: =G$43 -> 500 | H60: =H$43 -> 500 | I60: =I$43 -> 500 | J60: =J$43 -> 500
B61: depreciation | C61: =C60 -> $'000 | F61: =CHOOSE($D$27,F70,F81+F103) -> 16783.0751 | G61: =CHOOSE($D$27,G70,G81+G103) -> 17653.84647 | H61: =CHOOSE($D$27,H70,H81+H103) -> 19132.4459 | I61: =CHOOSE($D$27,I70,I81+I103) -> 21239.76824 | J61: =CHOOSE($D$27,J70,J81+J103) -> 23667.63164 | M61: Note that both the label and values change depending on what depreciation option has been selected.
B62: indexation | C62: =C61 -> $'000 | F62: =(F58+F59*$D$48-F60*$D$49)*F$17 -> 10187.6 | G62: =(G58+G59*$D$48-G60*$D$49)*G$17 -> -1989.313575 | H62: =(H58+H59*$D$48-H60*$D$49)*H$17 -> 25418.63186 | I62: =(I58+I59*$D$48-I60*$D$49)*I$17 -> 42796.2306 | J62: =(J58+J59*$D$48-J60*$D$49)*J$17 -> 40166.95869 | M62: Formula = (Opening value + 50 capex - 50 % disposals) x inflation rate
B63: Closing value | C63: =C62 -> $'000 | F63: =F58+F59-F61-F60+F62 -> 646854.5249 | G63: =G58+G59-G61-G60+G62 -> 659711.3649 | H63: =H58+H59-H61-H60+H62 -> 684397.5508 | I63: =I58+I59-I61-I60+I62 -> 740314.0132 | J63: =J58+J59-J61-J60+J62 -> 821068.3402 | L63: This is the value of depreciating assets at the start of the new determination period
B65: Calculation of depreciation
B67: Calculation of allowed depreciation
B68: Index of forecast inflation | E68: 1 | F68: =E68*(1+F24) -> 1.012 | G68: =F68*(1+G24) -> 1.03224 | H68: =G68*(1+H24) -> 1.03224 | I68: =H68*(1+I24) -> 1.03224 | J68: =I68*(1+J24) -> 1.03224
B69: Index of actual inflation | E69: 1 | F69: =E69*(1+F17) -> 1.016 | G69: =F69*(1+G17) -> 1.012952 | H69: =G69*(1+H17) -> 1.051444176 | I69: =H69*(1+I17) -> 1.115582271 | J69: =I69*(1+J17) -> 1.173592549
B70: Allowed depreciation adjusted for actual inflation | C70: =C63 -> $'000 | F70: =F25/F68*F69 -> 16783.0751 | G70: =G25/G68*G69 -> 17653.84647 | H70: =H25/H68*H69 -> 19132.4459 | I70: =I25/I68*I69 -> 21239.76824 | J70: =J25/J68*J69 -> 23667.63164
B72: Calculation of actual depreciation
B73: Existing assets
B74: period | E74: 0 | F74: 1 | G74: =F74+1 -> 2 | H74: =G74+1 -> 3 | I74: =H74+1 -> 4 | J74: =I74+1 -> 5
B75: % depreciation remaining | C75: % | F75: =IF($D81=0,0,IF(F74<1/$D81,1,MAX(0,1/$D81-E74))) -> 1 | G75: =IF($D81=0,0,IF(G74<1/$D81,1,MAX(0,1/$D81-F74))) -> 1 | H75: 1 | I75: 1 | J75: =IF($D81=0,0,IF(J74<1/$D81,1,MAX(0,1/$D81-I74))) -> 1
B76: Opening value of existing assets | C76: =C63 -> $'000 | F76: =F58 -> 620000 | G76: =F79 -> 629365.6 | H76: =G79 -> 626978.2532 | I76: =H79 -> 650293.9268 | J76: =I79 -> 689446.6064
B77: disposals at regulatory value | C77: =C76 -> $'000 | F77: =F60 -> 550 | G77: =G60 -> 500 | H77: =H60 -> 500 | I77: =I60 -> 500 | J77: =J60 -> 500
B78: Indexation | C78: =C77 -> $'000 | F78: =(F76-F77*$D$49)*F$17 -> 9915.6 | G78: =(G76-G77*$D$49)*G$17 -> -1887.3468 | H78: =(H76-H77*$D$49)*H$17 -> 23815.67362 | I78: =(I76-I77*$D$49)*I$17 -> 39652.67954 | J78: =(J76-J77*$D$49)*J$17 -> 35838.22353
B79: Closing value before further depreciation | C79: =C78 -> $'000 | F79: =F76+F78-F77 -> 629365.6 | G79: =G76+G78-G77 -> 626978.2532 | H79: =H76+H78-H77 -> 650293.9268 | I79: =I76+I78-I77 -> 689446.6064 | J79: =J76+J78-J77 -> 724784.8299
B81: Depreciation | D81: =IF($D$30=0,0,1/$D$30) -> 0.025 | F81: =(F79+F77*$D$49)*$D81*F75 -> 15741.015 | G81: =(G79+G77*$D$49)*$D81*G75 -> 15680.70633 | H81: =(H79+H77*$D$49)*$D81*H75 -> 16263.59817 | I81: =(I79+I77*$D$49)*$D81*I75 -> 17242.41516 | J81: =(J79+J77*$D$49)*$D81*J75 -> 18125.87075 | L81: formula = (closing value + 50% disposals) x depreciation rate x % depreciation remaining
B83: Depreciation on new assets (undepreciated values)
B86: New assets (i.e. net capex during period)
B88: % of 1 year's depreciation in | D88: Expected life (years) | F88: This matrix shows the proportion of a full year's worth of straight line depreciation that occurs each year
B89: =TRANSPOSE($F$14:$J$14) -> 2018-19 | C89: % | D89: =TRANSPOSE(F31:J31) -> 50 | F89: =$D$48 -> 0.5 | G89: =IF(SUM($F89:F89)+1<$D89,1,$D89-SUM($F89:F89)) -> 1 | H89: =IF(SUM($F89:G89)+1<$D89,1,$D89-SUM($F89:G89)) -> 1 | I89: =IF(SUM($F89:H89)+1<$D89,1,$D89-SUM($F89:H89)) -> 1 | J89: =IF(SUM($F89:I89)+1<$D89,1,$D89-SUM($F89:I89)) -> 1
B90: 2019-20 | C90: % | D90: 45 | F90: 0 | G90: =$D$48 -> 0.5 | H90: =IF(SUM($F90:G90)+1<$D89,1,$D89-SUM($F90:G90)) -> 1 | I90: =IF(SUM($F90:H90)+1<$D89,1,$D89-SUM($F90:H90)) -> 1 | J90: =IF(SUM($F90:I90)+1<$D89,1,$D89-SUM($F90:I90)) -> 1
B91: 2020-21 | C91: % | D91: 60 | F91: 0 | G91: 0 | H91: =$D$48 -> 0.5 | I91: =IF(SUM($F91:H91)+1<$D89,1,$D89-SUM($F91:H91)) -> 1 | J91: =IF(SUM($F91:I91)+1<$D89,1,$D89-SUM($F91:I91)) -> 1
B92: 2021-22 | C92: % | D92: 40 | F92: 0 | G92: 0 | H92: 0 | I92: =$D$48 -> 0.5 | J92: =IF(SUM($F92:I92)+1<$D89,1,$D89-SUM($F92:I92)) -> 1
B93: 2022-23 | C93: % | D93: 50 | F93: 0 | G93: 0 | H93: 0 | I93: 0 | J93: =I92 -> 0.5
B95: Capex after indexation in first year (net of cap cons) | F95: =F59*(1+F$17*$D$48) -> 34272 | G95: =G59*(1+G$17*$D$48) -> 32950.5 | H95: =H59*(1+H$17*$D$48) -> 19259.1 | I95: =I59*(1+I$17*$D$48) -> 35923.23 | J95: =J59*(1+J$17*$D$48) -> 66438.63
B96: Depreciation for capex (after indexation) occurring in: | D96: Depreciation rate
B97: =B89 -> 2018-19 | C97: =$C$43 -> $'000 | D97: =IF(D89=0,0,1/D89) -> 0.02 | F97: =F89*F$95*$D97 -> 342.72 | G97: =IF(F89=0,0,F97*G89/F89*(1+G$17)) -> 683.38368 | H97: =IF(G89=0,0,G97*H89/G89*(1+H$17)) -> 709.3522598 | I97: 752.6227477 | J97: 791.7591306 | L97: formula = ($ depreciation in year t-1 x {% of full year's depreciation in year t / % of full year's depreciation I year t-1})*(1+ inflation rate)
B98: =B90 -> 2019-20 | C98: =$C$43 -> $'000 | D98: =IF(D90=0,0,1/D90) -> 0.02222222222 | F98: =F90 -> 0 | G98: =G90*G$95*$D98 -> 366.1166667 | H98: 760.0582 | I98: 806.4217502 | J98: 848.3556812
B99: =B91 -> 2020-21 | C99: $'000 | D99: 0.01666666667 | F99: =F91 -> 0 | G99: 0 | H99: =H91*H$95*$D99 -> 160.4925 | I99: 340.565085 | J99: 358.2744694
B100: =B92 -> 2021-22 | C100: $'000 | D100: 0.025 | F100: 0 | G100: 0 | H100: 0 | I100: =I92*I$95*$D100 -> 449.040375 | J100: 944.780949
B101: =B93 -> 2022-23 | C101: $'000 | D101: 0.02 | F101: 0 | G101: 0 | H101: 0 | I101: 0 | J101: =J93*J$95*$D101 -> 664.3863
B103: Depreciation for the year | C103: $'000 | F103: =SUM(F97:F102) -> 342.72 | G103: =SUM(G97:G102) -> 1049.500347 | H103: =SUM(H97:H102) -> 1629.90296 | I103: =SUM(I97:I102) -> 2348.649958 | J103: =SUM(J97:J102) -> 3607.55653
B106: =B21 -> Non-depreciating assets (e.g. land)
B107: =B58 -> Opening value | C107: =C58 -> $'000 | F107: =F21 -> 40000 | G107: =F112 -> 40251.92 | H107: =G112 -> 42128.16424 | I107: =H112 -> 43729.03448 | J107: =I112 -> 46138.88058
B108: =B59 -> capex net of cash capital contributions | C108: =C107 -> $'000 | F108: =F35-F40 -> 0 | G108: =G35-G40 -> 2000 | H108: =H35-H40 -> 0 | I108: =I35-I40 -> 0 | J108: =J35-J40 -> 200
B109: =B60 -> disposals | C109: =C108 -> $'000 | F109: =F44 -> 385 | G109: =G44 -> 0 | H109: =H44 -> 0 | I109: =I44 -> 250 | J109: =J44 -> 0
B110: =B61 -> depreciation | C110: =C109 -> $'000 | F110: 0 | G110: 0 | H110: 0 | I110: 0 | J110: 0 | L110: Kept as placeholder to reduce risk of calculation error when adding depreciating and non-depreciating assets to total RAB
B111: =B62 -> indexation | C111: =C110 -> $'000 | F111: =(F107+F108*$D$48-F109*$D$49)*F$17 -> 636.92 | G111: =(G107+G108*$D$48-G109*$D$49)*G$17 -> -123.75576 | H111: =(H107+H108*$D$48-H109*$D$49)*H$17 -> 1600.870241 | I111: =(I107+I108*$D$48-I109*$D$49)*I$17 -> 2659.846103 | J111: =(J107+J108*$D$48-J109*$D$49)*J$17 -> 2404.42179
B112: =B63 -> Closing value | C112: =C111 -> $'000 | F112: =F107+F108-F110-F109+F111 -> 40251.92 | G112: =G107+G108-G110-G109+G111 -> 42128.16424 | H112: =H107+H108-H110-H109+H111 -> 43729.03448 | I112: =I107+I108-I110-I109+I111 -> 46138.88058 | J112: =J107+J108-J110-J109+J111 -> 48743.30237 | L112: This is the value of non-depreciating assets at the start of the new determination period
B114: Total RAB
B115: =B58 -> Opening value | F115: =F58+F107 -> 660000 | G115: 687106.4449 | H115: 701839.5291 | I115: 728126.5853 | J115: 786452.8938
B116: =B59 -> capex net of cash capital contributions | F116: 34000 | G116: 35000 | H116: 18900 | I116: 34860 | J116: 64955
B117: disposals | F117: 935 | G117: 500 | H117: 500 | I117: 750 | J117: 500
B118: depreciation | F118: 16783.0751 | G118: 17653.84647 | H118: 19132.4459 | I118: 21239.76824 | J118: 23667.63164
B119: indexation | F119: 10824.52 | G119: -2113.069335 | H119: 27019.50211 | I119: 45456.0767 | J119: 42571.38048
B120: Closing value | F120: 687106.4449 | G120: 701839.5291 | H120: 728126.5853 | I120: 786452.8938 | J120: 869811.6426
B121: check closing value = 0 | F121: =SUM(F115:F116)-F117-F118+F119-F120 -> 0 | G121: =SUM(G115:G116)-G117-G118+G119-G120 -> 0 | H121: =SUM(H115:H116)-H117-H118+H119-H120 -> 0 | I121: =SUM(I115:I116)-I117-I118+I119-I120 -> 0 | J121: =SUM(J115:J116)-J117-J118+J119-J120 -> 0
B122: check net capex = 0 | F122: =F116-(SUM(F34:F35)-SUM(F39:F40)) -> 0 | G122: =G116-(SUM(G34:G35)-SUM(G39:G40)) -> 0 | H122: =H116-(SUM(H34:H35)-SUM(H39:H40)) -> 0 | I122: =I116-(SUM(I34:I35)-SUM(I39:I40)) -> 0 | J122: =J116-(SUM(J34:J35)-SUM(J39:J40)) -> 0
B123: check disposals = 0 | F123: =F117-SUM(F43:F44) -> 0 | G123: =G117-SUM(G43:G44) -> 0 | H123: =H117-SUM(H43:H44) -> 0 | I123: =I117-SUM(I43:I44) -> 0 | J123: =J117-SUM(J43:J44) -> 0
B127: TABLE 3 - CALCULATION OF AVERAGE REMAINING LIFE OF DEPRECIATING ASSETS
B128: =B$14 -> Financial year | F128: =F$14 -> 2018-19 | G128: =G$14 -> 2019-20 | H128: =H$14 -> 2020-21 | I128: =I$14 -> 2021-22 | J128: =J$14 -> 2022-23
B131: Value of depreciating assets rolled forward using actual depreciation
B132: =B58 -> Opening value | C132: =C20 -> $'000 | F132: =F$20 -> 620000 | G132: =F137 -> 647553.865 | H132: =G137 -> 661332.2467 | I132: =H137 -> 687318.971 | J132: =I137 -> 745062.3431
B133: =B59 -> capex net of cash capital contributions | C133: =C132 -> $'000 | F133: =F$34-F$39 -> 34000 | G133: =G$34-G$39 -> 33000 | H133: =H$34-H$39 -> 18900 | I133: =I$34-I$39 -> 34860 | J133: =J$34-J$39 -> 64755
B134: =B60 -> disposals | C134: =C133 -> $'000 | F134: =F$43 -> 550 | G134: =G$43 -> 500 | H134: =H$43 -> 500 | I134: =I$43 -> 500 | J134: =J$43 -> 500
B135: Actual (calculated) depreciation | C135: =C134 -> $'000 | F135: =F81+F103 -> 16083.735 | G135: =G81+G103 -> 16730.20668 | H135: =H81+H103 -> 17893.50113 | I135: =I81+I103 -> 19591.06512 | J135: =J81+J103 -> 21733.42728
B136: =B62 -> indexation | C136: =C135 -> $'000 | F136: =(F132+F133*$D$48-F134*$D$49)*F$17 -> 10187.6 | G136: =(G132+G133*$D$48-G134*$D$49)*G$17 -> -1991.411595 | H136: =(H132+H133*$D$48-H134*$D$49)*H$17 -> 25480.22538 | I136: =(I132+I133*$D$48-I134*$D$49)*I$17 -> 42974.43723 | J136: =(J132+J133*$D$48-J134*$D$49)*J$17 -> 40413.87184
B137: =B63 -> Closing value | C137: =C136 -> $'000 | F137: =F132+F133-F135-F134+F136 -> 647553.865 | G137: =G132+G133-G135-G134+G136 -> 661332.2467 | H137: =H132+H133-H135-H134+H136 -> 687318.971 | I137: =I132+I133-I135-I134+I136 -> 745062.3431 | J137: =J132+J133-J135-J134+J136 -> 827997.7876
B139: Calculation of average remaining life
B140: Remaining life at beginning of yr | C140: ='RAB & tax inputs'!$C$74 -> years | F140: =IF(F135=0,0,((F132+$D$48*(F133-F134)/(1+F$17)^$D$48)*(1+F$17))/F135) -> 40.21318861 | G140: =IF(G135=0,0,((G132+$D$48*(G133-G134)/(1+G$17)^$D$48)*(1+G$17))/G135) -> 39.55939235 | H140: =IF(H135=0,0,((H132+$D$48*(H133-H134)/(1+H$17)^$D$48)*(1+H$17))/H135) -> 38.88764067 | I140: =IF(I135=0,0,((I132+$D$48*(I133-I134)/(1+I$17)^$D$48)*(1+I$17))/I135) -> 38.12664894 | J140: =IF(J135=0,0,((J132+$D$48*(J133-J134)/(1+J$17)^$D$48)*(1+J$17))/J135) -> 37.58071858 | M140: Formula = [(opening value + 50%* {capex - disposals}/CPI^0.5}*CPI] / value of depreciation. Note that capex and disposals are first expressed in start-of-year dollars then indexed to end-of-year values
B141: Value of assets at year end excluding 50% of capex that occurs at year end | C141: =C$20 -> $'000 | F141: =F137-F142 -> 630553.865 | G141: =G137-G142 -> 644832.2467 | H141: =H137-H142 -> 677868.971 | I141: =I137-I142 -> 727632.3431 | J141: =J137-J142 -> 795620.2876
B142: Value of capex that occurs at year end | C142: =C$20 -> $'000 | F142: =F133*$D$48 -> 17000 | G142: =G133*$D$48 -> 16500 | H142: =H133*$D$48 -> 9450 | I142: =I133*$D$48 -> 17430 | J142: =J133*$D$48 -> 32377.5
B143: Remaining life of assets at year end excluding 50% of capex that occurs at year end | C143: =C$140 -> years | F143: =F140-1 -> 39.21318861 | G143: =G140-1 -> 38.55939235 | H143: =H140-1 -> 37.88764067 | I143: =I140-1 -> 37.12664894 | J143: =J140-1 -> 36.58071858
B144: Remaining life of capex that occurs at year end | C144: =C$140 -> years | F144: =$D89 -> 50 | G144: =$D89 -> 50 | H144: =$D89 -> 50 | I144: =$D89 -> 50 | J144: =$D89 -> 50
B145: Average remaining life | C145: =C$140 -> years | F145: =IF(SUM(F141:F142)=0,0,SUMPRODUCT(F141:F142,F143:F144)/SUM(F141:F142)) -> 39.49637091 | G145: =IF(SUM(G141:G142)=0,0,SUMPRODUCT(G141:G142,G143:G144)/SUM(G141:G142)) -> 38.84483137 | H145: =IF(SUM(H141:H142)=0,0,SUMPRODUCT(H141:H142,H143:H144)/SUM(H141:H142)) -> 38.05417441 | I145: =IF(SUM(I141:I142)=0,0,SUMPRODUCT(I141:I142,I143:I144)/SUM(I141:I142)) -> 37.42780832 | J145: =IF(SUM(J141:J142)=0,0,SUMPRODUCT(J141:J142,J143:J144)/SUM(J141:J142)) -> 37.10545765 | L145: This is the average remaining life of depreciating assets at the start of the new determination period (with unchanged asset life assumptions)
B148: This option is for illustration only, and the results are not used in the model
B149: Simpler estimate of average remaining life - for illustration only | L149: Logic = remaining life at the beginning of the year - 1
B150: Estimated average remaining life | C150: =C$140 -> years | F150: =((F132+F133*$D$48-F134*$D$49)*(1+F$17))/F135-1 -> 39.22154058 | G150: =((G132+G133*$D$48-G134*$D$49)*(1+G$17))/G135-1 -> 38.5579365 | H150: =((H132+H133*$D$48-H134*$D$49)*(1+H$17))/H135-1 -> 37.89750066 | I150: =((I132+I133*$D$48-I134*$D$49)*(1+I$17))/I135-1 -> 37.15379122 | J150: =((J132+J133*$D$48-J134*$D$49)*(1+J$17))/J135-1 -> 36.61964022 | L150: Formula = [(opening value + 50% capex - 50% disposals)*CPI] / value of depreciation -1.
B151: Difference | C151: =C$140 -> years | F151: =F145-F150 -> 0.2748303258 | G151: =G145-G150 -> 0.2868948678 | H151: =H145-H150 -> 0.1566737434 | I151: =I145-I150 -> 0.274017101 | J151: =J145-J150 -> 0.485817425

Sheet RAB projected
B1: =Cover!B1 -> THE INDEPENDENT PRICING AND REGULATORY TRIBUNAL OF NSW | F1: =Cover!B4 -> 0 | K1: =Cover!$B$3 -> IPART TEMPLATE FOR COST BUILDING BLOCKS, SIMPLE TARIFF SETTING AND FINANCIAL RATIO ANALYSIS
B3: 9 Regulatory Asset Base roll forward for new determination period
B5: List of tables | M5: row number
B6: =B13 -> TABLE 1 - ASSUMPTIONS FOR ROLL FORWARD OF REGULATORY ASSET BASE | M6: =ROW(B13) -> 13
B7: =B49 -> TABLE 2 - ROLL FORWARD OF REGULATORY ASSET BASE FOR COST BUILDING BLOCKS | M7: =ROW(B49) -> 49
B8: =B127 -> TABLE 3 - ROLL FORWARD OF REGULATORY ASSET BASE FOR REGULATORY FINANCIAL STATEMENTS (nominal) | M8: =ROW(B127) -> 127
B13: TABLE 1 - ASSUMPTIONS FOR ROLL FORWARD OF REGULATORY ASSET BASE
B14: ='RAB & tax inputs'!B$32 -> Financial year | K14: ='RAB & tax inputs'!K$32 -> 2023-24 | L14: ='RAB & tax inputs'!L$32 -> 2024-25 | M14: ='RAB & tax inputs'!M$32 -> 2025-26 | N14: ='RAB & tax inputs'!N$32 -> 2026-27 | O14: ='RAB & tax inputs'!O$32 -> 2027-28 | P14: ='RAB & tax inputs'!P$32 -> 2028-29 | Q14: ='RAB & tax inputs'!Q$32 -> 2029-30 | R14: ='RAB & tax inputs'!R$32 -> 2030-31 | S14: ='RAB & tax inputs'!S$32 -> 2031-32 | T14: ='RAB & tax inputs'!T$32 -> 2032-33
K15: ='RAB & tax inputs'!K33 -> Determination period is 2023-24 to 2027-28
K16: =Scenario!$Y$41 -> 2022-23 $'000
B18: Inflation rate | K18: ='Pricing & financial inputs'!K19 -> 0.025 | L18: ='Pricing & financial inputs'!L19 -> 0.025 | M18: ='Pricing & financial inputs'!M19 -> 0.025 | N18: ='Pricing & financial inputs'!N19 -> 0.025 | O18: ='Pricing & financial inputs'!O19 -> 0.025 | P18: ='Pricing & financial inputs'!P19 -> 0.025 | Q18: ='Pricing & financial inputs'!Q19 -> 0.025 | R18: ='Pricing & financial inputs'!R19 -> 0.025 | S18: ='Pricing & financial inputs'!S19 -> 0.025 | T18: ='Pricing & financial inputs'!T19 -> 0.025
B19: Inflator for nominal RAB capex, cap cons and disposals | J19: 1 | K19: =J19*(1+K18) -> 1.025 | L19: 1.050625 | M19: 1.076890625 | N19: 1.103812891 | O19: 1.131408213 | P19: 1.159693418 | Q19: 1.188685754 | R19: 1.218402898 | S19: 1.24886297 | T19: 1.280084544
B21: RAB opening value
B22: ='RAB historical'!B20 -> Depreciating assets | C22: ='RAB & tax inputs'!$C$36 -> $'000 | K22: ='RAB historical'!J63 -> 821068.3402
B23: ='RAB historical'!B21 -> Non-depreciating assets (e.g. land) | C23: =C22 -> $'000 | K23: ='RAB historical'!J112 -> 48743.30237
B25: ='Selected costs'!B19 -> Selected capital expenditure
B26: ='Selected costs'!B20 -> - depreciating assets | C26: =$C$22 -> $'000 | K26: ='Selected costs'!K20 -> 95000 | L26: ='Selected costs'!L20 -> 120000 | M26: ='Selected costs'!M20 -> 70000 | N26: ='Selected costs'!N20 -> 44000 | O26: ='Selected costs'!O20 -> 54000 | P26: ='Selected costs'!P20 -> 43000 | Q26: ='Selected costs'!Q20 -> 32000 | R26: ='Selected costs'!R20 -> 32500 | S26: ='Selected costs'!S20 -> 33000 | T26: ='Selected costs'!T20 -> 33500
B27: ='Selected costs'!B21 -> - non-depreciating assets | C27: =$C$22 -> $'000 | K27: ='Selected costs'!K21 -> 4000 | L27: ='Selected costs'!L21 -> 0 | M27: ='Selected costs'!M21 -> 0 | N27: ='Selected costs'!N21 -> 5000 | O27: ='Selected costs'!O21 -> 0 | P27: ='Selected costs'!P21 -> 0 | Q27: ='Selected costs'!Q21 -> 0 | R27: ='Selected costs'!R21 -> 0 | S27: ='Selected costs'!S21 -> 0 | T27: ='Selected costs'!T21 -> 0
B29: Cash capital contributions
B30: Share of cash capital contributions included in RAB calculations | K30: =CHOOSE(Scenario!$W$55,(1-WACC!K$14),1) -> 0.7 | L30: =CHOOSE(Scenario!$W$55,(1-WACC!L$14),1) -> 0.7 | M30: =CHOOSE(Scenario!$W$55,(1-WACC!M$14),1) -> 0.7 | N30: =CHOOSE(Scenario!$W$55,(1-WACC!N$14),1) -> 0.7 | O30: =CHOOSE(Scenario!$W$55,(1-WACC!O$14),1) -> 0.7 | P30: =CHOOSE(Scenario!$W$55,(1-WACC!P$14),1) -> 0.7 | Q30: =CHOOSE(Scenario!$W$55,(1-WACC!Q$14),1) -> 0.7 | R30: =CHOOSE(Scenario!$W$55,(1-WACC!R$14),1) -> 0.7 | S30: =CHOOSE(Scenario!$W$55,(1-WACC!S$14),1) -> 0.7 | T30: =CHOOSE(Scenario!$W$55,(1-WACC!T$14),1) -> 0.7
B31: ='Selected costs'!B25 -> - depreciating assets | C31: =CHOOSE(Scenario!$W$55,$C$22&", net of tax",$C$22&" before tax") -> $'000, net of tax | K31: ='Selected costs'!K25*K$30 -> 700 | L31: ='Selected costs'!L25*L$30 -> 140 | M31: ='Selected costs'!M25*M$30 -> 350 | N31: ='Selected costs'!N25*N$30 -> 280 | O31: ='Selected costs'!O25*O$30 -> 0 | P31: ='Selected costs'!P25*P$30 -> 0 | Q31: ='Selected costs'!Q25*Q$30 -> 0 | R31: ='Selected costs'!R25*R$30 -> 0 | S31: ='Selected costs'!S25*S$30 -> 0 | T31: ='Selected costs'!T25*T$30 -> 0
B32: ='Selected costs'!B26 -> - non-depreciating assets | C32: =C31 -> $'000, net of tax | K32: ='Selected costs'!K26*K$30 -> 0 | L32: ='Selected costs'!L26*L$30 -> 0 | M32: ='Selected costs'!M26*M$30 -> 0 | N32: ='Selected costs'!N26*N$30 -> 0 | O32: ='Selected costs'!O26*O$30 -> 0 | P32: ='Selected costs'!P26*P$30 -> 0 | Q32: ='Selected costs'!Q26*Q$30 -> 0 | R32: ='Selected costs'!R26*R$30 -> 0 | S32: ='Selected costs'!S26*S$30 -> 0 | T32: ='Selected costs'!T26*T$30 -> 0
B34: Asset disposals
B35: ='Cost inputs'!B83 -> - depreciating assets | C35: =$C$22 -> $'000 | K35: ='Cost inputs'!K84 -> 600 | L35: ='Cost inputs'!L84 -> 500 | M35: ='Cost inputs'!M84 -> 500 | N35: ='Cost inputs'!N84 -> 500 | O35: ='Cost inputs'!O84 -> 500 | P35: ='Cost inputs'!P84 -> 500 | Q35: ='Cost inputs'!Q84 -> 500 | R35: ='Cost inputs'!R84 -> 500 | S35: ='Cost inputs'!S84 -> 500 | T35: ='Cost inputs'!T84 -> 500
B36: ='Cost inputs'!B85 -> - non-depreciating assets | C36: =$C$22 -> $'000 | K36: ='Cost inputs'!K86 -> 150 | L36: ='Cost inputs'!L86 -> 175 | M36: ='Cost inputs'!M86 -> 0 | N36: ='Cost inputs'!N86 -> 0 | O36: ='Cost inputs'!O86 -> 0 | P36: ='Cost inputs'!P86 -> 0 | Q36: ='Cost inputs'!Q86 -> 0 | R36: ='Cost inputs'!R86 -> 0 | S36: ='Cost inputs'!S86 -> 0 | T36: ='Cost inputs'!T86 -> 0
B38: Remaining lives of existing assets | C38: years | D38: ='RAB & tax inputs'!K75 -> 37.10545765 | E38: depreciating assets only
B39: Average expected life of new assets | C39: years | E39: =E38 -> depreciating assets only | K39: ='RAB & tax inputs'!K77 -> 40 | L39: ='RAB & tax inputs'!L77 -> 35 | M39: ='RAB & tax inputs'!M77 -> 50 | N39: ='RAB & tax inputs'!N77 -> 55 | O39: ='RAB & tax inputs'!O77 -> 50 | P39: ='RAB & tax inputs'!P77 -> 50 | Q39: ='RAB & tax inputs'!Q77 -> 50 | R39: ='RAB & tax inputs'!R77 -> 50 | S39: ='RAB & tax inputs'!S77 -> 50 | T39: ='RAB & tax inputs'!T77 -> 50
B41: Timing assumptions
B42: 1. Half of capital expenditure and disposals occurs at the beginning of the year, and half at the end of the year:
B43: % of capex in year depreciated and indexed | D43: ='RAB historical'!D48 -> 0.5
B44: % of disposals in year depreciated and indexed | D44: ='RAB historical'!D49 -> 0.5
B49: TABLE 2 - ROLL FORWARD OF REGULATORY ASSET BASE FOR COST BUILDING BLOCKS
B50: =B$14 -> Financial year | K50: =K$14 -> 2023-24 | L50: 2024-25 | M50: 2025-26 | N50: 2026-27 | O50: 2027-28 | P50: 2028-29 | Q50: 2029-30 | R50: 2030-31 | S50: 2031-32 | T50: 2032-33
K51: =K$15 -> Determination period is 2023-24 to 2027-28
K52: =K$16 -> 2022-23 $'000
B54: =$B$22 -> Depreciating assets
B55: Opening RAB | C55: =$C$22 -> $'000 | K55: =K$22 -> 821068.3402 | L55: =K60 -> 891469.7083 | M55: 984654.8634 | N55: 1025234.708 | O55: 1038804.073 | P55: 1061729.458 | Q55: 1072698.319 | R55: 1071930.655 | S55: 1071031.466 | T55: 1069990.752
B56: capex net of cash capital contributions | C56: =C55 -> $'000 | K56: =K$26-K$31 -> 94300 | L56: =L$26-L$31 -> 119860 | M56: =M$26-M$31 -> 69650 | N56: 43720 | O56: 54000 | P56: 43000 | Q56: 32000 | R56: 32500 | S56: 33000 | T56: 33500
B57: disposals | C57: =C56 -> $'000 | K57: =K$35 -> 600 | L57: =L$35 -> 500 | M57: 500 | N57: 500 | O57: 500 | P57: 500 | Q57: 500 | R57: 500 | S57: 500 | T57: 500
B58: depreciation | C58: =C57 -> $'000 | K58: =K73+K101 -> 23298.63188 | L58: 26174.84498 | M58: 28570.15558 | N58: 29650.63502 | O58: 30574.61446 | P58: 31531.13936 | Q58: 32267.66425 | R58: 32899.18914 | S58: 33540.71404 | T58: 34192.23893
B59: indexation | C59: =C58 -> $'000 | K59: 0 | L59: 0 | M59: 0 | N59: 0 | O59: 0 | P59: 0 | Q59: 0 | R59: 0 | S59: 0 | T59: 0
B60: Closing RAB | C60: =C59 -> $'000 | K60: =SUM(K55:K56)-K57-K58+K59 -> 891469.7083 | L60: 984654.8634 | M60: 1025234.708 | N60: 1038804.073 | O60: 1061729.458 | P60: 1072698.319 | Q60: 1071930.655 | R60: 1071031.466 | S60: 1069990.752 | T60: 1068798.513
B63: Calculation of depreciation (straight line)
B64: Existing assets at start of period
B65: period | J65: 0 | K65: 1 | L65: 2 | M65: 3 | N65: 4 | O65: 5 | P65: 6 | Q65: 7 | R65: 8 | S65: 9 | T65: 10
B66: % depreciation remaining | K66: =IF(K65<1/$D73,1,MAX(0,1/$D73-J65)) -> 1 | L66: =IF(L65<1/$D73,1,MAX(0,1/$D73-K65)) -> 1 | M66: 1 | N66: 1 | O66: 1 | P66: 1 | Q66: 1 | R66: 1 | S66: 1 | T66: 1
B68: Opening value of existing assets | C68: =C119 -> $'000 | K68: =K55 -> 821068.3402 | L68: =K71 -> 820468.3402 | M68: 819968.3402 | N68: 819468.3402 | O68: 818968.3402 | P68: 818468.3402 | Q68: 817968.3402 | R68: 817468.3402 | S68: 816968.3402 | T68: 816468.3402
B69: disposals | C69: =C68 -> $'000 | K69: =K57 -> 600 | L69: =L57 -> 500 | M69: 500 | N69: 500 | O69: 500 | P69: 500 | Q69: 500 | R69: 500 | S69: 500 | T69: 500
B70: indexation | C70: =C69 -> $'000 | K70: 0 | L70: 0 | M70: 0 | N70: 0 | O70: 0 | P70: 0 | Q70: 0 | R70: 0 | S70: 0 | T70: 0
B71: Closing value before further depreciation | K71: =K68-K69+K70 -> 820468.3402 | L71: =L68-L69+L70 -> 819968.3402 | M71: 819468.3402 | N71: 818968.3402 | O71: 818468.3402 | P71: 817968.3402 | Q71: 817468.3402 | R71: 816968.3402 | S71: 816468.3402 | T71: 815968.3402
B73: Depreciation | C73: =C70 -> $'000 | D73: =1/D$38 -> 0.02695021335 | K73: =(K71+K69*$D$44)*$D73*K66 -> 22119.88188 | L73: =(L71+L69*$D$44)*$D73*L66 -> 22105.05926 | M73: 22091.58416 | N73: 22078.10905 | O73: 22064.63394 | P73: 22051.15884 | Q73: 22037.68373 | R73: 22024.20862 | S73: 22010.73352 | T73: 21997.25841 | V73: formula = (closing value + 50% disposals) x depreciation rate x % depreciation remaining
B75: New assets (i.e. net capex during period) - Method 1, suitable for long-live and short-lived assets
B77: % of 1 year's depreciation in | D77: Expected life (years) | K77: This matrix shows the proportion of a full year's worth of straight line depreciation that occurs each year
B78: =TRANSPOSE($K$14:$T$14) -> 2023-24 | C78: % | D78: =TRANSPOSE($K$39:$T$39) -> 40 | K78: =$D$43 -> 0.5 | L78: =IF(SUM($K78:K78)+1<$D78,1,$D78-SUM($K78:K78)) -> 1 | M78: =IF(SUM($K78:L78)+1<$D78,1,$D78-SUM($K78:L78)) -> 1 | N78: =IF(SUM($K78:M78)+1<$D78,1,$D78-SUM($K78:M78)) -> 1 | O78: =IF(SUM($K78:N78)+1<$D78,1,$D78-SUM($K78:N78)) -> 1 | P78: =IF(SUM($K78:O78)+1<$D78,1,$D78-SUM($K78:O78)) -> 1 | Q78: =IF(SUM($K78:P78)+1<$D78,1,$D78-SUM($K78:P78)) -> 1 | R78: =IF(SUM($K78:Q78)+1<$D78,1,$D78-SUM($K78:Q78)) -> 1 | S78: =IF(SUM($K78:R78)+1<$D78,1,$D78-SUM($K78:R78)) -> 1 | T78: =IF(SUM($K78:S78)+1<$D78,1,$D78-SUM($K78:S78)) -> 1
B79: 2024-25 | C79: % | D79: 35 | K79: 0 | L79: =$D$43 -> 0.5 | M79: =IF(SUM($K79:L79)+1<$D79,1,$D79-SUM($K79:L79)) -> 1 | N79: =IF(SUM($K79:M79)+1<$D79,1,$D79-SUM($K79:M79)) -> 1 | O79: =IF(SUM($K79:N79)+1<$D79,1,$D79-SUM($K79:N79)) -> 1 | P79: =IF(SUM($K79:O79)+1<$D79,1,$D79-SUM($K79:O79)) -> 1 | Q79: =IF(SUM($K79:P79)+1<$D79,1,$D79-SUM($K79:P79)) -> 1 | R79: =IF(SUM($K79:Q79)+1<$D79,1,$D79-SUM($K79:Q79)) -> 1 | S79: =IF(SUM($K79:R79)+1<$D79,1,$D79-SUM($K79:R79)) -> 1 | T79: =IF(SUM($K79:S79)+1<$D79,1,$D79-SUM($K79:S79)) -> 1
B80: 2025-26 | C80: % | D80: 50 | K80: 0 | L80: 0 | M80: =$D$43 -> 0.5 | N80: =IF(SUM($K80:M80)+1<$D80,1,$D80-SUM($K80:M80)) -> 1 | O80: =IF(SUM($K80:N80)+1<$D80,1,$D80-SUM($K80:N80)) -> 1 | P80: =IF(SUM($K80:O80)+1<$D80,1,$D80-SUM($K80:O80)) -> 1 | Q80: =IF(SUM($K80:P80)+1<$D80,1,$D80-SUM($K80:P80)) -> 1 | R80: =IF(SUM($K80:Q80)+1<$D80,1,$D80-SUM($K80:Q80)) -> 1 | S80: =IF(SUM($K80:R80)+1<$D80,1,$D80-SUM($K80:R80)) -> 1 | T80: =IF(SUM($K80:S80)+1<$D80,1,$D80-SUM($K80:S80)) -> 1
B81: 2026-27 | C81: % | D81: 55 | K81: 0 | L81: 0 | M81: 0 | N81: =$D$43 -> 0.5 | O81: =IF(SUM($K81:N81)+1<$D81,1,$D81-SUM($K81:N81)) -> 1 | P81: =IF(SUM($K81:O81)+1<$D81,1,$D81-SUM($K81:O81)) -> 1 | Q81: =IF(SUM($K81:P81)+1<$D81,1,$D81-SUM($K81:P81)) -> 1 | R81: =IF(SUM($K81:Q81)+1<$D81,1,$D81-SUM($K81:Q81)) -> 1 | S81: =IF(SUM($K81:R81)+1<$D81,1,$D81-SUM($K81:R81)) -> 1 | T81: =IF(SUM($K81:S81)+1<$D81,1,$D81-SUM($K81:S81)) -> 1
B82: 2027-28 | C82: % | D82: 50 | K82: 0 | L82: 0 | M82: 0 | N82: 0 | O82: =N81 -> 0.5 | P82: =IF(SUM($K82:O82)+1<$D82,1,$D82-SUM($K82:O82)) -> 1 | Q82: =IF(SUM($K82:P82)+1<$D82,1,$D82-SUM($K82:P82)) -> 1 | R82: =IF(SUM($K82:Q82)+1<$D82,1,$D82-SUM($K82:Q82)) -> 1 | S82: =IF(SUM($K82:R82)+1<$D82,1,$D82-SUM($K82:R82)) -> 1 | T82: =IF(SUM($K82:S82)+1<$D82,1,$D82-SUM($K82:S82)) -> 1
B83: 2028-29 | C83: % | D83: 50 | K83: 0 | L83: 0 | M83: 0 | N83: 0 | O83: 0 | P83: =O82 -> 0.5 | Q83: =IF(SUM($K83:P83)+1<$D83,1,$D83-SUM($K83:P83)) -> 1 | R83: =IF(SUM($K83:Q83)+1<$D83,1,$D83-SUM($K83:Q83)) -> 1 | S83: =IF(SUM($K83:R83)+1<$D83,1,$D83-SUM($K83:R83)) -> 1 | T83: =IF(SUM($K83:S83)+1<$D83,1,$D83-SUM($K83:S83)) -> 1
B84: 2029-30 | C84: % | D84: 50 | K84: 0 | L84: 0 | M84: 0 | N84: 0 | O84: 0 | P84: 0 | Q84: =P83 -> 0.5 | R84: =IF(SUM($K84:Q84)+1<$D84,1,$D84-SUM($K84:Q84)) -> 1 | S84: =IF(SUM($K84:R84)+1<$D84,1,$D84-SUM($K84:R84)) -> 1 | T84: =IF(SUM($K84:S84)+1<$D84,1,$D84-SUM($K84:S84)) -> 1
B85: 2030-31 | C85: % | D85: 50 | K85: 0 | L85: 0 | M85: 0 | N85: 0 | O85: 0 | P85: 0 | Q85: 0 | R85: =Q84 -> 0.5 | S85: =IF(SUM($K85:R85)+1<$D85,1,$D85-SUM($K85:R85)) -> 1 | T85: =IF(SUM($K85:S85)+1<$D85,1,$D85-SUM($K85:S85)) -> 1
B86: 2031-32 | C86: % | D86: 50 | K86: 0 | L86: 0 | M86: 0 | N86: 0 | O86: 0 | P86: 0 | Q86: 0 | R86: 0 | S86: =R85 -> 0.5 | T86: =IF(SUM($K86:S86)+1<$D86,1,$D86-SUM($K86:S86)) -> 1
B87: 2032-33 | C87: % | D87: 50 | K87: 0 | L87: 0 | M87: 0 | N87: 0 | O87: 0 | P87: 0 | Q87: 0 | R87: 0 | S87: 0 | T87: =S86 -> 0.5
B89: Capex net of cap cons) | K89: =K56 -> 94300 | L89: =L56 -> 119860 | M89: 69650 | N89: 43720 | O89: 54000 | P89: 43000 | Q89: 32000 | R89: 32500 | S89: 33000 | T89: 33500
B90: Depreciation for capex (after indexation) occurring in: | D90: Depreciation rate
B91: =B78 -> 2023-24 | C91: =$C$114 -> $'000 | D91: =IF(D78=0,0,1/D78) -> 0.025 | K91: =K78*K89*$D91 -> 1178.75 | L91: =IF(K78=0,0,K91*L78/K78) -> 2357.5 | M91: =IF(L78=0,0,L91*M78/L78) -> 2357.5 | N91: 2357.5 | O91: 2357.5 | P91: 2357.5 | Q91: 2357.5 | R91: 2357.5 | S91: 2357.5 | T91: 2357.5 | V91: formula = ($ depreciation in year t-1 x {% of full year's depreciation in year t / % of full year's depreciation I year t-1})
B92: =B79 -> 2024-25 | C92: $'000 | D92: =IF(D79=0,0,1/D79) -> 0.02857142857 | K92: =K79 -> 0 | L92: =L79*L89*$D92 -> 1712.285714 | M92: =IF(L79=0,0,L92*M79/L79) -> 3424.571429 | N92: =IF(M79=0,0,M92*N79/M79) -> 3424.571429 | O92: 3424.571429 | P92: 3424.571429 | Q92: 3424.571429 | R92: 3424.571429 | S92: 3424.571429 | T92: 3424.571429
B93: 2025-26 | C93: $'000 | D93: 0.02 | K93: =K80 -> 0 | L93: =L80 -> 0 | M93: =M80*M89*$D93 -> 696.5 | N93: =IF(M80=0,0,M93*N80/M80) -> 1393 | O93: =IF(N80=0,0,N93*O80/N80) -> 1393 | P93: 1393 | Q93: 1393 | R93: 1393 | S93: 1393 | T93: 1393
B94: 2026-27 | C94: $'000 | D94: 0.01818181818 | K94: 0 | L94: 0 | M94: 0 | N94: =N81*N89*$D94 -> 397.4545455 | O94: =IF(N81=0,0,N94*O81/N81) -> 794.9090909 | P94: =IF(O81=0,0,O94*P81/O81) -> 794.9090909 | Q94: 794.9090909 | R94: 794.9090909 | S94: 794.9090909 | T94: 794.9090909
B95: 2027-28 | C95: $'000 | D95: 0.02 | K95: 0 | L95: 0 | M95: 0 | N95: 0 | O95: =O82*O89*$D95 -> 540 | P95: =IF(O82=0,0,O95*P82/O82) -> 1080 | Q95: =IF(P82=0,0,P95*Q82/P82) -> 1080 | R95: 1080 | S95: 1080 | T95: 1080
B96: 2028-29 | C96: $'000 | D96: 0.02 | K96: 0 | L96: 0 | M96: 0 | N96: 0 | O96: 0 | P96: =P83*P89*$D96 -> 430 | Q96: =IF(P83=0,0,P96*Q83/P83) -> 860 | R96: =IF(Q83=0,0,Q96*R83/Q83) -> 860 | S96: 860 | T96: 860
B97: 2029-30 | C97: $'000 | D97: 0.02 | K97: 0 | L97: 0 | M97: 0 | N97: 0 | O97: 0 | P97: 0 | Q97: =Q84*Q89*$D97 -> 320 | R97: =IF(Q84=0,0,Q97*R84/Q84) -> 640 | S97: =IF(R84=0,0,R97*S84/R84) -> 640 | T97: 640
B98: 2030-31 | C98: $'000 | D98: 0.02 | K98: 0 | L98: 0 | M98: 0 | N98: 0 | O98: 0 | P98: 0 | Q98: 0 | R98: =R85*R89*$D98 -> 325 | S98: =IF(R85=0,0,R98*S85/R85) -> 650 | T98: =IF(S85=0,0,S98*T85/S85) -> 650
B99: 2031-32 | C99: $'000 | D99: 0.02 | K99: 0 | L99: 0 | M99: 0 | N99: 0 | O99: 0 | P99: 0 | Q99: 0 | R99: =R86*R90*$D99 -> 0 | S99: =S86*S89*$D99 -> 330 | T99: =IF(S86=0,0,S99*T86/S86) -> 660
B100: 2032-33 | C100: $'000 | D100: 0.02 | K100: 0 | L100: 0 | M100: 0 | N100: 0 | O100: 0 | P100: 0 | Q100: 0 | R100: 0 | S100: =S87*S90*$D100 -> 0 | T100: =T87*T89*$D100 -> 335
B101: Depreciation for the year | C101: $'000 | K101: =SUM(K91:K100) -> 1178.75 | L101: 4069.785714 | M101: 6478.571429 | N101: 7572.525974 | O101: 8509.980519 | P101: 9479.980519 | Q101: =SUM(Q91:Q100) -> 10229.98052 | R101: =SUM(R91:R100) -> 10874.98052 | S101: =SUM(S91:S100) -> 11529.98052 | T101: =SUM(T91:T100) -> 12194.98052
B105: =$B$23 -> Non-depreciating assets (e.g. land)
B106: =B114 -> Opening RAB | C106: =$C$22 -> $'000 | K106: =K$23 -> 48743.30237 | L106: =K111 -> 52593.30237 | M106: 52418.30237 | N106: 52418.30237 | O106: 57418.30237 | P106: 57418.30237 | Q106: 57418.30237 | R106: 57418.30237 | S106: 57418.30237 | T106: 57418.30237
B107: capex net of cash capital contributions | C107: =C106 -> $'000 | K107: =K$27-K$32 -> 4000 | L107: =L$27-L$32 -> 0 | M107: 0 | N107: 5000 | O107: 0 | P107: 0 | Q107: 0 | R107: 0 | S107: 0 | T107: 0
B108: disposals | C108: =C107 -> $'000 | K108: =K$36 -> 150 | L108: =L$36 -> 175 | M108: 0 | N108: 0 | O108: 0 | P108: 0 | Q108: 0 | R108: 0 | S108: 0 | T108: 0
B109: depreciation | C109: =C108 -> $'000 | K109: 0 | L109: 0 | M109: 0 | N109: 0 | O109: 0 | P109: 0 | Q109: 0 | R109: 0 | S109: 0 | T109: 0 | V109: Kept as placeholder to reduce risk of calculation error when adding depreciating and non-depreciating assets to total RAB
B110: indexation | C110: =C109 -> $'000 | K110: 0 | L110: 0 | M110: 0 | N110: 0 | O110: 0 | P110: 0 | Q110: 0 | R110: 0 | S110: 0 | T110: 0
B111: Closing RAB | C111: =C110 -> $'000 | K111: =SUM(K106:K107)-K108-K109+K110 -> 52593.30237 | L111: 52418.30237 | M111: 52418.30237 | N111: 57418.30237 | O111: 57418.30237 | P111: 57418.30237 | Q111: 57418.30237 | R111: 57418.30237 | S111: 57418.30237 | T111: 57418.30237
B113: Total RAB
B114: =B55 -> Opening RAB | C114: =$C$22 -> $'000 | K114: =K55+K106 -> 869811.6426 | L114: 944063.0107 | M114: 1037073.166 | N114: 1077653.01 | O114: 1096222.375 | P114: 1119147.761 | Q114: 1130116.621 | R114: 1129348.957 | S114: 1128449.768 | T114: 1127409.054
B115: capex net of cash capital contributions | C115: =C114 -> $'000 | K115: =K56+K107 -> 98300 | L115: 119860 | M115: 69650 | N115: 48720 | O115: 54000 | P115: 43000 | Q115: 32000 | R115: 32500 | S115: 33000 | T115: 33500
B116: disposals | C116: =C115 -> $'000 | K116: =K57+K108 -> 750 | L116: 675 | M116: 500 | N116: 500 | O116: 500 | P116: 500 | Q116: 500 | R116: 500 | S116: 500 | T116: 500
B117: depreciation | C117: =C116 -> $'000 | K117: =K58+K109 -> 23298.63188 | L117: 26174.84498 | M117: 28570.15558 | N117: 29650.63502 | O117: 30574.61446 | P117: 31531.13936 | Q117: 32267.66425 | R117: 32899.18914 | S117: 33540.71404 | T117: 34192.23893
B118: indexation | C118: =C117 -> $'000 | K118: =K59+K110 -> 0 | L118: 0 | M118: 0 | N118: 0 | O118: 0 | P118: 0 | Q118: 0 | R118: 0 | S118: 0 | T118: 0
B119: Closing RAB | C119: =C118 -> $'000 | K119: =K60+K111 -> 944063.0107 | L119: 1037073.166 | M119: 1077653.01 | N119: 1096222.375 | O119: 1119147.761 | P119: 1130116.621 | Q119: 1129348.957 | R119: 1128449.768 | S119: 1127409.054 | T119: 1126216.815
B120: check closing value = 0 | K120: =SUM(K114:K115)-K116-K117+K118-K119 -> 0 | L120: =SUM(L114:L115)-L116-L117+L118-L119 -> 0 | M120: 0 | N120: 0 | O120: 0 | P120: 0 | Q120: 0 | R120: 0 | S120: 0 | T120: 0
B121: check net capex = 0 | K121: =K115-SUM(K$26:K$27)+SUM(K$31:K$32) -> 0 | L121: =L115-SUM(L$26:L$27)+SUM(L$31:L$32) -> 0 | M121: 0 | N121: 0 | O121: 0 | P121: 0 | Q121: 0 | R121: 0 | S121: 0 | T121: 0
B122: check disposals = 0 | K122: =K116-SUM(K$35:K$36) -> 0 | L122: =L116-SUM(L$35:L$36) -> 0 | M122: 0 | N122: 0 | O122: 0 | P122: 0 | Q122: 0 | R122: 0 | S122: 0 | T122: 0
B127: TABLE 3 - ROLL FORWARD OF REGULATORY ASSET BASE FOR REGULATORY FINANCIAL STATEMENTS (nominal)
B128: =B$14 -> Financial year | K128: =K$14 -> 2023-24 | L128: 2024-25 | M128: 2025-26 | N128: 2026-27 | O128: 2027-28 | P128: 2028-29 | Q128: 2029-30 | R128: 2030-31 | S128: 2031-32 | T128: 2032-33
K129: =K$15 -> Determination period is 2023-24 to 2027-28
K130: Nominal
B131: Total RAB
B132: =B114 -> Opening RAB | C132: $'000 | K132: =K114 -> 869811.6426 | L132: =K137 -> 967664.586 | M132: =L137 -> 1089574.995 | N132: =M137 -> 1160514.424 | O132: =N137 -> 1210024.389 | P132: 1266212.968 | Q132: 1310588.808 | R132: 1342441.016 | S132: 1374906.467 | T132: 1407979.419 | V132: = closing RAB from previous year (calculated)
B133: capex net of cash capital contributions | C133: $'000 | K133: =K115*K$19 -> 100757.5 | L133: 125927.9125 | M133: 75005.43203 | N133: 53777.76403 | O133: 61096.0435 | P133: 49866.81698 | Q133: 38037.94412 | R133: 39598.09417 | S133: 41212.47801 | T133: 42882.83223 | V133: = inflation indexed
B134: disposals | C134: $'000 | K134: =K116*K$19 -> 768.75 | L134: 709.171875 | M134: 538.4453125 | N134: 551.9064453 | O134: 565.7041064 | P134: 579.8467091 | Q134: 594.3428768 | R134: 609.2014488 | S134: 624.431485 | T134: 640.0422721 | V134: = inflation indexed
B135: depreciation | C135: $'000 | K135: =K117*K$19 -> 23881.09768 | L135: 27499.9465 | M135: 30766.9327 | N135: 32728.75315 | O135: 34592.36991 | P135: 36566.45478 | Q135: 38356.1128 | R135: 40084.46738 | S135: 41887.75574 | T135: 43768.95658 | V135: = inflation indexed
B136: indexation | C136: $'000 | K136: =K137-K132-K133+K134+K135 -> 21745.29106 | L136: 24191.61465 | M136: 27239.37487 | N136: 29012.86059 | O136: 30250.60972 | P136: 31655.3242 | Q136: 32764.72019 | R136: 33561.0254 | S136: 34372.66167 | T136: 35199.48548 | V136: = calculated as a residual
B137: Closing RAB | C137: $'000 | K137: =K119*K$19 -> 967664.586 | L137: 1089574.995 | M137: 1160514.424 | N137: 1210024.389 | O137: 1266212.968 | P137: 1310588.808 | Q137: 1342441.016 | R137: 1374906.467 | S137: 1407979.419 | T137: 1441652.738 | V137: = inflation indexed closing value of real RAB
B138: check closing value = 0 | K138: =SUM(K132:K133)-K134-K135+K136-K137 -> 0 | L138: =SUM(L132:L133)-L134-L135+L136-L137 -> 0 | M138: =SUM(M132:M133)-M134-M135+M136-M137 -> 0 | N138: 0 | O138: 0 | P138: 0 | Q138: 0 | R138: 0 | S138: 0 | T138: 0
B139: check net capex = 0 | K139: =K133-SUM(K$26:K$27)*K$19+SUM(K$31:K$32)*K$19 -> 0 | L139: 5.798028724e-12 | M139: 5.798028724e-12 | N139: -7.958078641e-13 | O139: 0 | P139: 0 | Q139: 0 | R139: 0 | S139: 0 | T139: 0
B140: check disposals = 0 | K140: =K134-SUM(K$35:K$36)*K$19 -> 0 | L140: 0 | M140: 0 | N140: 0 | O140: 0 | P140: 0 | Q140: 0 | R140: 0 | S140: 0 | T140: 0

Sheet Return on RAB
B1: =Cover!B1 -> THE INDEPENDENT PRICING AND REGULATORY TRIBUNAL OF NSW | K1: =Cover!$B$3 -> IPART TEMPLATE FOR COST BUILDING BLOCKS, SIMPLE TARIFF SETTING AND FINANCIAL RATIO ANALYSIS
B3: 10 Return on Regulatory Asset Base1 (year end and mid-year values)
B5: List of tables | G5: row number | L5: row number
B6: =B11 -> TABLE 1 - ASSUMPTIONS | G6: =ROW(B11) -> 11 | L6: =ROW(B11) -> 11
B7: =B26 -> TABLE 2 - CALCULATION OF RETURN ON ASSETS (FOR BUILDING BLOCK COSTS) | G7: =ROW(B55) -> 55 | L7: =ROW(B26) -> 26
B11: TABLE 1 - ASSUMPTIONS
B12: ='RAB projected '!B14 -> Financial year | K12: ='RAB projected '!K$14 -> 2023-24 | L12: ='RAB projected '!L$14 -> 2024-25 | M12: ='RAB projected '!M$14 -> 2025-26 | N12: ='RAB projected '!N$14 -> 2026-27 | O12: ='RAB projected '!O$14 -> 2027-28 | P12: ='RAB projected '!P$14 -> 2028-29 | Q12: ='RAB projected '!Q$14 -> 2029-30 | R12: ='RAB projected '!R$14 -> 2030-31 | S12: ='RAB projected '!S$14 -> 2031-32 | T12: ='RAB projected '!T$14 -> 2032-33
K13: ='RAB projected '!K$15 -> Determination period is 2023-24 to 2027-28
K14: =Scenario!$Y$41 -> 2022-23 $'000
B16: =Scenario!$C$66 -> Post-tax WACC (rounded) | K16: =Scenario!K$66 -> 0.026 | L16: =Scenario!L$66 -> 0.026 | M16: =Scenario!M$66 -> 0.026 | N16: =Scenario!N$66 -> 0.026 | O16: =Scenario!O$66 -> 0.026 | P16: =Scenario!P$66 -> 0.026 | Q16: =Scenario!Q$66 -> 0.026 | R16: =Scenario!R$66 -> 0.026 | S16: =Scenario!S$66 -> 0.026 | T16: =Scenario!T$66 -> 0.026
B17: ='RAB historical'!B17 -> Inflation rate to roll forward RAB (actual to June) | K17: 0 | L17: 0 | M17: 0 | N17: 0 | O17: 0 | P17: 0 | Q17: 0 | R17: 0 | S17: 0 | T17: 0
B18: WACC for capital maintenance check | K18: =(1+K16)*(1+K17)-1 -> 0.026 | L18: 0.026 | M18: 0.026 | N18: 0.026 | O18: 0.026 | P18: 0.026 | Q18: 0.026 | R18: 0.026 | S18: 0.026 | T18: 0.026
B20: % of capex in year depreciated and indexed | D20: ='RAB historical'!$D$48 -> 0.5
B21: % of disposals in year depreciated and indexed | D21: ='RAB historical'!$D$49 -> 0.5
B26: TABLE 2 - CALCULATION OF RETURN ON ASSETS (FOR BUILDING BLOCK COSTS)
B27: =B12 -> Financial year | K27: =K12 -> 2023-24 | L27: 2024-25 | M27: 2025-26 | N27: 2026-27 | O27: 2027-28 | P27: 2028-29 | Q27: 2029-30 | R27: 2030-31 | S27: 2031-32 | T27: 2032-33
K28: =K$13 -> Determination period is 2023-24 to 2027-28
K29: =K14 -> 2022-23 $'000
B31: ='RAB projected '!B114 -> Opening RAB | C31: ='RAB projected '!C114 -> $'000 | K31: ='RAB projected '!K114 -> 869811.6426 | L31: ='RAB projected '!L114 -> 944063.0107 | M31: ='RAB projected '!M114 -> 1037073.166 | N31: ='RAB projected '!N114 -> 1077653.01 | O31: ='RAB projected '!O114 -> 1096222.375 | P31: ='RAB projected '!P114 -> 1119147.761 | Q31: ='RAB projected '!Q114 -> 1130116.621 | R31: ='RAB projected '!R114 -> 1129348.957 | S31: ='RAB projected '!S114 -> 1128449.768 | T31: ='RAB projected '!T114 -> 1127409.054
B32: ='RAB projected '!B115 -> capex net of cash capital contributions | C32: ='RAB projected '!C115 -> $'000 | K32: ='RAB projected '!K115 -> 98300 | L32: ='RAB projected '!L115 -> 119860 | M32: ='RAB projected '!M115 -> 69650 | N32: ='RAB projected '!N115 -> 48720 | O32: ='RAB projected '!O115 -> 54000 | P32: ='RAB projected '!P115 -> 43000 | Q32: ='RAB projected '!Q115 -> 32000 | R32: ='RAB projected '!R115 -> 32500 | S32: ='RAB projected '!S115 -> 33000 | T32: ='RAB projected '!T115 -> 33500
B33: ='RAB projected '!B116 -> disposals | C33: ='RAB projected '!C116 -> $'000 | K33: ='RAB projected '!K116 -> 750 | L33: ='RAB projected '!L116 -> 675 | M33: ='RAB projected '!M116 -> 500 | N33: ='RAB projected '!N116 -> 500 | O33: ='RAB projected '!O116 -> 500 | P33: ='RAB projected '!P116 -> 500 | Q33: ='RAB projected '!Q116 -> 500 | R33: ='RAB projected '!R116 -> 500 | S33: ='RAB projected '!S116 -> 500 | T33: ='RAB projected '!T116 -> 500
B34: ='RAB projected '!B117 -> depreciation | C34: ='RAB projected '!C117 -> $'000 | K34: ='RAB projected '!K117 -> 23298.63188 | L34: ='RAB projected '!L117 -> 26174.84498 | M34: ='RAB projected '!M117 -> 28570.15558 | N34: ='RAB projected '!N117 -> 29650.63502 | O34: ='RAB projected '!O117 -> 30574.61446 | P34: ='RAB projected '!P117 -> 31531.13936 | Q34: ='RAB projected '!Q117 -> 32267.66425 | R34: ='RAB projected '!R117 -> 32899.18914 | S34: ='RAB projected '!S117 -> 33540.71404 | T34: ='RAB projected '!T117 -> 34192.23893
B35: ='RAB projected '!B118 -> indexation | C35: ='RAB projected '!C118 -> $'000 | K35: ='RAB projected '!K118 -> 0 | L35: ='RAB projected '!L118 -> 0 | M35: ='RAB projected '!M118 -> 0 | N35: ='RAB projected '!N118 -> 0 | O35: ='RAB projected '!O118 -> 0 | P35: ='RAB projected '!P118 -> 0 | Q35: ='RAB projected '!Q118 -> 0 | R35: ='RAB projected '!R118 -> 0 | S35: ='RAB projected '!S118 -> 0 | T35: ='RAB projected '!T118 -> 0
B36: ='RAB projected '!B119 -> Closing RAB | C36: ='RAB projected '!C119 -> $'000 | K36: ='RAB projected '!K119 -> 944063.0107 | L36: ='RAB projected '!L119 -> 1037073.166 | M36: ='RAB projected '!M119 -> 1077653.01 | N36: ='RAB projected '!N119 -> 1096222.375 | O36: ='RAB projected '!O119 -> 1119147.761 | P36: ='RAB projected '!P119 -> 1130116.621 | Q36: ='RAB projected '!Q119 -> 1129348.957 | R36: ='RAB projected '!R119 -> 1128449.768 | S36: ='RAB projected '!S119 -> 1127409.054 | T36: ='RAB projected '!T119 -> 1126216.815
B37: check =0 | K37: =SUM(K31:K32,K35)-SUM(K33:K34)-K36 -> 0 | L37: 0 | M37: 0 | N37: 0 | O37: 0 | P37: 0 | Q37: 0 | R37: 0 | S37: 0 | T37: 0
B39: Calculation of return on RAB
B40: Value of fixed RAB on which year-end return given | K40: =(K31+K32*$D$20-K33*$D$21)*(1+K$17) -> 918586.6426 | L40: 1003655.511 | M40: 1071648.166 | N40: 1101763.01 | O40: 1122972.375 | P40: 1140397.761 | Q40: 1145866.621 | R40: 1145348.957 | S40: 1144699.768 | T40: 1143909.054 | V40: = (opening value+ 50% capex- 50% disposals)*(1+inflation rate)
B41: Return on fixed RAB (year-end value) | K41: =K16*K40 -> 23883.25271 | L41: 26095.04328 | M41: 27862.85231 | N41: 28645.83826 | O41: 29197.28175 | P41: 29650.34178 | Q41: 29792.53215 | R41: 29779.07288 | S41: 29762.19397 | T41: 29741.6354 | V41: Value on with return given x real WACC (compensation for inflation made in RAB roll forward)
B42: Return on fixed RAB to be recovered from revenue (mid-year value) | K42: =K41/(1+K16)^0.5 -> 23578.69656 | L42: 25762.28267 | M42: 27507.54883 | N42: 28280.55025 | O42: 28824.9618 | P42: 29272.24446 | Q42: 29412.62165 | R42: 29399.33401 | S42: 29382.67033 | T42: 29362.37392 | V42: Mid-year value = year end value discounted by 6 months of (real) WACC
B44: Capital maintenance check
B46: Opening assets | C46: =C31 -> $'000 | K46: =K31 -> 869811.6426 | L46: =L31 -> 944063.0107 | M46: 1037073.166 | N46: 1077653.01 | O46: 1096222.375 | P46: 1119147.761 | Q46: 1130116.621 | R46: 1129348.957 | S46: 1128449.768 | T46: 1127409.054
B47: Capex | C47: =C46 -> $'000 | K47: =K32 -> 98300 | L47: =L32 -> 119860 | M47: 69650 | N47: 48720 | O47: 54000 | P47: 43000 | Q47: 32000 | R47: 32500 | S47: 33000 | T47: 33500
B48: Disposals | C48: =C47 -> $'000 | K48: =K33 -> 750 | L48: =L33 -> 675 | M48: 500 | N48: 500 | O48: 500 | P48: 500 | Q48: 500 | R48: 500 | S48: 500 | T48: 500
B49: NPV of investment in assets | C49: =C48 -> $'000 | K49: =K46+(K47*$D$20-K48*$D$21)/(1+K18)+(K47-K48)*$D$20 -> 966125.629 | L49: =L46+(L47*$D$20-L48*$D$21)/(1+L18)+(L47-L48)*$D$20 -> 1061737.869 | M49: 1105346.996 | N49: 1125262.035 | O49: 1149044.5 | P49: 1161109.262 | Q49: 1161217.499 | R49: 1160943.499 | S49: 1160537.975 | T49: 1159990.925
B51: Return on assets (year end value) | C51: =C49 -> $'000 | K51: =K41 -> 23883.25271 | L51: =L41 -> 26095.04328 | M51: 27862.85231 | N51: 28645.83826 | O51: 29197.28175 | P51: 29650.34178 | Q51: 29792.53215 | R51: 29779.07288 | S51: 29762.19397 | T51: 29741.6354
B52: Depreciation (year end value) | C52: =C51 -> $'000 | K52: =K34 -> 23298.63188 | L52: =L34 -> 26174.84498 | M52: 28570.15558 | N52: 29650.63502 | O52: 30574.61446 | P52: 31531.13936 | Q52: 32267.66425 | R52: 32899.18914 | S52: 33540.71404 | T52: 34192.23893
B53: Closing asset value | C53: =C52 -> $'000 | K53: =K36 -> 944063.0107 | L53: =L36 -> 1037073.166 | M53: 1077653.01 | N53: 1096222.375 | O53: 1119147.761 | P53: 1130116.621 | Q53: 1129348.957 | R53: 1128449.768 | S53: 1127409.054 | T53: 1126216.815
B54: NPV of asset returns | C54: =C53 -> $'000 | K54: =SUM(K51:K53)/(1+K18) -> 966125.629 | L54: =SUM(L51:L53)/(1+L18) -> 1061737.869 | M54: 1105346.996 | N54: 1125262.035 | O54: 1149044.5 | P54: 1161109.262 | Q54: 1161217.499 | R54: 1160943.499 | S54: 1160537.975 | T54: 1159990.925
B56: Difference (must=0) | K56: =K54-K49 -> 0 | L56: =L54-L49 -> 0 | M56: 0 | N56: 0 | O56: 0 | P56: 0 | Q56: 0 | R56: 0 | S56: =S54-S49 -> 0 | T56: =T54-T49 -> 0

Sheet Working capital
B1: =Cover!B1 -> THE INDEPENDENT PRICING AND REGULATORY TRIBUNAL OF NSW | K1: =Cover!$B$3 -> IPART TEMPLATE FOR COST BUILDING BLOCKS, SIMPLE TARIFF SETTING AND FINANCIAL RATIO ANALYSIS
B3: 11 Working capital and return on working capital
B5: List of tables | Q5: row number
B6: =B10 -> TABLE 1 - ASSUMPTIONS | Q6: =ROW(B10) -> 10
B7: =B38 -> TABLE 2 - CALCULATION OF WORKING CAPITAL ALLOWANCE AND RETURN ON WORKING CAPITAL - REVENUE OPTION 1 | Q7: =ROW(B38) -> 38
B10: TABLE 1 - ASSUMPTIONS
B11: ='Return on RAB'!B12 -> Financial year | J11: ='RAB & tax inputs'!J108 -> 2022-23 | K11: ='RAB & tax inputs'!K108 -> 2023-24 | L11: ='RAB & tax inputs'!L108 -> 2024-25 | M11: ='RAB & tax inputs'!M108 -> 2025-26 | N11: ='RAB & tax inputs'!N108 -> 2026-27 | O11: ='RAB & tax inputs'!O108 -> 2027-28 | P11: ='RAB & tax inputs'!P108 -> 2028-29 | Q11: ='RAB & tax inputs'!Q108 -> 2029-30 | R11: ='RAB & tax inputs'!R108 -> 2030-31 | S11: ='RAB & tax inputs'!S108 -> 2031-32 | T11: ='RAB & tax inputs'!T108 -> 2032-33
K12: ='RAB projected '!K$15 -> Determination period is 2023-24 to 2027-28
J13: ='RAB & tax inputs'!J$110 -> nominal | K13: =Scenario!$Y$41 -> 2022-23 $'000
B15: Inflation rate for costs | C15: % | J15: ='Pricing & financial inputs'!J19 -> 0.052 | K15: ='Pricing & financial inputs'!K19 -> 0.025 | L15: ='Pricing & financial inputs'!L19 -> 0.025 | M15: ='Pricing & financial inputs'!M19 -> 0.025 | N15: ='Pricing & financial inputs'!N19 -> 0.025 | O15: ='Pricing & financial inputs'!O19 -> 0.025 | P15: ='Pricing & financial inputs'!P19 -> 0.025 | Q15: ='Pricing & financial inputs'!Q19 -> 0.025 | R15: ='Pricing & financial inputs'!R19 -> 0.025 | S15: ='Pricing & financial inputs'!S19 -> 0.025 | T15: ='Pricing & financial inputs'!T19 -> 0.025
B16: ='Pricing & financial inputs'!B21 -> Index applied to forecast costs | J16: 1 | K16: 1 | L16: 1 | M16: 1 | N16: 1 | O16: 1 | P16: 1 | Q16: 1 | R16: 1 | S16: 1 | T16: 1
B18: Selected WACC | C18: =Scenario!J60 -> Post-tax WACC | D18: =Scenario!W61 -> 2
B19: Nominal WACC for return on working capital | C19: % | K19: =Scenario!K67 -> 0.056 | L19: =Scenario!L67 -> 0.056 | M19: =Scenario!M67 -> 0.056 | N19: =Scenario!N67 -> 0.056 | O19: =Scenario!O67 -> 0.056 | P19: =Scenario!P67 -> 0.056 | Q19: =Scenario!Q67 -> 0.056 | R19: =Scenario!R67 -> 0.056 | S19: =Scenario!S67 -> 0.056 | T19: =Scenario!T67 -> 0.056
B21: For the purpose of calculationg working capital, forecast revenue for is always somewhat circular (since revenue depends on costs and one element of costs is the return on working capital).
B22: The model avoids circularity by using the current year's building block costs but with the previous year's tax allowance and return on working capital.
B24: Revenue - building block costs with return on working capital and tax allowance lagged by one year. | C24: ='RAB & tax inputs'!C36 -> $'000 | J24: =Scenario!I136 -> 111085 | K24: =SUM(NRR!K15:K17,NRR!K20,NRR!J18:J19)-SUM(NRR!K23:K24) -> 116663.325 | L24: =SUM(NRR!L15:L17,NRR!L20,NRR!K18:K19)-SUM(NRR!L23:L24) -> 119219.4567 | M24: =SUM(NRR!M15:M17,NRR!M20,NRR!L18:L19)-SUM(NRR!M23:M24) -> 125274.7809 | N24: =SUM(NRR!N15:N17,NRR!N20,NRR!M18:M19)-SUM(NRR!N23:N24) -> 129243.1354 | O24: =SUM(NRR!O15:O17,NRR!O20,NRR!N18:N19)-SUM(NRR!O23:O24) -> 132354.3042 | P24: =SUM(NRR!P15:P17,NRR!P20,NRR!O18:O19)-SUM(NRR!P23:P24) -> 135199.7498 | Q24: =SUM(NRR!Q15:Q17,NRR!Q20,NRR!P18:P19)-SUM(NRR!Q23:Q24) -> 137617.8836 | R24: =SUM(NRR!R15:R17,NRR!R20,NRR!Q18:Q19)-SUM(NRR!R23:R24) -> 139731.6979 | S24: =SUM(NRR!S15:S17,NRR!S20,NRR!R18:R19)-SUM(NRR!S23:S24) -> 141779.0775 | T24: =SUM(NRR!T15:T17,NRR!T20,NRR!S18:S19)-SUM(NRR!T23:T24) -> 143841.5912
B26: Operating expenditure | C26: =$C$24 -> $'000 | J26: ='Selected costs'!J16 -> 64950 | K26: ='Selected costs'!K16 -> 65920 | L26: ='Selected costs'!L16 -> 66910 | M26: ='Selected costs'!M16 -> 67920 | N26: ='Selected costs'!N16 -> 68940 | O26: ='Selected costs'!O16 -> 69970 | P26: ='Selected costs'!P16 -> 71020 | Q26: ='Selected costs'!Q16 -> 72080 | R26: ='Selected costs'!R16 -> 73160 | S26: ='Selected costs'!S16 -> 74260 | T26: ='Selected costs'!T16 -> 75370
B27: Net capital expenditure | C27: =$C$24 -> $'000 | J27: ='RAB historical'!J116 -> 64955 | K27: ='RAB projected '!K115 -> 98300 | L27: ='RAB projected '!L115 -> 119860 | M27: ='RAB projected '!M115 -> 69650 | N27: ='RAB projected '!N115 -> 48720 | O27: ='RAB projected '!O115 -> 54000 | P27: ='RAB projected '!P115 -> 43000 | Q27: ='RAB projected '!Q115 -> 32000 | R27: ='RAB projected '!R115 -> 32500 | S27: ='RAB projected '!S115 -> 33000 | T27: ='RAB projected '!T115 -> 33500
B28: check net capex = 0 | K28: =SUM('RAB projected '!K26:K27)-SUM('RAB projected '!K31:K32)-K27 -> 0 | L28: =SUM('RAB projected '!L26:L27)-SUM('RAB projected '!L31:L32)-L27 -> 0 | M28: =SUM('RAB projected '!M26:M27)-SUM('RAB projected '!M31:M32)-M27 -> 0 | N28: =SUM('RAB projected '!N26:N27)-SUM('RAB projected '!N31:N32)-N27 -> 0 | O28: =SUM('RAB projected '!O26:O27)-SUM('RAB projected '!O31:O32)-O27 -> 0 | P28: =SUM('RAB projected '!P26:P27)-SUM('RAB projected '!P31:P32)-P27 -> 0 | Q28: =SUM('RAB projected '!Q26:Q27)-SUM('RAB projected '!Q31:Q32)-Q27 -> 0 | R28: =SUM('RAB projected '!R26:R27)-SUM('RAB projected '!R31:R32)-R27 -> 0 | S28: =SUM('RAB projected '!S26:S27)-SUM('RAB projected '!S31:S32)-S27 -> 0 | T28: =SUM('RAB projected '!T26:T27)-SUM('RAB projected '!T31:T32)-T27 -> 0
B29: Specification of working capital
B30: ='RAB & tax inputs'!B96 -> Receivables @ no of days of sales | C30: ='RAB & tax inputs'!C96 -> days | D30: ='RAB & tax inputs'!D96 -> 70.83153251 | E30: Length depends on billing cycle. Generally use 50% number of days in cycle. Hence 45 days suitable for 3 monthly billing cycle
B31: ='RAB & tax inputs'!B98 -> Inventory (fixed real $ value) | C31: ='RAB & tax inputs'!C98 -> 2022-23 $'000 | D31: ='RAB & tax inputs'!D98 -> 200 | E31: Value depends on actual inventory held by business, from Statement of Financial Position (Balance Sheet)
B32: ='RAB & tax inputs'!B100 -> Prepayments (fixed real $ value) | C32: ='RAB & tax inputs'!C100 -> 2022-23 $'000 | D32: ='RAB & tax inputs'!D100 -> 0
B33: ='RAB & tax inputs'!B102 -> Accounts payable @ no. of days opex + net capex | C33: ='RAB & tax inputs'!C102 -> days | D33: ='RAB & tax inputs'!D102 -> 30 | E33: Standard IPART 30 days normally used
B38: TABLE 2 - CALCULATION OF WORKING CAPITAL ALLOWANCE AND RETURN ON WORKING CAPITAL - REVENUE OPTION 1
B39: =B$11 -> Financial year | J39: =J$11 -> 2022-23 | K39: =K$11 -> 2023-24 | L39: =L$11 -> 2024-25 | M39: 2025-26 | N39: 2026-27 | O39: 2027-28 | P39: 2028-29 | Q39: 2029-30 | R39: 2030-31 | S39: 2031-32 | T39: 2032-33
K40: =K$12 -> Determination period is 2023-24 to 2027-28
J41: =J$13 -> nominal | K41: =K13 -> 2022-23 $'000
B43: Receivables (option 1, where revenue = building block costs with lagged return on working capital and tax allowance, lagged to avoid circular referencing) | C43: =C$24 -> $'000 | J43: =$D$30/365*J$24 -> 21557.04326 | K43: 22639.5674 | L43: 23135.60773 | M43: 24310.69785 | N43: 25080.79274 | O43: 25684.54301 | P43: 26236.72732 | Q43: 26705.98794 | R43: 27116.19261 | S43: 27513.50504 | T43: 27913.75438
B44: =B31 -> Inventory (fixed real $ value) | C44: =C43 -> $'000 | J44: =$D31*J$16 -> 200 | K44: =$D31*K$16 -> 200 | L44: 200 | M44: 200 | N44: 200 | O44: 200 | P44: 200 | Q44: 200 | R44: 200 | S44: 200 | T44: 200
B45: =B32 -> Prepayments (fixed real $ value) | C45: =C44 -> $'000 | J45: =$D32*J$16 -> 0 | K45: =$D32*K$16 -> 0 | L45: 0 | M45: 0 | N45: 0 | O45: 0 | P45: 0 | Q45: 0 | R45: 0 | S45: 0 | T45: 0
B46: =B33 -> Accounts payable @ no. of days opex + net capex | C46: $'000 | J46: =$D$33/365*SUM(J$26:J$27) -> 10677.12329 | K46: 13497.53425 | L46: 15350.9589 | M46: 11307.12329 | N46: 9670.684932 | O46: 10189.31507 | P46: 9371.506849 | Q46: 8554.520548 | R46: 8684.383562 | S46: 8815.890411 | T46: 8948.219178
B47: Net working capital | C47: $'000 | J47: =SUM(J43:J45)-J46 -> 11079.91997 | K47: =SUM(K43:K45)-K46 -> 9342.03315 | L47: =SUM(L43:L45)-L46 -> 7984.648828 | M47: =SUM(M43:M45)-M46 -> 13203.57456 | N47: =SUM(N43:N45)-N46 -> 15610.10781 | O47: =SUM(O43:O45)-O46 -> 15695.22795 | P47: =SUM(P43:P45)-P46 -> 17065.22047 | Q47: =SUM(Q43:Q45)-Q46 -> 18351.46739 | R47: =SUM(R43:R45)-R46 -> 18631.80905 | S47: =SUM(S43:S45)-S46 -> 18897.61463 | T47: =SUM(T43:T45)-T46 -> 19165.5352
B49: Return on working capital (year end value) | C49: =C47 -> $'000 | K49: =K47*K$19 -> 523.1538564 | L49: =L47*L$19 -> 447.1403344 | M49: =M47*M$19 -> 739.4001752 | N49: 874.1660372 | O49: 878.932765 | P49: 955.6523465 | Q49: 1027.682174 | R49: 1043.381307 | S49: 1058.266419 | T49: 1073.269971
B50: Return on working capital to be recovered from revenue (mid-year value) | K50: =K49/(1+K$19)^0.5 -> 509.0934061 | L50: 435.1228478 | M50: 719.5278197 | N50: 850.6716712 | O50: 855.3102869 | P50: 929.9679285 | Q50: 1000.061859 | R50: 1015.339057 | S50: 1029.824112 | T50: 1044.424424

Sheet Tax
B1: =Cover!B1 -> THE INDEPENDENT PRICING AND REGULATORY TRIBUNAL OF NSW | K1: =Cover!$B$3 -> IPART TEMPLATE FOR COST BUILDING BLOCKS, SIMPLE TARIFF SETTING AND FINANCIAL RATIO ANALYSIS
B3: 12 Tax allowance in building block revenue and calculation of tax depreciation (if required)
B5: List of tables | M5: row number
B6: =B14 -> TABLE 1 - ASSUMPTIONS FOR CALCULATION OF TAX ALLOWANCE | M6: =ROW(B14) -> 14
B7: =B41 -> TABLE 2 - CALCULATION OF TAX ALLOWANCE | M7: =ROW(B41) -> 41
B8: =B81 -> TABLE 3 and TABLE 4 below are only for businesses that cannot provide forecast tax depreciation
B9: =B82 -> If the business can provide forecast tax depreciation, enter this depreciation in the 'RAB & cost inputs' worksheet and select the type of business in the 'Scenario' worksheet, row 29
B10: =B84 -> TABLE 3 - ASSUMPTIONS FOR ROLL FORWARD OF TAX ASSETS AND TAX DEPRECIATION (depreciating assets only, for businesses that cannot provide forecast tax depreciation) | M10: =ROW(B84) -> 84
B11: =B113 -> TABLE 4 - CALCULATION OF TAX DEPRECIATION | M11: =ROW(B113) -> 113
B14: TABLE 1 - ASSUMPTIONS FOR CALCULATION OF TAX ALLOWANCE
B15: ='RAB projected '!B$14 -> Financial year | F15: ='RAB & tax inputs'!F$32 -> 2018-19 | G15: ='RAB & tax inputs'!G$32 -> 2019-20 | H15: ='RAB & tax inputs'!H$32 -> 2020-21 | I15: ='RAB & tax inputs'!I$32 -> 2021-22 | J15: ='RAB & tax inputs'!J$32 -> 2022-23 | K15: ='RAB & tax inputs'!K$32 -> 2023-24 | L15: ='RAB & tax inputs'!L$32 -> 2024-25 | M15: ='RAB & tax inputs'!M$32 -> 2025-26 | N15: ='RAB & tax inputs'!N$32 -> 2026-27 | O15: ='RAB & tax inputs'!O$32 -> 2027-28 | P15: ='RAB & tax inputs'!P$32 -> 2028-29 | Q15: ='RAB & tax inputs'!Q$32 -> 2029-30 | R15: ='RAB & tax inputs'!R$32 -> 2030-31 | S15: ='RAB & tax inputs'!S$32 -> 2031-32 | T15: ='RAB & tax inputs'!T$32 -> 2032-33
J16: ='RAB & tax inputs'!J$33 -> Previous determinations | K16: ='RAB & tax inputs'!K$33 -> Determination period is 2023-24 to 2027-28
B18: =Scenario!B29 -> Type of business with regard to tax (select option) | D18: =Scenario!$W$32 -> 1 | E18: =Scenario!D29 -> 1. Pays tax and can provide forecast tax depreciation | K18: =E18 -> 1. Pays tax and can provide forecast tax depreciation
K19: =IF($D$18>1,"Tax depreciation calculated below, from row "&ROW(B84),"Tax depreciation hard-coded in 'Fixed inputs' worksheet") -> Tax depreciation hard-coded in 'Fixed inputs' worksheet
B21: Inflation rate (from WACC) | K21: =WACC!$F$32 -> 0.029 | L21: =WACC!$F$32 -> 0.029 | M21: =WACC!$F$32 -> 0.029 | N21: =WACC!$F$32 -> 0.029 | O21: =WACC!$F$32 -> 0.029 | P21: =WACC!$F$32 -> 0.029 | Q21: =WACC!$F$32 -> 0.029 | R21: =WACC!$F$32 -> 0.029 | S21: =WACC!$F$32 -> 0.029 | T21: =WACC!$F$32 -> 0.029
B22: Inflator to nominal values for tax calculations | J22: 1 | K22: =J22*(1+K21) -> 1.029 | L22: =K22*(1+L21) -> 1.058841 | M22: 1.089547389 | N22: 1.121144263 | O22: 1.153657447 | P22: 1.187113513 | Q22: 1.221539805 | R22: 1.256964459 | S22: 1.293416428 | T22: 1.330925505
B23: Inflation rate to roll forward of tax value of assets | K23: ='Pricing & financial inputs'!K19 -> 0.025 | L23: ='Pricing & financial inputs'!L19 -> 0.025 | M23: ='Pricing & financial inputs'!M19 -> 0.025 | N23: ='Pricing & financial inputs'!N19 -> 0.025 | O23: ='Pricing & financial inputs'!O19 -> 0.025 | P23: ='Pricing & financial inputs'!P19 -> 0.025 | Q23: ='Pricing & financial inputs'!Q19 -> 0.025 | R23: ='Pricing & financial inputs'!R19 -> 0.025 | S23: ='Pricing & financial inputs'!S19 -> 0.025 | T23: ='Pricing & financial inputs'!T19 -> 0.025
B25: Debt to total asset | D25: =WACC!F36 -> 0.6
B26: =WACC!B48 -> Cost of debt (nominal) | D26: =WACC!F48 -> 0.0455
B27: =WACC!B39 -> Gamma | D27: =WACC!F39 -> 0.25
B28: =WACC!B40 -> Corporate tax rate | K28: =WACC!K14 -> 0.3 | L28: =WACC!L14 -> 0.3 | M28: =WACC!M14 -> 0.3 | N28: =WACC!N14 -> 0.3 | O28: =WACC!O14 -> 0.3 | P28: =WACC!P14 -> 0.3 | Q28: =WACC!Q14 -> 0.3 | R28: =WACC!R14 -> 0.3 | S28: =WACC!S14 -> 0.3 | T28: =WACC!T14 -> 0.3
B29: RAB and working capital | C29: ='RAB & tax inputs'!$C$36&" nominal" -> $'000 nominal | K29: =(AVERAGE('RAB projected '!K114,'RAB projected '!K119)+'Working capital'!K47)*K22 -> 942851.4612 | L29: =(AVERAGE('RAB projected '!L114,'RAB projected '!L119)+'Working capital'!L47)*L22 -> 1057308.579 | M29: =(AVERAGE('RAB projected '!M114,'RAB projected '!M119)+'Working capital'!M47)*M22 -> 1166433.112 | N29: =(AVERAGE('RAB projected '!N114,'RAB projected '!N119)+'Working capital'!N47)*N22 -> 1236115.141 | O29: =(AVERAGE('RAB projected '!O114,'RAB projected '!O119)+'Working capital'!O47)*O22 -> 1295996.044 | P29: =(AVERAGE('RAB projected '!P114,'RAB projected '!P119)+'Working capital'!P47)*P22 -> 1355324.425 | Q29: =(AVERAGE('RAB projected '!Q114,'RAB projected '!Q119)+'Working capital'!Q47)*Q22 -> 1402430.619 | R29: =(AVERAGE('RAB projected '!R114,'RAB projected '!R119)+'Working capital'!R47)*R22 -> 1442405.898 | S29: =(AVERAGE('RAB projected '!S114,'RAB projected '!S119)+'Working capital'!S47)*S22 -> 1483324.915 | T29: =(AVERAGE('RAB projected '!T114,'RAB projected '!T119)+'Working capital'!T47)*T22 -> 1525211.973 | V29: This is used to calculate the value of debt
B30: Debt | C30: =C$29 -> $'000 nominal | K30: =K29*$D$25 -> 565710.8767 | L30: =L29*$D$25 -> 634385.1472 | M30: 699859.8671 | N30: 741669.0849 | O30: 777597.6264 | P30: 813194.6549 | Q30: 841458.3712 | R30: 865443.539 | S30: 889994.9492 | T30: 915127.1839
B32: Required revenue excluding tax liability | C32: =C$29 -> $'000 nominal | K32: =SUM(NRR!K15:K18)*K$22 -> 116286.591 | L32: =SUM(NRR!L15:L18)*L$22 -> 125947.5193 | M32: =SUM(NRR!M15:M18)*M$22 -> 135488.3877 | N32: =SUM(NRR!N15:N18)*N$22 -> 142770.7214 | O32: =SUM(NRR!O15:O18)*O$22 -> 149785.1181 | P32: =SUM(NRR!P15:P18)*P$22 -> 157115.9819 | Q32: =SUM(NRR!Q15:Q18)*Q$22 -> 164112.4981 | R32: =SUM(NRR!R15:R18)*R$22 -> 171015.4649 | S32: =SUM(NRR!S15:S18)*S$22 -> 178214.0314 | T32: =SUM(NRR!T15:T18)*T$22 -> 185708.0581
B33: =CHOOSE(Scenario!$W$55,"Non-cash asset contributions","Cash and non-cash asset contributions") -> Non-cash asset contributions | C33: $'000 nominal | K33: ='Cost inputs'!K68*K22+CHOOSE(Scenario!$W$55,0,SUM('Selected costs'!K25:K26)*K22) -> 977.55 | L33: ='Cost inputs'!L68*L22+CHOOSE(Scenario!$W$55,0,SUM('Selected costs'!L25:L26)*L22) -> 1270.6092 | M33: ='Cost inputs'!M68*M22+CHOOSE(Scenario!$W$55,0,SUM('Selected costs'!M25:M26)*M22) -> 1198.502128 | N33: ='Cost inputs'!N68*N22+CHOOSE(Scenario!$W$55,0,SUM('Selected costs'!N25:N26)*N22) -> 1345.373116 | O33: ='Cost inputs'!O68*O22+CHOOSE(Scenario!$W$55,0,SUM('Selected costs'!O25:O26)*O22) -> 1384.388936 | P33: ='Cost inputs'!P68*P22+CHOOSE(Scenario!$W$55,0,SUM('Selected costs'!P25:P26)*P22) -> 1424.536215 | Q33: ='Cost inputs'!Q68*Q22+CHOOSE(Scenario!$W$55,0,SUM('Selected costs'!Q25:Q26)*Q22) -> 1465.847766 | R33: ='Cost inputs'!R68*R22+CHOOSE(Scenario!$W$55,0,SUM('Selected costs'!R25:R26)*R22) -> 1508.357351 | S33: ='Cost inputs'!S68*S22+CHOOSE(Scenario!$W$55,0,SUM('Selected costs'!S25:S26)*S22) -> 1552.099714 | T33: ='Cost inputs'!T68*T22+CHOOSE(Scenario!$W$55,0,SUM('Selected costs'!T25:T26)*T22) -> 1597.110606 | V33: Included as income for tax purposes
B34: Profit/loss from asset sales shared with customers | C34: $'000 nominal | K34: =NRR!K23*K22 -> 0 | L34: =NRR!L23*L22 -> 0 | M34: =NRR!M23*M22 -> 0 | N34: =NRR!N23*N22 -> 0 | O34: =NRR!O23*O22 -> 0 | P34: =NRR!P23*P22 -> 0 | Q34: =NRR!Q23*Q22 -> 0 | R34: =NRR!R23*R22 -> 0 | S34: =NRR!S23*S22 -> 0 | T34: =NRR!T23*T22 -> 0
B35: Operating expenditure | C35: $'000 nominal | K35: =NRR!K15*K$22 -> 67831.68 | L35: =NRR!L15*L$22 -> 70847.05131 | M35: =NRR!M15*M$22 -> 74002.05866 | N35: =NRR!N15*N$22 -> 77291.68551 | O35: =NRR!O15*O$22 -> 80721.41156 | P35: =NRR!P15*P$22 -> 84308.80168 | Q35: =NRR!Q15*Q$22 -> 88048.58913 | R35: =NRR!R15*R$22 -> 91959.51983 | S35: =NRR!S15*S$22 -> 96049.10397 | T35: =NRR!T15*T$22 -> 100311.8553
B36: Tax depreciation | C36: $'000 nominal | D36: =IF($D$18>1,"calculated below","business' forecast") -> business' forecast | K36: =IF($D$18=1,'RAB & tax inputs'!K122,K125) -> 19450 | L36: =IF($D$18=1,'RAB & tax inputs'!L122,L125) -> 19460 | M36: =IF($D$18=1,'RAB & tax inputs'!M122,M125) -> 19468 | N36: =IF($D$18=1,'RAB & tax inputs'!N122,N125) -> 19470 | O36: =IF($D$18=1,'RAB & tax inputs'!O122,O125) -> 19478 | P36: =IF($D$18=1,'RAB & tax inputs'!P122,P125) -> 19489 | Q36: =IF($D$18=1,'RAB & tax inputs'!Q122,Q125) -> 19499 | R36: =IF($D$18=1,'RAB & tax inputs'!R122,R125) -> 19504 | S36: =IF($D$18=1,'RAB & tax inputs'!S122,S125) -> 19507 | T36: =IF($D$18=1,'RAB & tax inputs'!T122,T125) -> 19510
B37: Accumulated tax loss | C37: $'000 nominal | K37: ='RAB & tax inputs'!$K$135 -> 0 | L37: na | M37: na | N37: na | O37: na | P37: na | Q37: na | R37: na | S37: na | T37: na
B41: TABLE 2 - CALCULATION OF TAX ALLOWANCE
B42: =B15 -> Financial year | J42: =J15 -> 2022-23 | K42: 2023-24 | L42: 2024-25 | M42: 2025-26 | N42: 2026-27 | O42: 2027-28 | P42: 2028-29 | Q42: 2029-30 | R42: 2030-31 | S42: 2031-32 | T42: 2032-33
K43: =K16 -> Determination period is 2023-24 to 2027-28
B46: Required revenue excluding tax liability | C46: =C29 -> $'000 nominal | K46: =K32 -> 116286.591 | L46: =L32 -> 125947.5193 | M46: 135488.3877 | N46: 142770.7214 | O46: 149785.1181 | P46: 157115.9819 | Q46: 164112.4981 | R46: 171015.4649 | S46: 178214.0314 | T46: 185708.0581
B47: =CHOOSE(Scenario!$W$55,"Non-cash asset contributions","Cash and non-cash asset contributions") -> Non-cash asset contributions | C47: =C$46 -> $'000 nominal | K47: =K33 -> 977.55 | L47: 1270.6092 | M47: 1198.502128 | N47: 1345.373116 | O47: 1384.388936 | P47: 1424.536215 | Q47: 1465.847766 | R47: 1508.357351 | S47: 1552.099714 | T47: 1597.110606
B48: Profit/loss from asset sales shared with customers | C48: =C$46 -> $'000 nominal | K48: =K34 -> 0 | L48: =L34 -> 0 | M48: 0 | N48: 0 | O48: 0 | P48: 0 | Q48: 0 | R48: 0 | S48: 0 | T48: 0
B49: Total income for tax calculation | C49: $'000 nominal | K49: =SUM(K46:K48) -> 117264.141 | L49: =SUM(L46:L48) -> 127218.1285 | M49: =SUM(M46:M48) -> 136686.8898 | N49: 144116.0945 | O49: 151169.5071 | P49: 158540.5182 | Q49: 165578.3459 | R49: 172523.8222 | S49: 179766.1311 | T49: 187305.1687
B50: less
B51: Operating expenditure | C51: $'000 nominal | K51: =K35 -> 67831.68 | L51: =L35 -> 70847.05131 | M51: 74002.05866 | N51: 77291.68551 | O51: 80721.41156 | P51: 84308.80168 | Q51: 88048.58913 | R51: 91959.51983 | S51: 96049.10397 | T51: 100311.8553
B52: Tax depreciation | C52: $'000 nominal | K52: =K36 -> 19450 | L52: =L36 -> 19460 | M52: 19468 | N52: 19470 | O52: 19478 | P52: 19489 | Q52: 19499 | R52: 19504 | S52: 19507 | T52: 19510
B53: Interest deductible | C53: $'000 nominal | K53: =K30*$D$26 -> 25739.84489 | L53: =L30*$D$26 -> 28864.5242 | M53: 31843.62395 | N53: 33745.94336 | O53: 35380.692 | P53: 37000.3568 | Q53: 38286.35589 | R53: 39377.68102 | S53: 40494.77019 | T53: 41638.28687
B54: Taxable income for the year | C54: $'000 nominal | K54: =K49-SUM(K51:K53) -> 4242.616125 | L54: 8046.553012 | M54: 11373.20717 | N54: 13608.46562 | O54: 15589.40349 | P54: 17742.35968 | Q54: 19744.4009 | R54: 21682.62137 | S54: 23715.25696 | T54: 25845.02655
B55: Accumulated tax losses | C55: $'000 nominal | K55: =K37 -> 0 | L55: =MAX(0,K55-K54) -> 0 | M55: =MAX(0,L55-L54) -> 0 | N55: 0 | O55: 0 | P55: 0 | Q55: 0 | R55: 0 | S55: 0 | T55: 0
B56: Taxable income after tax losses | C56: $'000 nominal | K56: =MAX(0,K54-K55) -> 4242.616125 | L56: =MAX(0,L54-L55) -> 8046.553012 | M56: =MAX(0,M54-M55) -> 11373.20717 | N56: 13608.46562 | O56: 15589.40349 | P56: 17742.35968 | Q56: 19744.4009 | R56: 21682.62137 | S56: 23715.25696 | T56: 25845.02655
B58: Tax before adjustment for franking credits | C58: =C56 -> $'000 nominal | K58: =K56*K$28/(1-K$28*(1-$D$27)) -> 1642.303016 | L58: =L56*L$28/(1-L$28*(1-$D$27)) -> 3114.794714 | M58: 4402.531806 | N58: 5267.793143 | O58: 6034.607802 | P58: 6868.010199 | Q58: 7642.993896 | R58: 8393.272787 | S58: 9180.099469 | T58: 10004.52641
B59: Adjustment for franking credits | C59: =C58 -> $'000 nominal | K59: =-K58*$D$27 -> -410.575754 | L59: =-L58*$D$27 -> -778.6986785 | M59: -1100.632952 | N59: -1316.948286 | O59: -1508.65195 | P59: -1717.00255 | Q59: -1910.748474 | R59: -2098.318197 | S59: -2295.024867 | T59: -2501.131602
B60: Tax allowance | C60: $'000 nominal | K60: =K58+K59 -> 1231.727262 | L60: =L58+L59 -> 2336.096036 | M60: 3301.898855 | N60: 3950.844857 | O60: 4525.955851 | P60: 5151.007649 | Q60: 5732.245422 | R60: 6294.954591 | S60: 6885.074602 | T60: 7503.394805
B62: =B58 -> Tax before adjustment for franking credits | C62: =Scenario!$K$155 -> 2022-23 $'000 | K62: =K58/K$22 -> 1596.01848 | L62: =L58/L$22 -> 2941.702025 | M62: 4040.697863 | N62: 4698.58636 | O62: 5230.848913 | P62: 5785.470492 | Q62: 6256.852102 | R62: 6677.414565 | S62: 7097.559044 | T62: 7516.969485
B63: =B59 -> Adjustment for franking credits | C63: =C62 -> 2022-23 $'000 | K63: =K59/K$22 -> -399.0046201 | L63: =L59/L$22 -> -735.4255063 | M63: -1010.174466 | N63: -1174.64659 | O63: -1307.712228 | P63: -1446.367623 | Q63: -1564.213026 | R63: -1669.353641 | S63: -1774.389761 | T63: -1879.242371
B64: =B60 -> Tax allowance | C64: =C63 -> 2022-23 $'000 | K64: 1197.01386 | L64: =L60/L$22 -> 2206.276519 | M64: 3030.523397 | N64: 3523.93977 | O64: 3923.136684 | P64: 4339.102869 | Q64: 4692.639077 | R64: 5008.060924 | S64: 5323.169283 | T64: 5637.727113
B66: Tax rate before adjustment for franking credits (Tax / Income before tax, for information) | K66: =IF(K56+K60=0,0,K58/(K56+K60)) -> 0.3 | L66: =IF(L56+L60=0,0,L58/(L56+L60)) -> 0.3 | M66: 0.3 | N66: 0.3 | O66: 0.3 | P66: 0.3 | Q66: 0.3 | R66: 0.3 | S66: 0.3 | T66: 0.3
B67: Tax rate after adjustment for franking credits (Tax net of gamma adjustment / Income before tax, for information) | K67: =IF(K56+K60=0,0,K60/(K56+K60)) -> 0.225 | L67: 0.225 | M67: 0.225 | N67: 0.225 | O67: 0.225 | P67: 0.225 | Q67: 0.225 | R67: 0.225 | S67: 0.225 | T67: 0.225
B69: Check tax calculations
B70: check tax allowance = 0 | K70: =SUM(K62:K63)-K64 -> 0 | L70: =SUM(L62:L63)-L64 -> 0 | M70: 0 | N70: 0 | O70: 0 | P70: 0 | Q70: 0 | R70: 0 | S70: 0 | T70: 0
B71: Tax liability (adjusted for franking credits) | K71: =K56*K$28*(1-$D$27)/(1-K$28*(1-$D$27)) -> 1231.727262 | L71: 2336.096036 | M71: 3301.898855 | N71: 3950.844857 | O71: 4525.955851 | P71: 5151.007649 | Q71: 5732.245422 | R71: 6294.954591 | S71: 6885.074602 | T71: 7503.394805
B72: check = 0 | K72: =K71-K60 -> 0 | L72: 0 | M72: 0 | N72: 0 | O72: 0 | P72: 0 | Q72: 0 | R72: 0 | S72: 0 | T72: 0
B73: check value of franking credits = 0 | K73: =K63/K62+$D$27 -> 0 | L73: 0 | M73: 0 | N73: 0 | O73: 0 | P73: 0 | Q73: 0 | R73: 0 | S73: 0 | T73: 0
B74: Tax allowance as share income after tax (for information) | K74: =IF(K60=0,0,K60/K56) -> 0.2903225806 | L74: 0.2903225806 | M74: 0.2903225806 | N74: 0.2903225806 | O74: 0.2903225806 | P74: 0.2903225806 | Q74: 0.2903225806 | R74: 0.2903225806 | S74: 0.2903225806 | T74: 0.2903225806
B75: check = 0 | K75: =IF(K60=0,0,K28*(1-$D$27)/(1-K28*(1-$D$27))-K74) -> 0 | L75: -5.551115123e-17 | M75: -5.551115123e-17 | N75: 0 | O75: -5.551115123e-17 | P75: 0 | Q75: -5.551115123e-17 | R75: 0 | S75: -5.551115123e-17 | T75: 0
B81: TABLE 3 and TABLE 4 below are only for businesses that cannot provide forecast tax depreciation
B82: ="If the business can provide forecast tax depreciation, enter this depreciation in the 'RAB & cost inputs' worksheet and select the type of business in the 'Scenario' worksheet, row "&ROW(Scenario!B29) -> If the business can provide forecast tax depreciation, enter this depreciation in the 'RAB & cost inputs' worksheet and select the type of business in the 'Scenario' worksheet, row 29
B84: TABLE 3 - ASSUMPTIONS FOR ROLL FORWARD OF TAX ASSETS AND TAX DEPRECIATION (depreciating assets only, for businesses that cannot provide forecast tax depreciation) | P84: QA note: added text
B85: ='RAB & tax inputs'!B$32 -> Financial year | F85: =F15 -> 2018-19 | G85: 2019-20 | H85: 2020-21 | I85: 2021-22 | J85: 2022-23 | K85: 2023-24 | L85: 2024-25 | M85: 2025-26 | N85: 2026-27 | O85: 2027-28 | P85: 2028-29 | Q85: 2029-30 | R85: 2030-31 | S85: 2031-32 | T85: 2032-33
J86: =K86 -> $'000 nominal | K86: =$C$29 -> $'000 nominal
J87: =J16 -> Previous determinations | K87: =K16 -> Determination period is 2023-24 to 2027-28
B89: Cost inflator | F89: 1 | G89: 1 | H89: 1 | I89: 1 | J89: 1 | K89: =J89*(1+K$23) -> 1.025 | L89: =K89*(1+L$23) -> 1.050625 | M89: 1.076890625 | N89: 1.103812891 | O89: 1.131408213 | P89: 1.159693418 | Q89: 1.188685754 | R89: 1.218402898 | S89: 1.24886297 | T89: 1.280084544
B91: ="Opening value of Tax assets (Depreciating assets only) - "&C93 -> Opening value of Tax assets (Depreciating assets only) - $'000 nominal | F91: =IF($D$18=3,'RAB & tax inputs'!F132,0) -> 0 | K91: =IF($D$18=1,"na - tax depreciation provided as an input",IF($D$18=2,'RAB & tax inputs'!$J$126,IF($D$18=3,"na -model uses rolled forward tax value of assets",IF($D$18=4,'RAB projected '!K22,"err")))) -> na - tax depreciation provided as an input
B93: Capital expenditure | C93: =$C$29 -> $'000 nominal | E93: source change | F93: ='Selected costs'!F20*F$89 -> 34000 | G93: ='Selected costs'!G20*G$89 -> 33000 | H93: ='Selected costs'!H20*H$89 -> 21000 | I93: ='Selected costs'!I20*I$89 -> 35000 | J93: ='Selected costs'!J20*J$89 -> 65000 | K93: ='Selected costs'!K20*K$89 -> 97375 | L93: ='Selected costs'!L20*L$89 -> 126075 | M93: ='Selected costs'!M20*M$89 -> 75382.34375 | N93: ='Selected costs'!N20*N$89 -> 48567.76719 | O93: ='Selected costs'!O20*O$89 -> 61096.0435 | P93: ='Selected costs'!P20*P$89 -> 49866.81698 | Q93: ='Selected costs'!Q20*Q$89 -> 38037.94412 | R93: ='Selected costs'!R20*R$89 -> 39598.09417 | S93: ='Selected costs'!S20*S$89 -> 41212.47801 | T93: ='Selected costs'!T20*T$89 -> 42882.83223 | V93: Total capex (not net of cash capital contributions).
